{"text_format":"1","workbook":"xlsx","n_sheets":27,"sheets":["Instrucciones","1-Datos Empresa","Datos","2-Datos Gestor y Diagnóstico","3-Datos de Proceso y Producción","4-Consumos energéticos","5-Inventario general","6-DdC","7-Mejoras de EE","7B-Sugerencias de EE","8-Resumen Ejecutivo",">> Planillas de Relevamiento ->","A-Fact Elec","A-Fact Gas","A-Fact Otros Comb","B-Invent Motores","B-Invent Bbas y ventiladores","B-Invent Iluminación","B-Equipos de Oficina","B-Aire acondicionado","B-Invent Aire Comprimido","B-Invent Calderas","B-Invent Hornos","C-Invent C. Const. Mat","C-Invent C. Const. Est. Pasiv","C-Características del entorno ","D-Caract Hoteles"],"not_rendered":{"charts":1,"images":3,"macros":1,"external_links":0,"defined_names":122,"comments":2,"pivot_tables":0},"unopened":[],"bounds":{"document_bytes":16777216,"sheet_cells":100000,"rows_first":2000,"rows_last":500,"rows_between":2000,"halvings":0,"cell_chars":16384,"cell_head_chars":4096},"cells_cut":0,"cells_raw":0,"read":"whole","date_system":"1900"}

{"sheet":"Instrucciones","index":0,"n_rows":21,"n_cols":6,"rows_kept":21,"cut":false,"hidden":false,"merged":[[16,0,19,0],[1,2,1,3],[15,2,15,3],[3,2,3,3],[4,2,4,3],[2,2,2,3],[6,0,14,0]]}
[null,null,null,null,null,"EEv2.0"]
[null,null," PROGRAMA DE EFICIENCIA ENERGÉTICA v2020"]
[null,null,"IMPORTANTE: Esta planilla DEBE ser abierta con sus macros ya que sino no funcionará correctamente. En la planilla deberán completarse únicamente las celdas de color BLANCO."]
[null,null,"Nota: Antes de iniciar un nuevo diagnóstico verifique que ésta sea la última versión de la planilla de diagnóstico. \nLa versión actualizada se encuentra cargada en el Módulo 9 del Curso de Gestores Energéticos en:"]
[null,null,"http://curso.cfi.org.ar"]
[null,null,"N°","Instrucciones de Uso (avanzar en orden para la carga del diagnóstico)"]
["OBLIGATORIO COMPLETAR",null,1,"Completar datos de la empresa en la hoja \"1-Datos Empresa\"."]
[null,null,2,"Completar datos del Gestor en la hoja \"2-Datos Gestor y Diagnóstico\"."]
[null,null,3,"Completar datos generales de la empresa en la hoja \"3-Datos de Proceso y Producción\"."]
[null,null,4,"Relevar los consumos anuales actuales de la empresa y realizar la carga en la hoja \"4-Consumos energéticos\" respetando cada fuente energética y sus unidades de medida (Respaldar la información con copias de facturas en caso de ser posible)."]
[null,null,5,"Ingresar los datos relevados de equipos de la empresa en la hoja \" 5-Inventario general\" discriminado por fuente energética y preferentemente de mayores a menores consumos. La hoja posee un botón para insertar filas en caso de ser necesario."]
[null,null,6,"La hoja \"6-Distribución de Consumos\" consolidará la información relevada por fuente energética y la unificará por uso. La planilla se genera automáticamente presionando un botón ubicado en la hoja 5. "]
[null,null,7,"En la hoja \"7-Mejoras de EE\", el gestor realizará la carga de las mejoras propuestas con un formato definido y en una planilla que le calculará el VAN y TIR de cada mejora. Para agregar una nueva Mejora en EE se debe hacer \"click\" en el botón \" Nueva MEE\"."]
[null,null,8,"En la hoja \"7b-Sugerencias de EE\", el gestor realizará la carga de las mejoras sugerencias y estimará distintas características. Son consideradas como sugerencias aquellas propuestas que no impliquen una inversión. "]
[null,null,9,"Los datos de hoja \"8-Resumen Ejecutivo\" son extraídos de las hojas previamente completadas."]
[null,null,"Documentación complementaria (para libre uso y modificación de los gestores)"]
["USO OPTATIVO",null,"A","Las hojas nombradas como \"A - Fact XXXXX\" sirven de base para que el Gestor Energético realice el relevamiento de las facturas energéticas."]
[null,null,"B","Las hojas que nombradas como \"B - Invent XXXXX\" sirven de base para que el Gestor Energético realice el relevamiento de los distintos equipamientos."]
[null,null,"C","Las hojas que nombradas como \"C - Invent XXXXX\" sirven de base para que el Gestor Energético realice el relevamiento de las características constructivas del edificio."]
[null,null,"D","Las hojas que nombradas como \"D -  XXXXX\" proporcionan algún ejemplo o información útil relativa al relevamiento del sector indicado en el título de las hoja en cuestión."]
[null,null,null,"(*) Son consideradas como sugerencias aquellas propuestas que no impliquen una inversión. Ej: Revisión de la categoría de usuario de Energía Eléctrica, reducción de la temperatura del agua caliente sanitaria, revisión de la potencia contratada, modificación de los turnos de trabajo, etc."]

{"sheet":"1-Datos Empresa","index":1,"n_rows":55,"n_cols":9,"rows_kept":55,"cut":false,"hidden":false,"merged":[[12,3,12,4],[7,3,7,4],[8,3,8,4],[53,2,53,3],[43,1,43,4],[20,3,20,4],[24,3,24,4],[15,3,15,4],[13,3,13,4],[19,1,19,2],[29,1,29,3],[21,1,21,2],[20,1,20,2],[23,3,23,4],[54,1,54,4],[38,1,38,4],[31,2,31,4],[32,2,32,4],[33,2,33,4],[42,1,42,4],[44,2,44,3],[45,2,45,3],[46,2,46,3],[52,2,52,3],[47,2,47,3],[48,2,48,3],[49,2,49,3],[50,2,50,3],[51,2,51,3],[2,7,3,7],[18,3,18,4],[17,3,17,4],[3,1,3,3],[16,1,18,1],[2,1,2,4],[4,3,4,4],[4,1,4,2],[10,3,10,4],[5,1,5,2],[6,3,6,4],[9,3,9,4],[9,1,9,2],[5,3,5,4],[14,3,14,4],[11,1,15,1],[0,1,0,4],[37,1,37,4],[11,3,11,4],[27,2,27,4],[28,2,28,4],[19,3,19,4],[21,3,21,4],[16,3,16,4],[25,3,25,4],[22,1,26,1],[26,3,26,4],[22,3,22,4],[6,1,8,2],[10,1,10,2],[34,1,34,4],[30,2,30,4]]}
[null,"OBLIGATORIO COMPLETAR FORMULARIO"]
[]
[null,"PROGRAMA DE EFICIENCIA ENERGÉTICA v2020",null,null,null,null,null,"Verifica-ción"]
[null,"Datos Generales de la Empresa",null,null,{"$f":"SUM(H5:H29)","v":0}]
[null,"Nombre de la empresa",null,null,null,null,null,{"$f":"IF(D5=\"\",0,1)","v":0}]
[null,"Tamaño de la empresa (lista desplegable) (*)",null,null,null,null,null,0]
[null,"Rubro (utilizar los 3 desplegables consecutivamente para que luego aprezca el código de actividad)"]
[]
[]
[null,"Código de actividad",null,{"$f":"MID(D9,1,5)","v":""},null,null,null,0]
[null,"CUIT (solo números sin espacios)",null,null,null,null,null,0]
[null,"Domicilio Fiscal","Provincia (desplegable)",null,null,null,null,0,{"$f":"VLOOKUP(D12,Datos!C2:D25,2,FALSE)","v":{"$error":"#N/A"}}]
[null,null,"Departamento / Municipio (desplegable)",null,null,null,null,0]
[null,null,"Ciudad",null,null,null,null,0]
[null,null,"Código Postal (Formato Numérico)",null,null,null,null,0]
[null,null,"Domicilio (Calle y N°)",null,null,null,null,0]
[null,"Superficie [m2] (solo números)","Cubierta",null,null,null,null,0]
[null,null,"Semi-cubierta",null,null,null,null,0]
[null,null,"Descubierta",null,null,null,null,0]
[null,"N° de empleados",null,null,null,null,null,0]
[null,"Fecha de inicio de actividades [año]",null,null,null,null,null,0]
[null,"Facturación Anual sin IVA en el Año Base ($)",null,null,null,null,null,0]
[null,"Ubicación de la empresa","Provincia (desplegable)",null,null,null,null,0,{"$f":"VLOOKUP(D23,Datos!C2:D25,2,FALSE)","v":{"$error":"#N/A"}}]
[null,null,"Departamento / Municipio (desplegable)",null,null,null,null,0]
[null,null,"Ciudad",null,null,null,null,0]
[null,null,"Código Postal (Formato Numérico)",null,null,null,null,0]
[null,null,"Domicilio (Calle y N°)",null,null,null,null,0]
[null,"Teléfono/s",null,null,null,null,null,{"$f":"IF(C28=\"\",0,1)","v":0}]
[null,"Correo electrónico"]
[null,"Datos de la persona de contacto de la Empresa",null,null,{"$f":"SUM(H31:H34)","v":0}]
[null,"Nombre",null,null,null,null,null,{"$f":"IF(C31=\"\",0,1)","v":0}]
[null,"Cargo",null,null,null,null,null,{"$f":"IF(C32=\"\",0,1)","v":0}]
[null,"Correo electrónico",null,null,null,null,null,0]
[null,"Teléfono/s",null,null,null,null,null,0]
[null,"Régimen de funcionamiento "]
[null,"Horario","Horas/día","Días/semana ","Semanas/año"]
[]
[null,"(*) Categoría de empresa: Resolución 220/2019, la Secretaría de Emprendedores y PyMEs del Ministerio de Producción y Trabajo"]
[null,"https://www.argentina.gob.ar/noticias/nuevas-categorias-para-ser-pyme-3"]
[]
[]
[]
[null,"     PROGRAMA DE EFICIENCIA ENERGÉTICA"]
[null,"Check list de hojas obligatorias completadas (*)"]
[null,"Nº de Hoja","Nombre de Hoja",null,"Estado"]
[null,1,"1-Datos Empresa",null,{"$f":"SUM($H$5:$H$29,$H$31:$H$34)","v":0}]
[null,2,"2-Datos Gestor y Diagnóstico",null,{"$f":"'2-Datos Gestor y Diagnóstico'!E6","v":0}]
[null,3,"3-Datos de Proceso y Producción",null,{"$f":"'3-Datos de Proceso y Producción'!H4","v":0}]
[null,4,"4-Consumos energéticos",null,{"$f":"SUM('4-Consumos energéticos'!Q8:Q13)","v":0}]
[null,5,"5-Inventario general",null,{"$f":"SUM('5-Inventario general'!P8:P13)","v":0}]
[null,6,"6-Distribución de Consumos",null,{"$f":"IF(AND(SUM('5-Inventario general'!D8:D13)>0,SUM('5-Inventario general'!F8:G13)>0,'1-Datos Empresa'!G51>0,SUM('5-Inventario general'!I8:I13)<=601%,SUM('5-Inventario general'!I8:I13)>0),1,0)","v":0},null,{"$f":"IF(ISERROR(#REF!=\"Total Relevado\"),\"\",1)","v":""}]
[null,7,"7-Mejoras de EE",null,{"$f":"IF(AND('7-Mejoras de EE'!F19>0,'7-Mejoras de EE'!F38>0,'7-Mejoras de EE'!F56>0),1,0)","v":0}]
[null,8,"7b-Sugerencias de EE",null,{"$f":"IF('7B-Sugerencias de EE'!H10>0,1,0)","v":0}]
[null,9,"8-Resumen Ejecutivo",null,{"$f":"IF(SUM(E51:E53)=3,1,0)","v":0}]
[null,"(*) Recién cuando todas las hojas obligatorias se encuenten completas, el check list se verá completo y podrá ser entregado este archivo."]

{"sheet":"Datos","index":2,"n_rows":641,"n_cols":36,"rows_kept":641,"cut":false,"hidden":true,"merged":[]}
[]
[null,"Categoría PyME","Buenos Aires","BuenosAires","A - AGRICULTURA, GANADERIA, CAZA Y SILVICULTURA",null,"A","AGRICULTURA, GANADERIA, CAZA Y SILVICULTURA","01 AGRICULTURA, GANADERIA, CAZA Y SERVICIOS CONEXOS",null,"01112 Cultivo de cereales forrajeros",null,{"$f":"VLOOKUP(M3,$C$2:$D$25,2,FALSE)","v":"Córdoba"},"SanJuan","Corrientes","EntreRios","Misiones","SantaFe","Chaco","Formosa","Jujuy","Salta","Tucumán","Santiago","LaRioja","Mendoza","LaPampa","Neuquén","RioNegro","Chubut","SantaCruz","TDF","BuenosAires","Catamarca","CABA","SanLuis"]
[null,"Micro","CABA","CABA","B - PESCA Y SERVICIOS CONEXOS",null,"A","AGRICULTURA, GANADERIA, CAZA Y SILVICULTURA","02 SILVICULTURA, EXTRACCION DE MADERA Y SERVICIOS CONEXOS",null,"01113 Cultivo de oleaginosas excepto el de semillas para siembra",null,"Córdoba","San Juan","Corrientes","Entre Ríos","Misiones","Santa Fe","Chaco","Formosa","Jujuy","Salta","Tucumán","Santiago del Estero","La Rioja","Mendoza","La Pampa","Neuquén","Río Negro","Chubut","Santa Cruz","Tierra del Fuego, Antártida e Islas del Atlántico Sur","Buenos Aires","Catamarca","CABA","San Luis"]
[null,"Pequeña","Catamarca",{"$f":"C4","v":"Catamarca"},"C - EXPLOTACION DE MINAS Y CANTERAS",null,"B","PESCA Y SERVICIOS CONEXOS","05 PESCA, EXPLOTACION DE CRIADEROS DE PECES, GRANJAS PISCICOLAS Y SERVICIOS CONEXOS",null,"01114 Cultivo de pastos forrajeros",null,"Calamuchita","Albardón","Bella Vista","Colón","Capital","Belgrano","San Fernando","Bermejo","Cochinoca","Anta","Burruyacu","Capital","Capital","Guaymallen","Atreuco","Confluencia","Adolfo Alsina","Atlántico","Corpen Aike","Antartida Argentina","Adolfo Alsina","Capital","Comuna 1 (Retiro, San Nicolás, Puerto Madero, San Telmo, Monserrat y Constitución)","Pueyrredón"]
[null,"Mediana tramo 1","Chaco",{"$f":"C5","v":"Chaco"},"D - INDUSTRIA MANUFACTURERA",null,"C","EXPLOTACION DE MINAS Y CANTERAS","10 EXTRACCION DE CARBON Y LIGNITO; EXTRACCION DE TURBA",null,"01121 Cultivo de papa, batata y mandioca",null,"Capital","Angaco","Berón de Astrada","Concordia","Oberá","Caseros","Comandante Fernandez","Formosa","Dr. Manuel Belgrano","Cachi","Capital","Banda ","Chilecito","Las Heras","Caleu Caleu","Zapala","Avellaneda","Biedma","Deseado","Islas del Atlantico Sur","Adolfo Gonzales Chaves","Valle Viejo","Comuna 2 (Recoleta )","Pedernera"]
[null,"Mediana tramo 2","Chubut",{"$f":"C6","v":"Chubut"},"E - ELECTRICIDAD, GAS Y AGUA",null,"C","EXPLOTACION DE MINAS Y CANTERAS","11 EXTRACCION DE PETROLEO CRUDO Y GAS NATURAL; ACTIVIDADES DE SERVICIOS RELACIONADAS CON LA EXTRACCION DE PETROLEO Y GAS, EXCEPTO LAS ACTIVIDADES DE PROSPECCION",null,"01122 Cultivo de bulbos, brotes, raíces y hortalizas de fruto",null,"Colón","Calingasta","Capital","Diamante","Iguazú","Castellanos","General Güemes","Laishi","El Carmen","Cafayate","Chicligasta","Rio Hondo","Arauco","San Rafael","Capital","Lácar","Bariloche","Cushamen","Güer Aike","Río Grande","Alberti","Belén","Comuna 3 (San Cristóbal y Balvanera)","Junín"]
[null,null,"Córdoba",{"$f":"C7","v":"Córdoba"},"F - CONSTRUCCION",null,"C","EXPLOTACION DE MINAS Y CANTERAS","12 EXTRACCION DE MINERALES DE URANIO Y TORIO",null,"01123 Cultivo de hortalizas de hoja y de otras hortalizas frescas",null,"Cruz del Eje","Capital","Concepción","Federación","El Dorado","Constitución","Libertador General San Martin","Matacos","Humahuaca","La Capital","Cruz Alta","Robles","Chamical","Godoy Cruz","Catrilo","Pehuenches","Conesa","Escalante","Río Chico","Tolhuin","Almirante Brown","Tinogasta","Comuna 4 (Boca, Barracas, Parque Patricios y Nueva Pompeya)","Chacabuco"]
[null,null,"Corrientes",{"$f":"C8","v":"Corrientes"},"G - COMERCIO",null,"C","EXPLOTACION DE MINAS Y CANTERAS","13 EXTRACCION DE MINERALES METALIFEROS",null,"01124 Cultivo de legumbres",null,"General Roca","Caucete","Curuzú Cuatiá","Federal","Guaraní","Garay","Mayor Luis J Fontana","Patiño","Ledesma","Cerrillos","Famailla","General Taboada","Rosario Vera Peñaloza","Maipu","Chalileo","Chos Malal","El Cuy","Florentino Ameghino","Lago Buenos Aires","Ushuaia","Arrecifes","La Paz","Comuna 5 (Almagro y Boedo)","Ayacucho"]
[null,null,"Entre Ríos","EntreRios","H - SERVICIOS DE HOTELERIA Y RESTAURANTES",null,"C","EXPLOTACION DE MINAS Y CANTERAS","14 EXPLOTACION DE MINAS Y CANTERAS N.C.P. ",null,"01125 Cultivo de flores y plantas ornamentales",null,"General San Martín","Chimbas","Empedrado","Feliciano","San Ignacio","General López","Quitilipi","Pilagas","Pálpala","Chicoana","Graneros","Choya","Coronel Felipe Varela","Lujan de Cuyo","Chapaleufu","Huiliches","General Roca","Futaleufú","Lago Argentino",null,"Avellaneda","Santa María","Comuna 6 (Caballito )","Coronel Pringles"]
[null,null,"Formosa",{"$f":"C10","v":"Formosa"},"I - SERVICIO DE TRANSPORTE, DE ALMACENAMIENTO Y DE COMUNICACIONES",null,"D","INDUSTRIA MANUFACTURERA","15 ELABORACION DE PRODUCTOS ALIMENTICIOS Y BEBIDAS",null,"01131 Cultivo de frutas de pepita",null,"Ischilín","Iglesia","Esquina","Gualeguay","Cainguas","General Obligado","Almirante Brown","Pilcomayo","Rinconada","General Güemes","Juan Bautista Alberdi","Moreno","General Belgrano","San Martin","Chical Co","Los Lagos","Nueve de Julio","Gaiman","Magallanes",null,"Ayacucho","Andalgalá","Comuna 7 (Flores y Parque Chacabuco)","Gobernador Dupuy"]
[null,null,"Jujuy",{"$f":"C11","v":"Jujuy"},"J - SERVICIOS FINANCIEROS",null,"D","INDUSTRIA MANUFACTURERA","16 ELABORACION DE PRODUCTOS DE TABACO",null,"01132 Cultivo de frutas de carozo",null,"Juárez Celman","Jáchal","General Alvear","Gualeguaychú","Libertador  General San Martín","Iriondo","Chacabuco","Pirane","San Antonio","José de San Martin","La Cocha","Copo","General Ocampo","Capital","Conhelo","Añelo","Ñorquinco","Gastre",null,null,"Azul","Capayán","Comuna 8 (Villa Soldati, Villa Riachuelo y Villa Lugano)","Libertador General San Martín"]
[null,null,"La Pampa","LaPampa","K - SERVICIOS INMOBILIARIOS, EMPRESARIALES Y DE ALQUILER",null,"D","INDUSTRIA MANUFACTURERA","17 FABRICACION DE PRODUCTOS TEXTILES",null,"01133 Cultivo de frutas cítricas",null,"Marcos Juárez","9 de julio","General Paz","Islas del Ibicuy","Leandro N Alem","La Capital","9 de Julio","Ramon Lista","San Pedro","Guachipas","Lules","Avellaneda","Famatina","Rivadavia","Curaco","Aluminé","Pichi Mahuida","Languiñeo",null,null,"Bahía Blanca","Santa Rosa","Comuna 9 (Parque Avellaneda, Liniers y Mataderos)","Belgrano"]
[null,null,"La Rioja","LaRioja","L - ADMINISTRACION PUBLICA, DEFENSA Y SEGURIDAD SOCIAL OBLIGAT",null,"D","INDUSTRIA MANUFACTURERA","18 CONFECCION DE PRENDAS DE VESTIR; TERMINACION Y TEÑIDO DE PIELES",null,"01134 Cultivo de nueces y frutas secas",null,"Minas","Pocito","Goya","La Paz","General Manuel Belgrano","Las Colinas","25 de Mayo",null,"Santa Bárbara","Iruya","Leales","Pellegrini","General San Martin","Tunuyan","Guatrache","Minas","Pilcaniyeu","Mártires",null,null,"Balcarce","Fray Mamerto Esquiú","Comuna 10 (Villa Real, Monte Castro, Versalles, Floresta, Vélez Sársfield y Villa Luro)"]
[null,null,"Mendoza","Mendoza","M - ENSEÑANZA",null,"D","INDUSTRIA MANUFACTURERA","19 CURTIDO Y TERMINACION DE CUEROS; FABRICACION DE ARTICULOS DE MARROQUINERIA, TALABARTERIA Y CALZADO Y DE SUS PARTES",null,"01139 Cultivo de frutas n.c.p.",null,"Pocho","Rawson","Itatí","Nogoyá","Apóstoles","Nueve de Julio","Maipú",null,"Santa Catalina","La Caldera","Monteros","Loreto","Castro Barros","Junin","Hucal","Picunches","San Antonio","Paso de los Indios",null,null,"Baradero","Pomán","Comuna 11 (Villa Gral. Mitre, Villa Devoto, Villa del Parque y Villa Santa Rita)"]
[null,null,"Misiones","Misiones","N - SERVICIOS SOCIALES Y DE SALUD",null,"D","INDUSTRIA MANUFACTURERA","20 PRODUCCION DE MADERA Y FABRICACION DE PRODUCTOS DE MADERA Y CORCHO, EXCEPTO MUEBLES; FABRICACION DE ARTICULOS DE PAJA Y DE MATERIALES TRENZABLES",null,"01141 Cultivo de plantas para la obtención de fibras",null,"Presidente Roque Sáenz Peña","Rivadavia","Ituzaingó","Paraná","Montecarlo","Rosario","Bermejo",null,"Susques","La Candelaria","Rio Chico","Juan F. Ibarra","General Juan Facundo Quiroga","General Alvear","Lihuel Calel","Loncopué","Valcheta","Rawson",null,null,"Benito Juárez","Ambato","Comuna 12 (Coghlan, Saavedra, Villa Urquiza y Villa Pueyrredón)"]
[null,null,"Neuquén","Neuquén","O - SERVICIOS COMUNITARIOS, SOCIALES Y PERSONALES N.C.P.",null,"D","INDUSTRIA MANUFACTURERA","21 FABRICACION DE PAPEL Y DE PRODUCTOS DE PAPEL",null,"01142 Cultivo de plantas sacaríferas",null,"Punilla","San Martín","Lavalle","San Salvador","San Pedro","San Cristóbal","Independencia",null,"Tilcara","La Poma","Simoca","Figueroa","San Blas de los Sauces","Lavalle","Limay Mahuida","Ñorquín","Veinticinco de Mayo","Río Senguer",null,null,"Berazategui","Paclín","Comuna 13 (Belgrano, Núñez y Colegiales)"]
[null,null,"Río Negro","RioNegro","P - SERVICIOS DE HOGARES PRIVADOS QUE CONTRATAN SERVICIO DOMESTICO",null,"D","INDUSTRIA MANUFACTURERA","22 EDICION E IMPRESION; REPRODUCCION DE GRABACIONES",null,"01143 Cultivo de vid para vinificar",null,"Río Cuarto","Santa Lucía","Mburucuyá","Tala","25 de Mayo","San Javier","12 de Octubre",null,"Tumbaya","La Viña","Tafi del Valle","Alberdi","General Angel Vicente Peñaloza ","Tupungato","Loventue","Picun Leufú",null,"Sarmiento",null,null,"Berisso","El Alto","Comuna 14 (Palermo )"]
[null,null,"Salta","Salta","Q - SERVICIOS DE ORGANIZACIONES Y ORGANOS EXTRATERRITORIALES",null,"D","INDUSTRIA MANUFACTURERA","23 FABRICACION DE COQUE, PRODUCTOS DE LA REFINACION DEL PETROLEO Y COMBUSTIBLE NUCLEAR",null,"01144 Cultivo de plantas para preparar bebidas",null,"Río Primero","Sarmiento","Mercedes","Uruguay","Candelaria","San Jeronimo","O' Higgins",null,"Valle Grande","Los Andes","Tafi Viejo","Jiménez","Vinchina","San Carlos","Maraco","Collon Curá",null,"Tehuelches",null,null,"Bolívar","Ancasti","Comuna 15 (Chacarita, Villa Crespo, Paternal, Villa Ortúzar, Agronomía y Parque Chas)"]
[null,null,"San Juan","SanJuan",null,null,"D","INDUSTRIA MANUFACTURERA","24 FABRICACION DE SUSTANCIAS Y PRODUCTOS QUIMICOS",null,"01145 Cultivo de tabaco",null,"Río Seco","Ullum","Monte Caseros","Victoria","San Javier","San Justo","Sargento Cabral",null,"Yavi","Metan","Trancas","Ojo de Agua","Independencia","Malargue","Puelen","Catan Li",null,"Telsen",null,null,"Bragado","Antofagasta de la Sierra "]
[null,null,"San Luis","SanLuis",null,null,"D","INDUSTRIA MANUFACTURERA","25 FABRICACION DE PRODUCTOS DE CAUCHO Y PLASTICO",null,"01146 Cultivo de especias y de plantas aromáticas y medicinales",null,"Río Segundo","Valle Fértil","Paso de los Libres","Villaguay","Concepción","San Lorenzo","General Donovan",null,null,"Molinos","Yerba Buena","Salavina","Sanagasta","Santa Rosa","Quemu Quemu",null,null,null,null,null,"Brandsen"]
[null,null,"Santa Cruz","SantaCruz",null,null,"D","INDUSTRIA MANUFACTURERA","26 FABRICACION DE PRODUCTOS MINERALES NO METALICOS",null,"01149 Cultivos industriales n.c.p.",null,"San Alberto","25 de mayo","Saladas",null,null,"San Martin","Presidencia de La Plaza",null,null,"Oran",null,"Atamisqui","General Lamadrid","La Paz","Rancul",null,null,null,null,null,"Campana"]
[null,null,"Santa Fe","SantaFe",null,null,"D","INDUSTRIA MANUFACTURERA","27 FABRICACION DE METALES COMUNES",null,"01151 Producción de semillas",null,"San Javier","Zonda","San Cosme",null,null,"Vera","General Belgrano",null,null,"Rivadavia",null,"Quebrachos",null,null,"Realico",null,null,null,null,null,"Cañuelas"]
[null,null,"Santiago del Estero","Santiago",null,null,"D","INDUSTRIA MANUFACTURERA","28 FABRICACIÓN DE PRODUCTOS ELABORADOS DE METAL, EXCEPTO MAQUINARIA Y EQUIPO",null,"01152 Producción de otras formas de propagación de cultivos agrícolas",null,"San Justo",null,"San Luis del Palmar",null,null,null,"Libertad ",null,null,"Rosario de la Frontera",null,"San Martin",null,null,"Toay",null,null,null,null,null,"Capitán Sarmiento"]
[null,null,"Tierra del Fuego, Antártida e Islas del Atlántico Sur","TDF",null,null,"D","INDUSTRIA MANUFACTURERA","29 FABRICACION DE MAQUINARIA Y EQUIPO N.C.P",null,"01211 Cría de ganado bovino -excepto en cabañas y para la producción de leche",null,"Santa María",null,"San Martín",null,null,null,"Fray Justo Santa Maria de Oro",null,null,"Rosario de Lerma",null,"Belgrano",null,null,"Trenel",null,null,null,null,null,"Carlos Casares"]
[null,null,"Tucumán","Tucumán",null,null,"D","INDUSTRIA MANUFACTURERA","30 FABRICACIÓN DE MAQUINARIA DE OFICINA, CONTABILIDAD E INFORMÁTICA",null,"01212 Cría de ganado ovino -excepto en cabañas y para la producción de lana",null,"Sobremonte",null,"San Miguel",null,null,null,"1 de Mayo",null,null,"San Carlos",null,"Silipica",null,null,"Utracan",null,null,null,null,null,"Carlos Tejedor"]
[null,null,null,null,null,null,"D","INDUSTRIA MANUFACTURERA","31 FABRICACIÓN DE MAQUINARIA Y APARATOS ELÉCTRICOS N.C.P",null,"01213 Cría de ganado porcino -excepto en cabañas",null,"Tercero Arriba",null,"San Roque",null,null,null,"2 de Abril",null,null,"Santa Victoria",null,"Aguirre",null,null,null,null,null,null,null,null,"Carmen de Areco"]
[null,null,null,null,null,null,"D","INDUSTRIA MANUFACTURERA","32 FABRICACIÓN DE EQUIPOS Y APARATOS DE RADIO, TELEVISIÓN Y COMUNICACIONES",null,"01214 Cría de ganado equino -excepto en haras",null,"Totoral",null,"Santo Tomé",null,null,null,"Tapenaga",null,null,null,null,"Guasayan",null,null,null,null,null,null,null,null,"Castelli"]
[null,null,null,null,null,null,"D","INDUSTRIA MANUFACTURERA","33 FABRICACIÓN DE INSTRUMENTOS MÉDICOS, ÓPTICOS Y DE PRECISIÓN; FABRICACIÓN DE RELOJES",null,"01215 Cría de ganado caprino -excepto en cabañas y para la producción de leche",null,"Tulumba",null,"Sauce",null,null,null,"San Lorenzo",null,null,null,null,"Rivadavia",null,null,null,null,null,null,null,null,"Chacabuco"]
[null,null,null,null,null,null,"D","INDUSTRIA MANUFACTURERA","34 FABRICACIÓN DE VEHÍCULOS AUTOMOTORES, REMOLQUES Y SEMIREMOLQUES",null,"01216 Cría de ganado en cabañas y haras",null,"Unión",null,null,null,null,null,null,null,null,null,null,"Sarmiento",null,null,null,null,null,null,null,null,"Chascomús"]
[null,null,null,null,null,null,"D","INDUSTRIA MANUFACTURERA","35 FABRICACIÓN DE EQUIPO DE TRANSPORTE N.C.P.",null,"01217 Producción de leche",null,null,null,null,null,null,null,null,null,null,null,null,"Mitre",null,null,null,null,null,null,null,null,"Chivilcoy"]
[null,null,null,null,null,null,"D","INDUSTRIA MANUFACTURERA","36 FABRICACIÓN DE MUEBLES Y COLCHONES; INDUSTRIAS MANUFACTURERAS N.C.P.",null,"01218 Producción de lana y pelos de ganado",null,null,null,null,null,null,null,null,null,null,null,null,null,null,null,null,null,null,null,null,null,"Colón"]
[null,null,null,null,null,null,"D","INDUSTRIA MANUFACTURERA","37 RECICLAMIENTO",null,"01219 Cría de ganado n.c.p.",null,null,null,null,null,null,null,null,null,null,null,null,null,null,null,null,null,null,null,null,null,"Coronel Dorrego"]
[null,null,null,null,null,null,"E","ELECTRICIDAD, GAS Y AGUA","40 ELECTRICIDAD, GAS, VAPOR Y AGUA CALIENTE",null,"01221 Cría de aves de corral",null,null,null,null,null,null,null,null,null,null,null,null,null,null,null,null,null,null,null,null,null,"Coronel Pringles"]
[null,null,null,null,null,null,"E","ELECTRICIDAD, GAS Y AGUA","41 CAPTACION, DEPURACION Y DISTRIBUCION DE AGUA",null,"01222 Producción de huevos",null,null,null,null,null,null,null,null,null,null,null,null,null,null,null,null,null,null,null,null,null,"Coronel Rosales"]
[null,null,null,null,null,null,"F","CONSTRUCCION","45 CONSTRUCCION",null,"01223 Apicultura",null,null,null,null,null,null,null,null,null,null,null,null,null,null,null,null,null,null,null,null,null,"Coronel Suárez"]
[null,null,null,null,null,null,"G","COMERCIO","50 VENTA, MANTENIMIENTO Y REPARACION DE VEHICULOS AUTOMOTORES Y MOTOCICLETAS; VENTA AL POR MENOR DE COMBUSTIBLE PARA VEHÍCULOS AUTOMOTORES",null,"01224 Cría de animales pelíferos, pilíferos y plumíferos",null,null,null,null,null,null,null,null,null,null,null,null,null,null,null,null,null,null,null,null,null,"Daireaux"]
[null,null,null,null,null,null,"G","COMERCIO","51 COMERCIO AL POR MAYOR Y/O EN COMISION O CONSIGNACIÓN, EXCEPTO EL COMERCIO DE VEHICULOS AUTOMOTORES Y MOTOCICLETAS",null,"01229 Cría de animales y obtención de productos de origen animal, n.c.p.",null,null,null,null,null,null,null,null,null,null,null,null,null,null,null,null,null,null,null,null,null,"Dolores"]
[null,null,null,null,null,null,"G","COMERCIO","52 COMERCIO AL POR MENOR, EXCEPTO EL COMERCIO DE VEHICULOS AUTOMOTORES Y MOTOCICLETAS; REPARACION DE EFECTOS PERSONALES Y ENSERES DOMESTICOS",null,"01411 Servicios de maquinaria agrícola, excepto los de cosecha mecánica",null,null,null,null,null,null,null,null,null,null,null,null,null,null,null,null,null,null,null,null,null,"Ensenada"]
[null,null,null,null,null,null,"H","SERVICIOS DE HOTELERIA Y RESTAURANTES","55 SERVICIOS DE HOTELERIA Y RESTAURANTES",null,"01412 Servicios de cosecha mecánica",null,null,null,null,null,null,null,null,null,null,null,null,null,null,null,null,null,null,null,null,null,"Escobar"]
[null,null,null,null,null,null,"I","SERVICIO DE TRANSPORTE, DE ALMACENAMIENTO Y DE COMUNICACIONES","60 SERVICIO DE TRANSPORTE TERRESTRE",null,"01413 Servicios de contratistas de mano de obra agrícola",null,null,null,null,null,null,null,null,null,null,null,null,null,null,null,null,null,null,null,null,null,"Esteban Echeverría"]
[null,null,null,null,null,null,"I","SERVICIO DE TRANSPORTE, DE ALMACENAMIENTO Y DE COMUNICACIONES","61 SERVICIO DE TRANSPORTE POR VIA ACUATICA",null,"01419 Servicios agrícolas n.c.p",null,null,null,null,null,null,null,null,null,null,null,null,null,null,null,null,null,null,null,null,null,"Exaltación de la Cruz"]
[null,null,null,null,null,null,"I","SERVICIO DE TRANSPORTE, DE ALMACENAMIENTO Y DE COMUNICACIONES","62 SERVICIO DE TRANSPORTE AEREO",null,"01421 Inseminación artificial y servicios n.c.p. para mejorar la reproducción de los animales y el rendimiento de sus productos",null,null,null,null,null,null,null,null,null,null,null,null,null,null,null,null,null,null,null,null,null,"Ezeiza"]
[null,null,null,null,null,null,"I","SERVICIO DE TRANSPORTE, DE ALMACENAMIENTO Y DE COMUNICACIONES","63 SERVICIOS ANEXOS AL TRANSPORTE; SERVICIOS DE AGENCIAS DE VIAJE",null,"01422 Servicios de contratistas de mano de obra pecuaria",null,null,null,null,null,null,null,null,null,null,null,null,null,null,null,null,null,null,null,null,null,"Florencio Varela"]
[null,null,null,null,null,null,"I","SERVICIO DE TRANSPORTE, DE ALMACENAMIENTO Y DE COMUNICACIONES","64 Servicios de correos y telecomunicaciones",null,"01429 Servicios pecuarios n.c.p.",null,null,null,null,null,null,null,null,null,null,null,null,null,null,null,null,null,null,null,null,null,"Florentino Ameghino"]
[null,null,null,null,null,null,"J","SERVICIOS FINANCIEROS","65 INTERMEDIACION FINANCIERA Y OTROS SERVICIOS FINANCIEROS EXCEPTO LOS DE SEGURO Y DE ADMINISTRACION DE FONDOS DE JUBILACIONES Y PENSIONES",null,"01501 Caza y captura de animales vivos y repoblación de animales de caza",null,null,null,null,null,null,null,null,null,null,null,null,null,null,null,null,null,null,null,null,null,"General Alvarado"]
[null,null,null,null,null,null,"J","SERVICIOS FINANCIEROS","66 SERVICIOS DE SEGUROS Y DE ADMINISTRACIÓN DE FONDOS DE JUBILACIONES Y PENSIONES",null,"01502 Servicios para la caza",null,null,null,null,null,null,null,null,null,null,null,null,null,null,null,null,null,null,null,null,null,"General Alvear"]
[null,null,null,null,null,null,"J","SERVICIOS FINANCIEROS","67 SERVICIOS AUXILIARES A LA ACTIVIDAD FINANCIERA",null,"02011 Plantación de bosques",null,null,null,null,null,null,null,null,null,null,null,null,null,null,null,null,null,null,null,null,null,"General Arenales"]
[null,null,null,null,null,null,"K","SERVICIOS INMOBILIARIOS, EMPRESARIALES Y DE ALQUILER","70 SERVICIOS INMOBILIARIOS",null,"02012 Repoblación y conservación de bosques nativos y zonas forestadas",null,null,null,null,null,null,null,null,null,null,null,null,null,null,null,null,null,null,null,null,null,"General Belgrano"]
[null,null,null,null,null,null,"K","SERVICIOS INMOBILIARIOS, EMPRESARIALES Y DE ALQUILER","71 ALQUILER DE EQUIPO DE TRANSPORTE, MAQUINARIAS Y EQUIPOS SIN OPERARIOS; ALQUILER DE EFECTOS PERSONALES Y ENSERES DOMESTICOS",null,"02013 Explotación de viveros forestales",null,null,null,null,null,null,null,null,null,null,null,null,null,null,null,null,null,null,null,null,null,"General Guido"]
[null,null,null,null,null,null,"K","SERVICIOS INMOBILIARIOS, EMPRESARIALES Y DE ALQUILER","72 SERVICIOS INFORMATICOS Y ACTIVIDADES CONEXAS",null,"02021 Extracción de productos forestales de bosques cultivados",null,null,null,null,null,null,null,null,null,null,null,null,null,null,null,null,null,null,null,null,null,"General Juan Madariaga"]
[null,null,null,null,null,null,"K","SERVICIOS INMOBILIARIOS, EMPRESARIALES Y DE ALQUILER","73 INVESTIGACIÓN Y DESARROLLO",null,"02022 Extracción de productos forestales de bosques nativos",null,null,null,null,null,null,null,null,null,null,null,null,null,null,null,null,null,null,null,null,null,"General La Madrid"]
[null,null,null,null,null,null,"K","SERVICIOS INMOBILIARIOS, EMPRESARIALES Y DE ALQUILER","74 SERVICIOS EMPRESARIALES N.C.P.",null,"02031 Servicios forestales de extracción de madera",null,null,null,null,null,null,null,null,null,null,null,null,null,null,null,null,null,null,null,null,null,"General Las Heras"]
[null,null,null,null,null,null,"L","ADMINISTRACION PUBLICA, DEFENSA Y SEGURIDAD SOCIAL OBLIGAT","75 ADMINISTRACION PUBLICA, DEFENSA Y SEGURIDAD SOCIAL OBLIGATORIA",null,"02039 Servicios forestales excepto los relacionados con la extracción de madera",null,null,null,null,null,null,null,null,null,null,null,null,null,null,null,null,null,null,null,null,null,"General Lavalle"]
[null,null,null,null,null,null,"M","ENSEÑANZA","80 ENSEÑANZA",null,"05011 Pesca marítima, costera y de altura",null,null,null,null,null,null,null,null,null,null,null,null,null,null,null,null,null,null,null,null,null,"General Paz"]
[null,null,null,null,null,null,"N","SERVICIOS SOCIALES Y DE SALUD","85 SERVICIOS SOCIALES Y DE SALUD",null,"05012 Pesca continental : fluvial y lacustre",null,null,null,null,null,null,null,null,null,null,null,null,null,null,null,null,null,null,null,null,null,"General Pinto"]
[null,null,null,null,null,null,"O","SERVICIOS COMUNITARIOS, SOCIALES Y PERSONALES N.C.P.","90 ELIMINACIÓN DE DESPERDICIOS Y AGUAS RESIDUALES, SANEAMIENTO Y SERVICIOS SIMILARES",null,"05013 Recolección de productos marinos",null,null,null,null,null,null,null,null,null,null,null,null,null,null,null,null,null,null,null,null,null,"General Pueyrredón"]
[null,null,null,null,null,null,"O","SERVICIOS COMUNITARIOS, SOCIALES Y PERSONALES N.C.P.","91 SERVICIOS DE ASOCIACIONES N.C.P.",null,"05020 Explotación de criaderos de peces, granjas piscícolas y otros frutos acuáticos (acuicultura)",null,null,null,null,null,null,null,null,null,null,null,null,null,null,null,null,null,null,null,null,null,"General Rodríguez"]
[null,null,null,null,null,null,"O","SERVICIOS COMUNITARIOS, SOCIALES Y PERSONALES N.C.P.","92 SERVICIOS DE ESPARCIMIENTO Y SERVICIOS CULTURALES Y DEPORTIVOS",null,"05030 Servicios para la pesca",null,null,null,null,null,null,null,null,null,null,null,null,null,null,null,null,null,null,null,null,null,"General San Martín"]
[null,null,null,null,null,null,"O","SERVICIOS COMUNITARIOS, SOCIALES Y PERSONALES N.C.P.","93 SERVICIOS N.C.P.",null,"10100 Extracción y aglomeración de carbón",null,null,null,null,null,null,null,null,null,null,null,null,null,null,null,null,null,null,null,null,null,"General Viamonte"]
[null,null,null,null,null,null,"P","SERVICIOS DE HOGARES PRIVADOS QUE CONTRATAN SERVICIO DOMESTICO","95 SERVICIOS DE HOGARES PRIVADOS QUE CONTRATAN SERVICIO DOMESTICO",null,"10200 Extracción y aglomeración de lignito",null,null,null,null,null,null,null,null,null,null,null,null,null,null,null,null,null,null,null,null,null,"General Villegas"]
[null,null,null,null,null,null,"Q","SERVICIOS DE ORGANIZACIONES Y ORGANOS EXTRATERRITORIALES","99 SERVICIOS DE ORGANIZACIONES Y ORGANOS EXTRATERRITORIALES",null,"10300 Extracción y aglomeración de turba",null,null,null,null,null,null,null,null,null,null,null,null,null,null,null,null,null,null,null,null,null,"Guaminí"]
[null,null,null,null,null,null,null,null,null,null,"11100 Extracción de petróleo crudo y gas natural",null,null,null,null,null,null,null,null,null,null,null,null,null,null,null,null,null,null,null,null,null,"Hipólito Yrigoyen"]
[null,null,null,null,null,null,null,null,null,null,"11200 Actividades de servicios relacionadas con la extracción de petróleo y gas, excepto las actividades de prospección",null,null,null,null,null,null,null,null,null,null,null,null,null,null,null,null,null,null,null,null,null,"Hurlingham"]
[null,null,null,null,null,null,null,null,null,null,"12000 Extracción de minerales y concentrados de uranio y torio",null,null,null,null,null,null,null,null,null,null,null,null,null,null,null,null,null,null,null,null,null,"Ituzaingó"]
[null,null,null,null,null,null,null,null,null,null,"13100 Extracción de minerales de hierro",null,null,null,null,null,null,null,null,null,null,null,null,null,null,null,null,null,null,null,null,null,"José C. Paz"]
[null,null,null,null,null,null,null,null,null,null,"13200 Extracción de minerales metalíferos no ferrosos, excepto minerales de uranio y torio",null,null,null,null,null,null,null,null,null,null,null,null,null,null,null,null,null,null,null,null,null,"Junín"]
[null,null,null,null,null,null,null,null,null,null,"14110 Extracción de rocas ornamentales",null,null,null,null,null,null,null,null,null,null,null,null,null,null,null,null,null,null,null,null,null,"La Costa"]
[null,null,null,null,null,null,null,null,null,null,"14120 Extracción de piedra caliza y yeso",null,null,null,null,null,null,null,null,null,null,null,null,null,null,null,null,null,null,null,null,null,"La Matanza"]
[null,null,null,null,null,null,null,null,null,null,"14130 Extracción de arenas, canto rodado y triturados pétreos",null,null,null,null,null,null,null,null,null,null,null,null,null,null,null,null,null,null,null,null,null,"La Plata"]
[null,null,null,null,null,null,null,null,null,null,"14140 Extracción de arcilla y caolín",null,null,null,null,null,null,null,null,null,null,null,null,null,null,null,null,null,null,null,null,null,"Lanús"]
[null,null,null,null,null,null,null,null,null,null,"14211 Extracción de minerales para la fabricación de abonos excepto turba",null,null,null,null,null,null,null,null,null,null,null,null,null,null,null,null,null,null,null,null,null,"Laprida"]
[null,null,null,null,null,null,null,null,null,null,"14212 Extracción de minerales para la fabricación de productos químicos",null,null,null,null,null,null,null,null,null,null,null,null,null,null,null,null,null,null,null,null,null,"Las Flores"]
[null,null,null,null,null,null,null,null,null,null,"14220 Extracción de sal en salinas y de roca",null,null,null,null,null,null,null,null,null,null,null,null,null,null,null,null,null,null,null,null,null,"Leandro N. Alem"]
[null,null,null,null,null,null,null,null,null,null,"14290 Explotación de minas y canteras n.c.p.",null,null,null,null,null,null,null,null,null,null,null,null,null,null,null,null,null,null,null,null,null,"Lezama"]
[null,null,null,null,null,null,null,null,null,null,"15111 Matanza de ganado bovino y procesamiento de su carne",null,null,null,null,null,null,null,null,null,null,null,null,null,null,null,null,null,null,null,null,null,"Lincoln"]
[null,null,null,null,null,null,null,null,null,null,"15112 Producción y procesamiento de carne de aves",null,null,null,null,null,null,null,null,null,null,null,null,null,null,null,null,null,null,null,null,null,"Lobería"]
[null,null,null,null,null,null,null,null,null,null,"15113 Elaboración de fiambres y embutidos",null,null,null,null,null,null,null,null,null,null,null,null,null,null,null,null,null,null,null,null,null,"Lobos"]
[null,null,null,null,null,null,null,null,null,null,"15114 Matanza de ganado excepto el bovino y procesamiento de su carne",null,null,null,null,null,null,null,null,null,null,null,null,null,null,null,null,null,null,null,null,null,"Lomas de Zamora"]
[null,null,null,null,null,null,null,null,null,null,"15119 Matanza de animales n.c.p. y procesamiento de su carne; Elaboración de subproductos cárnicos n.c.p.",null,null,null,null,null,null,null,null,null,null,null,null,null,null,null,null,null,null,null,null,null,"Luján"]
[null,null,null,null,null,null,null,null,null,null,"15120 Elaboración de pescado y productos de pescado",null,null,null,null,null,null,null,null,null,null,null,null,null,null,null,null,null,null,null,null,null,"Magdalena"]
[null,null,null,null,null,null,null,null,null,null,"15131 Preparación de conservas de frutas, hortalizas y legumbres",null,null,null,null,null,null,null,null,null,null,null,null,null,null,null,null,null,null,null,null,null,"Maipú"]
[null,null,null,null,null,null,null,null,null,null,"15132 Elaboración de jugos naturales y sus concentrados, de frutas, hortalizas y legumbres",null,null,null,null,null,null,null,null,null,null,null,null,null,null,null,null,null,null,null,null,null,"Malvinas Argentinas"]
[null,null,null,null,null,null,null,null,null,null,"15133 Elaboración de pulpas, jaleas, dulces y mermeladas",null,null,null,null,null,null,null,null,null,null,null,null,null,null,null,null,null,null,null,null,null,"Mar Chiquita"]
[null,null,null,null,null,null,null,null,null,null,"15134 Elaboración de frutas, hortalizas y legumbres congeladas",null,null,null,null,null,null,null,null,null,null,null,null,null,null,null,null,null,null,null,null,null,"Marcos Paz"]
[null,null,null,null,null,null,null,null,null,null,"15139 Elaboración de frutas, hortalizas y legumbres deshidratadas o desecadas; preparación n.c.p. de frutas, hortalizas y legumbres",null,null,null,null,null,null,null,null,null,null,null,null,null,null,null,null,null,null,null,null,null,"Mercedes"]
[null,null,null,null,null,null,null,null,null,null,"15141 Elaboración de aceites y grasas de origen vegetal sin refinar y sus subproductos; elaboración de aceite virgen",null,null,null,null,null,null,null,null,null,null,null,null,null,null,null,null,null,null,null,null,null,"Merlo"]
[null,null,null,null,null,null,null,null,null,null,"15142 Elaboración de aceites y grasas de origen vegetal refinadas",null,null,null,null,null,null,null,null,null,null,null,null,null,null,null,null,null,null,null,null,null,"Monte"]
[null,null,null,null,null,null,null,null,null,null,"15143 Elaboración de margarinas y grasas vegetales comestibles similares",null,null,null,null,null,null,null,null,null,null,null,null,null,null,null,null,null,null,null,null,null,"Monte Hermoso"]
[null,null,null,null,null,null,null,null,null,null,"15201 Elaboración de leches y productos lácteos deshidratados",null,null,null,null,null,null,null,null,null,null,null,null,null,null,null,null,null,null,null,null,null,"Moreno"]
[null,null,null,null,null,null,null,null,null,null,"15202 Elaboración de quesos",null,null,null,null,null,null,null,null,null,null,null,null,null,null,null,null,null,null,null,null,null,"Morón"]
[null,null,null,null,null,null,null,null,null,null,"15203 Elaboración industrial de helados",null,null,null,null,null,null,null,null,null,null,null,null,null,null,null,null,null,null,null,null,null,"Navarro"]
[null,null,null,null,null,null,null,null,null,null,"15209 Elaboración de productos lácteos n.c.p.",null,null,null,null,null,null,null,null,null,null,null,null,null,null,null,null,null,null,null,null,null,"Necochea"]
[null,null,null,null,null,null,null,null,null,null,"15311 Molienda de trigo",null,null,null,null,null,null,null,null,null,null,null,null,null,null,null,null,null,null,null,null,null,"Nueve de Julio"]
[null,null,null,null,null,null,null,null,null,null,"15312 Preparación de arroz",null,null,null,null,null,null,null,null,null,null,null,null,null,null,null,null,null,null,null,null,null,"Olavarría"]
[null,null,null,null,null,null,null,null,null,null,"15313 Preparación y molienda de legumbres y cereales -excepto trigo15320 Elaboración de almidones y productos derivados del almidón",null,null,null,null,null,null,null,null,null,null,null,null,null,null,null,null,null,null,null,null,null,"Patagones"]
[null,null,null,null,null,null,null,null,null,null,"15330 Elaboración de alimentos preparados para animales",null,null,null,null,null,null,null,null,null,null,null,null,null,null,null,null,null,null,null,null,null,"Pehuajó"]
[null,null,null,null,null,null,null,null,null,null,"15411 Elaboración de galletitas y bizcochos",null,null,null,null,null,null,null,null,null,null,null,null,null,null,null,null,null,null,null,null,null,"Pellegrini"]
[null,null,null,null,null,null,null,null,null,null,"15412 Elaboración industrial de productos de panadería, excluido galletitas y bizcochos",null,null,null,null,null,null,null,null,null,null,null,null,null,null,null,null,null,null,null,null,null,"Pergamino"]
[null,null,null,null,null,null,null,null,null,null,"15419 Elaboración de productos de panadería n.c.p.",null,null,null,null,null,null,null,null,null,null,null,null,null,null,null,null,null,null,null,null,null,"Pila"]
[null,null,null,null,null,null,null,null,null,null,"15420 Elaboración de azúcar",null,null,null,null,null,null,null,null,null,null,null,null,null,null,null,null,null,null,null,null,null,"Pilar"]
[null,null,null,null,null,null,null,null,null,null,"15430 Elaboración de cacao y chocolate y de productos de confitería",null,null,null,null,null,null,null,null,null,null,null,null,null,null,null,null,null,null,null,null,null,"Pinamar"]
[null,null,null,null,null,null,null,null,null,null,"15441 Elaboración de pastas alimenticias frescas",null,null,null,null,null,null,null,null,null,null,null,null,null,null,null,null,null,null,null,null,null,"Presidente Perón"]
[null,null,null,null,null,null,null,null,null,null,"15442 Elaboración de pastas alimenticias secas",null,null,null,null,null,null,null,null,null,null,null,null,null,null,null,null,null,null,null,null,null,"Puan"]
[null,null,null,null,null,null,null,null,null,null,"15491 Tostado, torrado y molienda de café; elaboración y molienda de hierbas aromáticas y especias",null,null,null,null,null,null,null,null,null,null,null,null,null,null,null,null,null,null,null,null,null,"Punta Indio"]
[null,null,null,null,null,null,null,null,null,null,"15492 Preparación de hojas de té",null,null,null,null,null,null,null,null,null,null,null,null,null,null,null,null,null,null,null,null,null,"Quilmes"]
[null,null,null,null,null,null,null,null,null,null,"15493 Elaboración de yerba mate",null,null,null,null,null,null,null,null,null,null,null,null,null,null,null,null,null,null,null,null,null,"Ramallo"]
[null,null,null,null,null,null,null,null,null,null,"15499 Elaboración de productos alimenticios n.c.p.",null,null,null,null,null,null,null,null,null,null,null,null,null,null,null,null,null,null,null,null,null,"Rauch"]
[null,null,null,null,null,null,null,null,null,null,"15511 Destilación de alcohol etílico",null,null,null,null,null,null,null,null,null,null,null,null,null,null,null,null,null,null,null,null,null,"Rivadavia"]
[null,null,null,null,null,null,null,null,null,null,"15512 Destilación, rectificación y mezcla de bebidas espiritosas",null,null,null,null,null,null,null,null,null,null,null,null,null,null,null,null,null,null,null,null,null,"Rojas"]
[null,null,null,null,null,null,null,null,null,null,"15521 Elaboración de vinos",null,null,null,null,null,null,null,null,null,null,null,null,null,null,null,null,null,null,null,null,null,"Roque Pérez"]
[null,null,null,null,null,null,null,null,null,null,"15529 Elaboración de sidra y otras bebidas alcohólicas fermentadas a partir de frutas",null,null,null,null,null,null,null,null,null,null,null,null,null,null,null,null,null,null,null,null,null,"Saavedra"]
[null,null,null,null,null,null,null,null,null,null,"15530 Elaboración de cerveza, bebidas malteadas y de malta",null,null,null,null,null,null,null,null,null,null,null,null,null,null,null,null,null,null,null,null,null,"Saladillo"]
[null,null,null,null,null,null,null,null,null,null,"15541 Elaboración de soda y aguas",null,null,null,null,null,null,null,null,null,null,null,null,null,null,null,null,null,null,null,null,null,"Salliqueló"]
[null,null,null,null,null,null,null,null,null,null,"15542 Elaboración de bebidas gaseosas, excepto soda",null,null,null,null,null,null,null,null,null,null,null,null,null,null,null,null,null,null,null,null,null,"Salto"]
[null,null,null,null,null,null,null,null,null,null,"15549 Elaboración de hielo, jugos envasados para diluir y otras bebidas no alcohólicas",null,null,null,null,null,null,null,null,null,null,null,null,null,null,null,null,null,null,null,null,null,"San Andrés de Giles"]
[null,null,null,null,null,null,null,null,null,null,"16001 Preparación de hojas de tabaco",null,null,null,null,null,null,null,null,null,null,null,null,null,null,null,null,null,null,null,null,null,"San Antonio de Areco"]
[null,null,null,null,null,null,null,null,null,null,"16009 Elaboración de cigarrillos y productos de tabaco n.c.p.",null,null,null,null,null,null,null,null,null,null,null,null,null,null,null,null,null,null,null,null,null,"San Cayetano"]
[null,null,null,null,null,null,null,null,null,null,"17111 Preparación de fibras textiles vegetales; desmotado de algodón",null,null,null,null,null,null,null,null,null,null,null,null,null,null,null,null,null,null,null,null,null,"San Fernando"]
[null,null,null,null,null,null,null,null,null,null,"17112 Lavado de lana",null,null,null,null,null,null,null,null,null,null,null,null,null,null,null,null,null,null,null,null,null,"San Isidro"]
[null,null,null,null,null,null,null,null,null,null,"17113 Fabricación de hilados de fibras textiles",null,null,null,null,null,null,null,null,null,null,null,null,null,null,null,null,null,null,null,null,null,"San Miguel"]
[null,null,null,null,null,null,null,null,null,null,"17114 Fabricación de tejidos textiles, incluso en hilanderías y tejedurías integradas",null,null,null,null,null,null,null,null,null,null,null,null,null,null,null,null,null,null,null,null,null,"San Nicolás"]
[null,null,null,null,null,null,null,null,null,null,"17120 Acabado de productos textiles",null,null,null,null,null,null,null,null,null,null,null,null,null,null,null,null,null,null,null,null,null,"San Pedro"]
[null,null,null,null,null,null,null,null,null,null,"17210 Fabricación de artículos confeccionados de materiales textiles, excepto prendas de vestir",null,null,null,null,null,null,null,null,null,null,null,null,null,null,null,null,null,null,null,null,null,"San Vicente"]
[null,null,null,null,null,null,null,null,null,null,"17220 Fabricación de tapices y alfombras",null,null,null,null,null,null,null,null,null,null,null,null,null,null,null,null,null,null,null,null,null,"Suipacha"]
[null,null,null,null,null,null,null,null,null,null,"17230 Fabricación de cuerdas, cordeles, bramantes y redes",null,null,null,null,null,null,null,null,null,null,null,null,null,null,null,null,null,null,null,null,null,"Tandil"]
[null,null,null,null,null,null,null,null,null,null,"17290 Fabricación de productos textiles n.c.p.",null,null,null,null,null,null,null,null,null,null,null,null,null,null,null,null,null,null,null,null,null,"Tapalqué"]
[null,null,null,null,null,null,null,null,null,null,"17301 Fabricación de medias",null,null,null,null,null,null,null,null,null,null,null,null,null,null,null,null,null,null,null,null,null,"Tigre"]
[null,null,null,null,null,null,null,null,null,null,"17302 Fabricación de suéteres y artículos similares de punto",null,null,null,null,null,null,null,null,null,null,null,null,null,null,null,null,null,null,null,null,null,"Tordillo"]
[null,null,null,null,null,null,null,null,null,null,"17309 Fabricación de tejidos y artículos de punto n.c.p.",null,null,null,null,null,null,null,null,null,null,null,null,null,null,null,null,null,null,null,null,null,"Tornquist"]
[null,null,null,null,null,null,null,null,null,null,"18111 Confección de ropa interior, prendas para dormir y para la playa",null,null,null,null,null,null,null,null,null,null,null,null,null,null,null,null,null,null,null,null,null,"Trenque Lauquen"]
[null,null,null,null,null,null,null,null,null,null,"18112 Confección de indumentaria de trabajo, uniformes y guardapolvos",null,null,null,null,null,null,null,null,null,null,null,null,null,null,null,null,null,null,null,null,null,"Tres Arroyos"]
[null,null,null,null,null,null,null,null,null,null,"18113 Confección de indumentaria para bebés y niños",null,null,null,null,null,null,null,null,null,null,null,null,null,null,null,null,null,null,null,null,null,"Tres de Febrero"]
[null,null,null,null,null,null,null,null,null,null,"18119 Fabricación de prendas de vestir n.c.p., excepto prendas de piel y de cuero",null,null,null,null,null,null,null,null,null,null,null,null,null,null,null,null,null,null,null,null,null,"Tres Lomas"]
[null,null,null,null,null,null,null,null,null,null,"18120 Confección de prendas y accesorios de vestir de cuero",null,null,null,null,null,null,null,null,null,null,null,null,null,null,null,null,null,null,null,null,null,"Veinticinco de Mayo"]
[null,null,null,null,null,null,null,null,null,null,"18200 Terminación y teñido de pieles; fabricación de artículos de piel",null,null,null,null,null,null,null,null,null,null,null,null,null,null,null,null,null,null,null,null,null,"Vicente López"]
[null,null,null,null,null,null,null,null,null,null,"19110 Curtido y terminación de cueros",null,null,null,null,null,null,null,null,null,null,null,null,null,null,null,null,null,null,null,null,null,"Villa Gesell"]
[null,null,null,null,null,null,null,null,null,null,"19120 Fabricación de maletas, bolsos de mano y similares, artículos de talabartería y artículos de cuero n.c.p.",null,null,null,null,null,null,null,null,null,null,null,null,null,null,null,null,null,null,null,null,null,"Villarino"]
[null,null,null,null,null,null,null,null,null,null,"19201 Fabricación de calzado de cuero, excepto el ortopédico",null,null,null,null,null,null,null,null,null,null,null,null,null,null,null,null,null,null,null,null,null,"Zárate"]
[null,null,null,null,null,null,null,null,null,null,"19202 Fabricación de calzado de tela, plástico, goma, caucho y otros materiales, excepto calzado ortopédico y de asbesto"]
[null,null,null,null,null,null,null,null,null,null,"19203 Fabricación de partes de calzado"]
[null,null,null,null,null,null,null,null,null,null,"20100 Aserrado y cepillado de madera"]
[null,null,null,null,null,null,null,null,null,null,"20210 Fabricación de hojas de madera para enchapado; fabricación de tableros contrachapados; tableros laminados; tableros de partículas y tableros y paneles n.c.p."]
[null,null,null,null,null,null,null,null,null,null,"20220 Fabricación de partes y piezas de carpintería para edificios y construcciones"]
[null,null,null,null,null,null,null,null,null,null,"20230 Fabricación de recipientes de madera"]
[null,null,null,null,null,null,null,null,null,null,"20290 Fabricación de productos de madera n.c.p.; fabricación de artículos de corcho, paja y materiales trenzables"]
[null,null,null,null,null,null,null,null,null,null,"21010 Fabricación de pasta de madera, papel y cartón"]
[null,null,null,null,null,null,null,null,null,null,"21020 Fabricación de papel y cartón ondulado y de envases de papel y cartón"]
[null,null,null,null,null,null,null,null,null,null,"21091 Fabricación de artículos de papel y cartón de uso doméstico e higiénico sanitario"]
[null,null,null,null,null,null,null,null,null,null,"21099 Fabricación de artículos de papel y cartón n.c.p."]
[null,null,null,null,null,null,null,null,null,null,"22110 Edición de libros, folletos, partituras y otras publicaciones"]
[null,null,null,null,null,null,null,null,null,null,"22120 Edición de periódicos, revistas y publicaciones periódicas"]
[null,null,null,null,null,null,null,null,null,null,"22130 Edición de grabaciones"]
[null,null,null,null,null,null,null,null,null,null,"22190 Edición n.c.p."]
[null,null,null,null,null,null,null,null,null,null,"22210 Impresión"]
[null,null,null,null,null,null,null,null,null,null,"22220 Servicios relacionados con la impresión"]
[null,null,null,null,null,null,null,null,null,null,"22300 Reproducción de grabaciones"]
[null,null,null,null,null,null,null,null,null,null,"23100 Fabricación de productos de hornos de coque"]
[null,null,null,null,null,null,null,null,null,null,"23200 Fabricación de productos de la refinación del petróleo"]
[null,null,null,null,null,null,null,null,null,null,"23300 Fabricación de combustible nuclear"]
[null,null,null,null,null,null,null,null,null,null,"24111 Fabricación de gases comprimidos y licuados."]
[null,null,null,null,null,null,null,null,null,null,"24112 Fabricación de curtientes naturales y sintéticos."]
[null,null,null,null,null,null,null,null,null,null,"24113 Fabricación de materias colorantes básicas, excepto pigmentos preparados."]
[null,null,null,null,null,null,null,null,null,null,"24118 Fabricación de materias químicas inorgánicas básicas, n.c.p."]
[null,null,null,null,null,null,null,null,null,null,"24119 Fabricación de materias químicas orgánicas básicas, n.c.p."]
[null,null,null,null,null,null,null,null,null,null,"24120 Fabricación de abonos y compuestos de nitrógeno"]
[null,null,null,null,null,null,null,null,null,null,"24130 Fabricación de plásticos en formas primarias y de caucho sintético"]
[null,null,null,null,null,null,null,null,null,null,"24210 Fabricación de plaguicidas y productos químicos de uso agropecuario"]
[null,null,null,null,null,null,null,null,null,null,"24220 Fabricación de pinturas; barnices y productos de revestimiento similares; tintas de imprenta y masillas"]
[null,null,null,null,null,null,null,null,null,null,"24231 Fabricación de medicamentos de uso humano y productos farmacéuticos"]
[null,null,null,null,null,null,null,null,null,null,"24232 Fabricación de medicamentos de uso veterinario"]
[null,null,null,null,null,null,null,null,null,null,"24239 Fabricación de productos de laboratorio, sustancias químicas medicinales y productos botánicos n.c.p."]
[null,null,null,null,null,null,null,null,null,null,"24241 Fabricación de jabones y preparados de limpieza"]
[null,null,null,null,null,null,null,null,null,null,"24249 Fabricación de cosméticos, perfumes y productos de higiene y tocador"]
[null,null,null,null,null,null,null,null,null,null,"24290 Fabricación de productos químicos n.c.p."]
[null,null,null,null,null,null,null,null,null,null,"24300 Fabricación de fibras manufacturadas"]
[null,null,null,null,null,null,null,null,null,null,"25111 Fabricación de cubiertas y cámaras"]
[null,null,null,null,null,null,null,null,null,null,"25112 Recauchutado y renovación de cubiertas"]
[null,null,null,null,null,null,null,null,null,null,"25190 Fabricación de productos de caucho n.c.p."]
[null,null,null,null,null,null,null,null,null,null,"25201 Fabricación de envases plásticos"]
[null,null,null,null,null,null,null,null,null,null,"25209 Fabricación de productos plásticos en formas básicas y artículos de plástico n.c.p., excepto muebles"]
[null,null,null,null,null,null,null,null,null,null,"26101 Fabricación de envases de vidrio"]
[null,null,null,null,null,null,null,null,null,null,"26102 Fabricación y elaboración de vidrio plano"]
[null,null,null,null,null,null,null,null,null,null,"26109 Fabricación de productos de vidrio n.c.p."]
[null,null,null,null,null,null,null,null,null,null,"26911 Fabricación de artículos sanitarios de cerámica"]
[null,null,null,null,null,null,null,null,null,null,"26919 Fabricación de artículos de cerámica no refractaria para uso no estructural n.c.p."]
[null,null,null,null,null,null,null,null,null,null,"26920 Fabricación de productos de cerámica refractaria"]
[null,null,null,null,null,null,null,null,null,null,"26930 Fabricación de productos de arcilla y cerámica no refractaria para uso estructural"]
[null,null,null,null,null,null,null,null,null,null,"26941 Elaboración de cemento"]
[null,null,null,null,null,null,null,null,null,null,"26942 Elaboración de cal y yeso"]
[null,null,null,null,null,null,null,null,null,null,"26951 Fabricación de mosaicos"]
[null,null,null,null,null,null,null,null,null,null,"26959 Fabricación de artículos de cemento, fibrocemento y yeso excepto mosaicos"]
[null,null,null,null,null,null,null,null,null,null,"26960 Corte, tallado y acabado de la piedra"]
[null,null,null,null,null,null,null,null,null,null,"26991 Elaboración primaria n.c.p. de minerales no metálicos"]
[null,null,null,null,null,null,null,null,null,null,"26999 Fabricación de productos minerales no metálicos n.c.p."]
[null,null,null,null,null,null,null,null,null,null,"27100 Industrias básicas de hierro y acero"]
[null,null,null,null,null,null,null,null,null,null,"27201 Elaboración de aluminio primario y semielaborados de aluminio"]
[null,null,null,null,null,null,null,null,null,null,"27209 Producción de metales no ferrosos n.c.p. y sus semielaborados"]
[null,null,null,null,null,null,null,null,null,null,"27310 Fundición de hierro y acero"]
[null,null,null,null,null,null,null,null,null,null,"27320 Fundición de metales no ferrosos"]
[null,null,null,null,null,null,null,null,null,null,"28110 Fabricación de productos metálicos para uso estructural y montaje estructural"]
[null,null,null,null,null,null,null,null,null,null,"28120 Fabricación de tanques, depósitos y recipientes de metal"]
[null,null,null,null,null,null,null,null,null,null,"28130 Fabricación de generadores de vapor"]
[null,null,null,null,null,null,null,null,null,null,"28910 Forjado, prensado, estampado y laminado de metales; pulvimetalurgia"]
[null,null,null,null,null,null,null,null,null,null,"28920 Tratamiento y revestimiento de metales; obras de ingeniería mecánica en general realizadas a cambio de una retribución o por contrata"]
[null,null,null,null,null,null,null,null,null,null,"28930 Fabricación de artículos de cuchillería, herramientas de mano y artículos de ferretería"]
[null,null,null,null,null,null,null,null,null,null,"28991 Fabricación de envases metálicos"]
[null,null,null,null,null,null,null,null,null,null,"28999 Fabricación de productos metálicos n.c.p."]
[null,null,null,null,null,null,null,null,null,null,"29110 Fabricación de motores y turbinas, excepto motores para aeronaves, vehículos automotores y motocicletas"]
[null,null,null,null,null,null,null,null,null,null,"29120 Fabricación de bombas; compresores; grifos y válvulas"]
[null,null,null,null,null,null,null,null,null,null,"29130 Fabricación de cojinetes; engranajes; trenes de engranaje y piezas de transmisión"]
[null,null,null,null,null,null,null,null,null,null,"29140 Fabricación de hornos; hogares y quemadores"]
[null,null,null,null,null,null,null,null,null,null,"29150 Fabricación de equipo de elevación y manipulación"]
[null,null,null,null,null,null,null,null,null,null,"29190 Fabricación de maquinaria de uso general n.c.p."]
[null,null,null,null,null,null,null,null,null,null,"29211 Fabricación de tractores"]
[null,null,null,null,null,null,null,null,null,null,"29219 Fabricación de maquinaria agropecuaria y forestal, excepto tractores"]
[null,null,null,null,null,null,null,null,null,null,"29220 Fabricación de máquinas herramienta"]
[null,null,null,null,null,null,null,null,null,null,"29230 Fabricación de maquinaria metalúrgica"]
[null,null,null,null,null,null,null,null,null,null,"29240 Fabricación de maquinaria para la explotación de minas y canteras y para obras de construcción"]
[null,null,null,null,null,null,null,null,null,null,"29250 Fabricación de maquinaria para la elaboración de alimentos, bebidas y tabaco"]
[null,null,null,null,null,null,null,null,null,null,"29260 Fabricación de maquinaria para la elaboración de productos textiles, prendas de vestir y cueros"]
[null,null,null,null,null,null,null,null,null,null,"29270 Fabricación de armas y municiones"]
[null,null,null,null,null,null,null,null,null,null,"29290 Fabricación de maquinaria de uso especial n.c.p."]
[null,null,null,null,null,null,null,null,null,null,"29301 Fabricación de cocinas, calefones, estufas y calefactores no eléctricos"]
[null,null,null,null,null,null,null,null,null,null,"29302 Fabricación de heladeras, \"freezers\", lavarropas y secarropas"]
[null,null,null,null,null,null,null,null,null,null,"29309 Fabricación de aparatos de uso doméstico n.c.p."]
[null,null,null,null,null,null,null,null,null,null,"30000 Fabricación de maquinaria de oficina, contabilidad e informática"]
[null,null,null,null,null,null,null,null,null,null,"31100 Fabricación de motores, generadores y transformadores eléctricos"]
[null,null,null,null,null,null,null,null,null,null,"31200 Fabricación de aparatos de distribución y control de la energía eléctrica"]
[null,null,null,null,null,null,null,null,null,null,"31300 Fabricación de hilos y cables aislados"]
[null,null,null,null,null,null,null,null,null,null,"31400 Fabricación de acumuladores, pilas y baterías primarias"]
[null,null,null,null,null,null,null,null,null,null,"31500 Fabricación de lámparas eléctricas y equipo de iluminación"]
[null,null,null,null,null,null,null,null,null,null,"31900 Fabricación de equipo eléctrico n.c.p."]
[null,null,null,null,null,null,null,null,null,null,"32100 Fabricación de tubos, válvulas y otros componentes electrónicos"]
[null,null,null,null,null,null,null,null,null,null,"32200 Fabricación de transmisores de radio y televisión y de aparatos para telefonía y telegrafía con hilos"]
[null,null,null,null,null,null,null,null,null,null,"32300 Fabricación de receptores de radio y televisión, aparatos de grabación y reproducción de sonido y video, y productos conexos"]
[null,null,null,null,null,null,null,null,null,null,"33110 Fabricación de equipo médico y quirúrgico y de aparatos ortopédicos"]
[null,null,null,null,null,null,null,null,null,null,"33120 Fabricación de instrumentos y aparatos para medir, verificar, ensayar, navegar y otros fines, excepto el equipo de control de procesos industriales"]
[null,null,null,null,null,null,null,null,null,null,"33130 Fabricación de equipo de control de procesos industriales"]
[null,null,null,null,null,null,null,null,null,null,"33200 Fabricación de instrumentos de óptica y equipo fotográfico"]
[null,null,null,null,null,null,null,null,null,null,"33300 Fabricación de relojes"]
[null,null,null,null,null,null,null,null,null,null,"34100 Fabricación de vehículos automotores"]
[null,null,null,null,null,null,null,null,null,null,"34200 Fabricación de carrocerías para vehículos automotores; fabricación de remolques y semirremolques"]
[null,null,null,null,null,null,null,null,null,null,"34300 Fabricación de partes; piezas y accesorios para vehículos automotores y sus motores"]
[null,null,null,null,null,null,null,null,null,null,"35110 Construcción y reparación de buques"]
[null,null,null,null,null,null,null,null,null,null,"35120 Construcción y reparación de embarcaciones de recreo y deporte"]
[null,null,null,null,null,null,null,null,null,null,"35200 Fabricación de locomotoras y de material rodante para ferrocarriles y tranvías"]
[null,null,null,null,null,null,null,null,null,null,"35300 Fabricación y reparación de aeronaves"]
[null,null,null,null,null,null,null,null,null,null,"35910 Fabricación de motocicletas"]
[null,null,null,null,null,null,null,null,null,null,"35920 Fabricación de bicicletas y de sillones de ruedas ortopédicos"]
[null,null,null,null,null,null,null,null,null,null,"35990 Fabricación de equipo de transporte n.c.p."]
[null,null,null,null,null,null,null,null,null,null,"36101 Fabricación de muebles y partes de muebles, principalmente de madera"]
[null,null,null,null,null,null,null,null,null,null,"36102 Fabricación de muebles y partes de muebles, excepto los que son principalmente de madera"]
[null,null,null,null,null,null,null,null,null,null,"36103 Fabricación de somieres y colchones"]
[null,null,null,null,null,null,null,null,null,null,"36910 Fabricación de joyas y artículos conexos"]
[null,null,null,null,null,null,null,null,null,null,"36920 Fabricación de instrumentos de música"]
[null,null,null,null,null,null,null,null,null,null,"36930 Fabricación de artículos de deporte"]
[null,null,null,null,null,null,null,null,null,null,"36940 Fabricación de juegos y juguetes"]
[null,null,null,null,null,null,null,null,null,null,"36991 Fabricación de lápices, lapiceras, bolígrafos, sellos y artículos similares para oficinas y artistas"]
[null,null,null,null,null,null,null,null,null,null,"36992 Fabricación de cepillos y pinceles"]
[null,null,null,null,null,null,null,null,null,null,"36999 Industrias manufactureras n.c.p."]
[null,null,null,null,null,null,null,null,null,null,"37100 Reciclamiento de desperdicios y desechos metálicos"]
[null,null,null,null,null,null,null,null,null,null,"37200 Reciclamiento de desperdicios y desechos no metálicos"]
[null,null,null,null,null,null,null,null,null,null,"40111 Generación de energía térmica convencional"]
[null,null,null,null,null,null,null,null,null,null,"40112 Generación de energía térmica nuclear"]
[null,null,null,null,null,null,null,null,null,null,"40113 Generación de energía hidráulica"]
[null,null,null,null,null,null,null,null,null,null,"40119 Generación de energía n.c.p."]
[null,null,null,null,null,null,null,null,null,null,"40120 Transporte de energía eléctrica"]
[null,null,null,null,null,null,null,null,null,null,"40130 Distribución de energía eléctrica"]
[null,null,null,null,null,null,null,null,null,null,"40200 Fabricación de gas y distribución de combustibles gaseosos por tuberías"]
[null,null,null,null,null,null,null,null,null,null,"40300 Suministro de vapor y agua caliente"]
[null,null,null,null,null,null,null,null,null,null,"41001 Captación, depuración y distribución de agua de fuentes subterráneas"]
[null,null,null,null,null,null,null,null,null,null,"41002 Captación, depuración y distribución de agua de fuentes superficiales"]
[null,null,null,null,null,null,null,null,null,null,"45110 Demolición y voladura de edificios y de sus partes"]
[null,null,null,null,null,null,null,null,null,null,"45120 Perforación y sondeo, excepto: perforación de pozos de petróleo, de gas, de minas e hidráulicos y prospección de yacimientos de petróleo"]
[null,null,null,null,null,null,null,null,null,null,"45190 Movimiento de suelos y preparación de terrenos para obras n.c.p."]
[null,null,null,null,null,null,null,null,null,null,"45210 Construcción, reforma y reparación de edificios residenciales"]
[null,null,null,null,null,null,null,null,null,null,"45220 Construcción, reforma y reparación de edificios no residenciales"]
[null,null,null,null,null,null,null,null,null,null,"45231 Construcción, reforma y reparación de obras hidráulicas"]
[null,null,null,null,null,null,null,null,null,null,"45239 Construcción, reforma y reparación de obras de infraestructura de transporte n.c.p. excepto los edificios para tráfico y comunicaciones, estaciones, terminales y edificios asociados"]
[null,null,null,null,null,null,null,null,null,null,"45240 Construcción, reforma y reparación de redes de electricidad, de gas, de agua, de telecomunicaciones y de otros servicios"]
[null,null,null,null,null,null,null,null,null,null,"45251 Perforación de pozos de agua"]
[null,null,null,null,null,null,null,null,null,null,"45252 Actividades de hincado de pilotes, cimentación y otros trabajos de hormigón armado"]
[null,null,null,null,null,null,null,null,null,null,"45259 Actividades especializadas de construcción n.c.p."]
[null,null,null,null,null,null,null,null,null,null,"45290 Obras de ingeniería civil n.c.p."]
[null,null,null,null,null,null,null,null,null,null,"45311 Instalación de ascensores, montacargas y escaleras mecánicas"]
[null,null,null,null,null,null,null,null,null,null,"45312 Instalación de sistemas de iluminación, control y señalización eléctrica para el transporte"]
[null,null,null,null,null,null,null,null,null,null,"45319 Ejecución y mantenimiento de instalaciones eléctricas y electrónicas n.c.p."]
[null,null,null,null,null,null,null,null,null,null,"45320 Aislamiento térmico, acústico, hídrico y antivibratorio"]
[null,null,null,null,null,null,null,null,null,null,"45330 Instalaciones de gas, agua, sanitarios y de climatización, con sus artefactos conexos"]
[null,null,null,null,null,null,null,null,null,null,"45390 Instalaciones para edificios y obras de ingeniería civil n.c.p."]
[null,null,null,null,null,null,null,null,null,null,"45410 Instalaciones de carpintería, herrería de obra y artística"]
[null,null,null,null,null,null,null,null,null,null,"45420 Terminación y revestimiento de paredes y pisos"]
[null,null,null,null,null,null,null,null,null,null,"45430 Colocación de cristales en obra"]
[null,null,null,null,null,null,null,null,null,null,"45440 Pintura y trabajos de decoración"]
[null,null,null,null,null,null,null,null,null,null,"45490 Terminación de edificios y obras de ingeniería civil n.c.p."]
[null,null,null,null,null,null,null,null,null,null,"45500 Alquiler de equipo de construcción o demolición dotado de operarios"]
[null,null,null,null,null,null,null,null,null,null,"50111 Venta de autos, camionetas y utilitarios, nuevos"]
[null,null,null,null,null,null,null,null,null,null,"50119 Venta de vehículos automotores, nuevos n.c.p."]
[null,null,null,null,null,null,null,null,null,null,"50121 Venta de autos, camionetas y utilitarios usados"]
[null,null,null,null,null,null,null,null,null,null,"50129 Venta de vehículos automotores usados n.c.p."]
[null,null,null,null,null,null,null,null,null,null,"50210 Lavado automático y manual"]
[null,null,null,null,null,null,null,null,null,null,"50221 Reparación de cámaras y cubiertas"]
[null,null,null,null,null,null,null,null,null,null,"50222 Reparación de amortiguadores, alineación de dirección y balanceo de ruedas"]
[null,null,null,null,null,null,null,null,null,null,"50230 Instalación y reparación de parabrisas, lunetas y ventanillas, alarmas, cerraduras, radios, sistemas de climatización automotor y grabado de cristales"]
[null,null,null,null,null,null,null,null,null,null,"50240 Tapizado y retapizado"]
[null,null,null,null,null,null,null,null,null,null,"50250 Reparaciones eléctricas, del tablero e instrumental; reparación y recarga de baterías"]
[null,null,null,null,null,null,null,null,null,null,"50260 Reparación y pintura de carrocerías; colocación y reparación de guardabarros y protecciones exteriores"]
[null,null,null,null,null,null,null,null,null,null,"50291 Instalación y reparación de caños de escape"]
[null,null,null,null,null,null,null,null,null,null,"50292 Mantenimiento y reparación de frenos"]
[null,null,null,null,null,null,null,null,null,null,"50299 Mantenimiento y reparación del motor n.c.p.; mecánica integral"]
[null,null,null,null,null,null,null,null,null,null,"50310 Venta al por mayor de partes, piezas y accesorios de vehículos automotores"]
[null,null,null,null,null,null,null,null,null,null,"50321 Venta al por menor de cámaras y cubiertas"]
[null,null,null,null,null,null,null,null,null,null,"50322 Venta al por menor de baterías"]
[null,null,null,null,null,null,null,null,null,null,"50329 Venta al por menor de partes, piezas y accesorios excepto cámaras y cubiertas y baterías"]
[null,null,null,null,null,null,null,null,null,null,"50401 Venta de motocicletas y de sus partes, piezas y accesorios"]
[null,null,null,null,null,null,null,null,null,null,"50402 Mantenimiento y reparación de motocicletas"]
[null,null,null,null,null,null,null,null,null,null,"50500 Venta al por menor de combustible para vehículos automotores y motocicletas"]
[null,null,null,null,null,null,null,null,null,null,"51111 Venta al por mayor en comisión o consignación de productos agrícolas"]
[null,null,null,null,null,null,null,null,null,null,"51112 Venta al por mayor en comisión o consignación de productos pecuarios"]
[null,null,null,null,null,null,null,null,null,null,"51191 Venta al por mayor en comisión o consignación de alimentos, bebidas y tabaco"]
[null,null,null,null,null,null,null,null,null,null,"51192 Venta al por mayor en comisión o consignación de productos textiles, prendas de vestir, calzado excepto el ortopédico, artículos de marroquinería, paraguas y similares y productos de cuero n.c.p."]
[null,null,null,null,null,null,null,null,null,null,"51193 Venta al por mayor en comisión o consignación de madera y materiales para la construcción"]
[null,null,null,null,null,null,null,null,null,null,"51194 Venta al por mayor en comisión o consignación de energía eléctrica, gas y combustibles"]
[null,null,null,null,null,null,null,null,null,null,"51195 Venta al por mayor en comisión o consignación de minerales, metales y productos químicos industriales"]
[null,null,null,null,null,null,null,null,null,null,"51196 Venta al por mayor en comisión o consignación de maquinaria, equipo profesional industrial y comercial, embarcaciones y aeronaves"]
[null,null,null,null,null,null,null,null,null,null,"51197 Venta al por mayor en comisión o consignación de papel, cartón, libros, revistas, diarios, materiales de embalaje y artículos de librería"]
[null,null,null,null,null,null,null,null,null,null,"51199 Venta al por mayor en comisión o consignación de mercaderías n.c.p."]
[null,null,null,null,null,null,null,null,null,null,"51211 Venta al por mayor de materias primas agrícolas y de la silvicultura"]
[null,null,null,null,null,null,null,null,null,null,"51212 Venta al por mayor de materias primas pecuarias incluso animales vivos"]
[null,null,null,null,null,null,null,null,null,null,"51221 Venta al por mayor de fiambres, quesos y productos lácteos"]
[null,null,null,null,null,null,null,null,null,null,"51222 Venta al por mayor de carnes rojas, menudencias y chacinados frescos; productos de granja y de la caza"]
[null,null,null,null,null,null,null,null,null,null,"51223 Venta al por mayor de pescado"]
[null,null,null,null,null,null,null,null,null,null,"51224 Venta al por mayor y empaque de frutas, de legumbres y hortalizas frescas"]
[null,null,null,null,null,null,null,null,null,null,"51225 Venta al por mayor de pan, productos de confitería y pastas frescas"]
[null,null,null,null,null,null,null,null,null,null,"51226 Venta al por mayor de chocolates, golosinas y productos para kioscos y polirrubros n.c.p., excepto cigarrillos"]
[null,null,null,null,null,null,null,null,null,null,"51227 Venta al por mayor de aceites, azúcar, café, té, yerba mate y otras infusiones y especias y condimentos"]
[null,null,null,null,null,null,null,null,null,null,"51229 Venta al por mayor de productos alimenticios n.c.p."]
[null,null,null,null,null,null,null,null,null,null,"51231 Venta al por mayor de bebidas alcohólicas"]
[null,null,null,null,null,null,null,null,null,null,"51232 Venta al por mayor de bebidas no alcohólicas"]
[null,null,null,null,null,null,null,null,null,null,"51240 Venta al por mayor de cigarrillos y productos de tabaco"]
[null,null,null,null,null,null,null,null,null,null,"51311 Venta al por mayor de productos textiles excepto prendas y accesorios de vestir"]
[null,null,null,null,null,null,null,null,null,null,"51312 Venta al por mayor de prendas y accesorios de vestir"]
[null,null,null,null,null,null,null,null,null,null,"51313 Venta al por mayor de calzado excepto el ortopédico"]
[null,null,null,null,null,null,null,null,null,null,"51314 Venta al por mayor de artículos de cueros, pieles, marroquinería y talabartería, paraguas y similares"]
[null,null,null,null,null,null,null,null,null,null,"51321 Venta al por mayor de libros, revistas y diarios"]
[null,null,null,null,null,null,null,null,null,null,"51322 Venta al por mayor de papel, cartón, materiales de embalaje y artículos de librería"]
[null,null,null,null,null,null,null,null,null,null,"51331 Venta al por mayor de productos farmacéuticos y veterinarios"]
[null,null,null,null,null,null,null,null,null,null,"51332 Venta al por mayor de productos cosméticos, de tocador y de perfumería"]
[null,null,null,null,null,null,null,null,null,null,"51333 Venta al por mayor de instrumental médico y odontológico y artículos ortopédicos"]
[null,null,null,null,null,null,null,null,null,null,"51341 Venta al por mayor de artículos de óptica y de fotografía"]
[null,null,null,null,null,null,null,null,null,null,"51342 Venta al por mayor de artículos de relojería, joyería y fantasías"]
[null,null,null,null,null,null,null,null,null,null,"51351 Venta al por mayor de muebles excepto de oficina; artículos de mimbre y corcho; colchones y somieres"]
[null,null,null,null,null,null,null,null,null,null,"51352 Venta al por mayor de artículos de iluminación"]
[null,null,null,null,null,null,null,null,null,null,"51353 Venta al por mayor de artículos de bazar y menaje"]
[null,null,null,null,null,null,null,null,null,null,"51354 Venta al por mayor de artefactos para el hogar, eléctricos, a gas, kerosene u otros combustibles"]
[null,null,null,null,null,null,null,null,null,null,"51355 Venta al por mayor de instrumentos musicales, equipos de sonido, casetes de audio y video, y discos de audio y video"]
[null,null,null,null,null,null,null,null,null,null,"51391 Venta al por mayor de materiales y productos de limpieza"]
[null,null,null,null,null,null,null,null,null,null,"51392 Venta al por mayor de juguetes"]
[null,null,null,null,null,null,null,null,null,null,"51393 Venta al por mayor de bicicletas y rodados similares"]
[null,null,null,null,null,null,null,null,null,null,"51394 Venta al por mayor de artículos de esparcimiento y deportes"]
[null,null,null,null,null,null,null,null,null,null,"51395 Venta al por mayor de papeles para pared, revestimiento para pisos de goma, plástico y textiles, y artículos similares para la decoración"]
[null,null,null,null,null,null,null,null,null,null,"51399 Venta al por mayor artículos de uso doméstico y/o personal n.c.p"]
[null,null,null,null,null,null,null,null,null,null,"51411 Venta al por mayor de combustibles y lubricantes para automotores"]
[null,null,null,null,null,null,null,null,null,null,"51419 Venta al por mayor de combustibles y lubricantes -excepto para automotores, gas en garrafas- leña y carbón"]
[null,null,null,null,null,null,null,null,null,null,"51420 Venta al por mayor de metales y minerales metalíferos"]
[null,null,null,null,null,null,null,null,null,null,"51431 Venta al por mayor de aberturas"]
[null,null,null,null,null,null,null,null,null,null,"51432 Venta al por mayor de productos de madera excepto muebles"]
[null,null,null,null,null,null,null,null,null,null,"51433 Venta al por mayor de artículos de ferretería "]
[null,null,null,null,null,null,null,null,null,null,"51434 Venta al por mayor de pinturas y productos conexos"]
[null,null,null,null,null,null,null,null,null,null,"51435 Venta al por mayor de cristales y espejos"]
[null,null,null,null,null,null,null,null,null,null,"51439 Venta al por mayor de artículos para la construcción n.c.p."]
[null,null,null,null,null,null,null,null,null,null,"51491 Venta al por mayor de productos intermedios n.c.p., desperdicios y desechos textiles"]
[null,null,null,null,null,null,null,null,null,null,"51492 Venta al por mayor de productos intermedios n.c.p., desperdicios y desechos de papel y cartón"]
[null,null,null,null,null,null,null,null,null,null,"51493 Venta al por mayor de productos intermedios, desperdicios y desechos de vidrio, de plástico, de caucho y goma, y químicos"]
[null,null,null,null,null,null,null,null,null,null,"51494 Venta al por mayor de productos intermedios n.c.p., desperdicios y desechos metálicos"]
[null,null,null,null,null,null,null,null,null,null,"51499 Venta al por mayor de productos intermedios, desperdicios y desechos n.c.p."]
[null,null,null,null,null,null,null,null,null,null,"51511 Venta al por mayor de máquinas, equipos e implementos de uso en los sectores agropecuario, jardinería, silvicultura, pesca y caza"]
[null,null,null,null,null,null,null,null,null,null,"51512 Venta al por mayor de máquinas, equipos e implementos de uso en la elaboración de alimentos, bebidas y tabaco"]
[null,null,null,null,null,null,null,null,null,null,"51513 Venta al por mayor de máquinas, equipos e implementos de uso en la fabricación de textiles, prendas y accesorios de vestir, calzado, artículos de cuero y marroquinería"]
[null,null,null,null,null,null,null,null,null,null,"51514 Venta al por mayor de máquinas, equipos e implementos de uso en imprentas, artes gráficas y actividades conexas"]
[null,null,null,null,null,null,null,null,null,null,"51515 Venta al por mayor de máquinas, equipos e implementos de uso médico y paramédico"]
[null,null,null,null,null,null,null,null,null,null,"51516 Venta al por mayor de máquinas, equipos e implementos de uso en la industria del plástico y el caucho"]
[null,null,null,null,null,null,null,null,null,null,"51519 Venta al por mayor de máquinas, equipos e implementos de uso especial n.c.p."]
[null,null,null,null,null,null,null,null,null,null,"51520 Venta al por mayor de máquinas-herramienta de uso general"]
[null,null,null,null,null,null,null,null,null,null,"51530 Venta al por mayor de vehículos, equipos y máquinas para el transporte ferroviario, aéreo y de navegación"]
[null,null,null,null,null,null,null,null,null,null,"51541 Venta al por mayor de muebles e instalaciones para oficinas"]
[null,null,null,null,null,null,null,null,null,null,"51542 Venta al por mayor de muebles e instalaciones para la industria, el comercio y los servicios n.c.p."]
[null,null,null,null,null,null,null,null,null,null,"51591 Venta al por mayor de equipo profesional y científico e instrumentos de medida y de control n.c.p."]
[null,null,null,null,null,null,null,null,null,null,"51592 Venta al por mayor de equipos informáticos y máquinas electrónicas de escribir y calcular ;Venta al por mayor de máquinas y equipos de comunicaciones, control y seguridad"]
[null,null,null,null,null,null,null,null,null,null,"51599 Venta al por mayor de máquinas, equipo y materiales conexos n.c.p."]
[null,null,null,null,null,null,null,null,null,null,"51900 Venta al por mayor de mercancías n.c.p."]
[null,null,null,null,null,null,null,null,null,null,"52111 Venta al por menor en hipermercados con predominio de productos alimenticios y bebidas"]
[null,null,null,null,null,null,null,null,null,null,"52112 Venta al por menor en supermercados con predominio productos de alimenticios y bebidas"]
[null,null,null,null,null,null,null,null,null,null,"52113 Venta al por menor en minimercados con predominio de productos alimenticios y bebidas"]
[null,null,null,null,null,null,null,null,null,null,"52119 Venta al por menor en kioscos, polirrubros y comercios no especializados n.c.p."]
[null,null,null,null,null,null,null,null,null,null,"52120 Venta al por menor excepto la especializada, sin predominio de productos alimenticios y bebidas"]
[null,null,null,null,null,null,null,null,null,null,"52211 Venta al por menor principalmente de fiambres, quesos y productos lácteos"]
[null,null,null,null,null,null,null,null,null,null,"52212 Venta al por menor de productos de almacén y dietética"]
[null,null,null,null,null,null,null,null,null,null,"52221 Venta al por menor de carnes rojas, menudencias y chacinados frescos"]
[null,null,null,null,null,null,null,null,null,null,"52222 Venta al por menor de huevos, carne de aves y productos de granja y de la caza n.c.p."]
[null,null,null,null,null,null,null,null,null,null,"52230 Venta al por menor de frutas, legumbres y hortalizas frescas"]
[null,null,null,null,null,null,null,null,null,null,"52241 Venta al por menor de pan y productos de panadería"]
[null,null,null,null,null,null,null,null,null,null,"52242 Venta al por menor de bombones, golosinas y demás productos de confitería"]
[null,null,null,null,null,null,null,null,null,null,"52250 Venta al por menor de bebidas"]
[null,null,null,null,null,null,null,null,null,null,"52291 Venta al por menor de pescados y productos de la pesca"]
[null,null,null,null,null,null,null,null,null,null,"52299 Venta al por menor de productos alimenticios n.c.p. y tabaco, en comercios especializados"]
[null,null,null,null,null,null,null,null,null,null,"52311 Venta al por menor de productos farmacéuticos y de herboristería"]
[null,null,null,null,null,null,null,null,null,null,"52312 Venta al por menor de productos cosméticos, de tocador y de perfumería"]
[null,null,null,null,null,null,null,null,null,null,"52313 Venta al por menor de instrumental médico y odontológico y artículos ortopédicos"]
[null,null,null,null,null,null,null,null,null,null,"52321 Venta al por menor de hilados, tejidos y artículos de mercería"]
[null,null,null,null,null,null,null,null,null,null,"52322 Venta al por menor de confecciones para el hogar"]
[null,null,null,null,null,null,null,null,null,null,"52329 Venta al por menor de artículos textiles n.c.p. excepto prendas de vestir"]
[null,null,null,null,null,null,null,null,null,null,"52331 Venta al por menor de ropa interior, medias, prendas para dormir y para la playa"]
[null,null,null,null,null,null,null,null,null,null,"52332 Venta al por menor de indumentaria de trabajo, uniformes y guardapolvos"]
[null,null,null,null,null,null,null,null,null,null,"52333 Venta al por menor de indumentaria para bebés y niños"]
[null,null,null,null,null,null,null,null,null,null,"52339 Venta al por menor de prendas y accesorios de vestir n.c.p. excepto calzado, artículos de marroquinería, paraguas y similares"]
[null,null,null,null,null,null,null,null,null,null,"52341 Venta al por menor de artículos regionales y de talabartería"]
[null,null,null,null,null,null,null,null,null,null,"52342 Venta al por menor de calzado excepto el ortopédico"]
[null,null,null,null,null,null,null,null,null,null,"52349 Venta al por menor de artículos de marroquinería, paraguas y similares n.c.p."]
[null,null,null,null,null,null,null,null,null,null,"52351 Venta al por menor de muebles excepto para la oficina, la industria, el comercio y los servicios; artículos de mimbre y corcho"]
[null,null,null,null,null,null,null,null,null,null,"52352 Venta al por menor de colchones y somieres"]
[null,null,null,null,null,null,null,null,null,null,"52353 Venta al por menor de artículos de iluminación"]
[null,null,null,null,null,null,null,null,null,null,"52354 Venta al por menor de artículos de bazar y menaje"]
[null,null,null,null,null,null,null,null,null,null,"52355 Venta al por menor de artefactos para el hogar, eléctricos, a gas, a kerosene u otros combustibles"]
[null,null,null,null,null,null,null,null,null,null,"52356 Venta al por menor de instrumentos musicales, equipos de sonido, casetes de audio y video, discos de audio y video"]
[null,null,null,null,null,null,null,null,null,null,"52359 Venta al por menor de artículos para el hogar n.c.p."]
[null,null,null,null,null,null,null,null,null,null,"52361 Venta al por menor de aberturas"]
[null,null,null,null,null,null,null,null,null,null,"52362 Venta al por menor de maderas y artículos de madera y corcho excepto muebles"]
[null,null,null,null,null,null,null,null,null,null,"52363 Venta al por menor de artículos de ferretería"]
[null,null,null,null,null,null,null,null,null,null,"52364 Venta al por menor de pinturas y productos conexos"]
[null,null,null,null,null,null,null,null,null,null,"52365 Venta al por menor de artículos para plomería e instalación de gas"]
[null,null,null,null,null,null,null,null,null,null,"52366 Venta al por menor de cristales, espejos, mamparas y cerramientos"]
[null,null,null,null,null,null,null,null,null,null,"52367 Venta al por menor de papeles para pared, revestimientos para pisos y artículos similares para la decoración"]
[null,null,null,null,null,null,null,null,null,null,"52369 Venta al por menor de materiales de construcción n.c.p."]
[null,null,null,null,null,null,null,null,null,null,"52371 Venta al por menor de artículos de óptica y fotografía"]
[null,null,null,null,null,null,null,null,null,null,"52372 Venta al por menor de artículos de relojería, joyería y fantasía"]
[null,null,null,null,null,null,null,null,null,null,"52381 Venta al por menor de libros y publicaciones"]
[null,null,null,null,null,null,null,null,null,null,"52382 Venta al por menor de diarios y revistas"]
[null,null,null,null,null,null,null,null,null,null,"52383 Venta al por menor de papel, cartón, materiales de embalaje y artículos de librería"]
[null,null,null,null,null,null,null,null,null,null,"52391 Venta al por menor de flores, plantas, semillas, abonos, fertilizantes y otros productos de vivero"]
[null,null,null,null,null,null,null,null,null,null,"52392 Venta al por menor de materiales y productos de limpieza"]
[null,null,null,null,null,null,null,null,null,null,"52393 Venta al por menor de juguetes y artículos de cotillón"]
[null,null,null,null,null,null,null,null,null,null,"52394 Venta al por menor de artículos de deportes y esparcimiento"]
[null,null,null,null,null,null,null,null,null,null,"52395 Venta al por menor de máquinas y equipos para oficina y sus componentes y repuestos"]
[null,null,null,null,null,null,null,null,null,null,"52396 Venta al por menor de fuel oil, gas en garrafas, carbón y leña"]
[null,null,null,null,null,null,null,null,null,null,"52397 Venta al por menor de productos veterinarios y animales domésticos"]
[null,null,null,null,null,null,null,null,null,null,"52399 Venta al por menor de artículos de colección, obras de arte, y artículos nuevos n.c.p."]
[null,null,null,null,null,null,null,null,null,null,"52410 Venta al por menor de muebles usados"]
[null,null,null,null,null,null,null,null,null,null,"52420 Venta al por menor de libros, revistas y similares usados"]
[null,null,null,null,null,null,null,null,null,null,"52491 Venta al por menor de antigüedades"]
[null,null,null,null,null,null,null,null,null,null,"52499 Venta al por menor de artículos usados n.c.p. excluidos automotores y motocicletas"]
[null,null,null,null,null,null,null,null,null,null,"52510 Venta al por menor por correo, televisión, internet y otros medios de comunicación"]
[null,null,null,null,null,null,null,null,null,null,"52520 Venta al por menor en puestos móviles"]
[null,null,null,null,null,null,null,null,null,null,"52590 Venta al por menor no realizada en establecimientos n.c.p."]
[null,null,null,null,null,null,null,null,null,null,"52610 Reparación de calzado y artículos de marroquinería"]
[null,null,null,null,null,null,null,null,null,null,"52620 Reparación de artículos eléctricos de uso doméstico"]
[null,null,null,null,null,null,null,null,null,null,"52690 Reparación de efectos personales y enseres domésticos n.c.p."]
[null,null,null,null,null,null,null,null,null,null,"55110 Servicios de alojamiento en camping"]
[null,null,null,null,null,null,null,null,null,null,"55121 Servicios de alojamiento por hora"]
[null,null,null,null,null,null,null,null,null,null,"55122 Servicios de alojamiento en hoteles, pensiones y otras residencias de alojamiento temporal, excepto por hora"]
[null,null,null,null,null,null,null,null,null,null,"55211 Servicios de expendio de comidas y bebidas en restaurantes, bares y otros establecimientos con servicio de mesa y/o en mostrador excepto en heladerías"]
[null,null,null,null,null,null,null,null,null,null,"55212 Servicios de expendio de helados"]
[null,null,null,null,null,null,null,null,null,null,"55221 Provisión de comidas preparadas para empresas"]
[null,null,null,null,null,null,null,null,null,null,"55229 Preparación y venta de comidas para llevar n.c.p."]
[null,null,null,null,null,null,null,null,null,null,"60110 Servicio de transporte ferroviario de cargas"]
[null,null,null,null,null,null,null,null,null,null,"60121 Servicio de transporte ferroviario urbano y suburbano de pasajeros"]
[null,null,null,null,null,null,null,null,null,null,"60122 Servicio de transporte ferroviario interurbano de pasajeros"]
[null,null,null,null,null,null,null,null,null,null,"60211 Servicios de mudanza"]
[null,null,null,null,null,null,null,null,null,null,"60212 Servicios de transporte de mercaderías a granel, incluido el transporte por camión cisterna"]
[null,null,null,null,null,null,null,null,null,null,"60213 Servicios de transporte de animales"]
[null,null,null,null,null,null,null,null,null,null,"60218 Servicio de transporte urbano de carga n.c.p."]
[null,null,null,null,null,null,null,null,null,null,"60219 Transporte automotor de cargas n.c.p."]
[null,null,null,null,null,null,null,null,null,null,"60221 Servicio de transporte automotor urbano regular de pasajeros"]
[null,null,null,null,null,null,null,null,null,null,"60222 Servicio de transporte automotor de pasajeros mediante taxis y remises; alquiler de autos con chofer"]
[null,null,null,null,null,null,null,null,null,null,"60223 Servicio de transporte escolar"]
[null,null,null,null,null,null,null,null,null,null,"60224 Servicio de transporte automotor urbano de oferta libre de pasajeros excepto mediante taxis y remises, alquiler de autos con chofer y transporte escolar"]
[null,null,null,null,null,null,null,null,null,null,"60225 Servicio de transporte automotor interurbano de pasajeros"]
[null,null,null,null,null,null,null,null,null,null,"60226 Servicio de transporte automotor de pasajeros para el turismo"]
[null,null,null,null,null,null,null,null,null,null,"60229 Servicio de transporte automotor de pasajeros n.c.p."]
[null,null,null,null,null,null,null,null,null,null,"60310 Servicio de transporte por oleoductos y poliductos"]
[null,null,null,null,null,null,null,null,null,null,"60320 Servicio de transporte por gasoductos"]
[null,null,null,null,null,null,null,null,null,null,"61110 Servicio de transporte marítimo de carga"]
[null,null,null,null,null,null,null,null,null,null,"61120 Servicio de transporte marítimo de pasajeros"]
[null,null,null,null,null,null,null,null,null,null,"61210 Servicio de transporte fluvial de cargas"]
[null,null,null,null,null,null,null,null,null,null,"61220 Servicio de transporte fluvial de pasajeros"]
[null,null,null,null,null,null,null,null,null,null,"62100 Servicio de transporte aéreo de cargas"]
[null,null,null,null,null,null,null,null,null,null,"62200 Servicio de transporte aéreo de pasajeros"]
[null,null,null,null,null,null,null,null,null,null,"63100 Servicios de manipulación de carga"]
[null,null,null,null,null,null,null,null,null,null,"63200 Servicios de almacenamiento y depósito"]
[null,null,null,null,null,null,null,null,null,null,"63311 Servicios explotación de infraestructura; peajes y otros derechos"]
[null,null,null,null,null,null,null,null,null,null,"63312 Servicios prestados por playas de estacionamiento y garajes"]
[null,null,null,null,null,null,null,null,null,null,"63319 Servicios complementarios para el transporte terrestre n.c.p."]
[null,null,null,null,null,null,null,null,null,null,"63321 Servicios de explotación de infraestructura; derechos de puerto"]
[null,null,null,null,null,null,null,null,null,null,"63322 Servicios de guarderías náuticas"]
[null,null,null,null,null,null,null,null,null,null,"63323 Servicios para la navegación"]
[null,null,null,null,null,null,null,null,null,null,"63329 Servicios complementarios para el transporte por agua n.c.p."]
[null,null,null,null,null,null,null,null,null,null,"63331 Servicios de hangares, estacionamiento y remolque de aeronaves"]
[null,null,null,null,null,null,null,null,null,null,"63332 Servicios para la aeronavegación"]
[null,null,null,null,null,null,null,null,null,null,"63339 Servicios complementarios para el transporte aéreo n.c.p."]
[null,null,null,null,null,null,null,null,null,null,"63410 Servicios mayoristas de agencias de viajes"]
[null,null,null,null,null,null,null,null,null,null,"63420 Servicios minoristas de agencias de viajes"]
[null,null,null,null,null,null,null,null,null,null,"63430 Servicios complementarios de apoyo turístico"]
[null,null,null,null,null,null,null,null,null,null,"63500 Servicios de gestión y logística para el transporte de mercaderías"]
[null,null,null,null,null,null,null,null,null,null,"64100 Servicios de correos"]
[null,null,null,null,null,null,null,null,null,null,"64201 Servicios de transmisión de radio y televisión"]
[null,null,null,null,null,null,null,null,null,null,"64202 Servicios de comunicación por medio de teléfono, telégrafo y telex"]
[null,null,null,null,null,null,null,null,null,null,"64209 Servicios de transmisión n.c.p. de sonido, imágenes, datos u otra información"]
[null,null,null,null,null,null,null,null,null,null,"65110 Servicios de la banca central"]
[null,null,null,null,null,null,null,null,null,null,"65211 Servicios de la banca mayorista"]
[null,null,null,null,null,null,null,null,null,null,"65212 Servicios de la banca de inversión"]
[null,null,null,null,null,null,null,null,null,null,"65213 Servicios de la banca minorista"]
[null,null,null,null,null,null,null,null,null,null,"65220 Servicios de las entidades financieras no bancarias"]
[null,null,null,null,null,null,null,null,null,null,"65981 Actividades de crédito para financiar otras actividades económicas"]
[null,null,null,null,null,null,null,null,null,null,"65989 Servicios de crédito n.c.p."]
[null,null,null,null,null,null,null,null,null,null,"65991 Servicios de agentes de mercado abierto \"puros\""]
[null,null,null,null,null,null,null,null,null,null,"65992 Servicios de entidades de tarjeta de compra y/o crédito"]
[null,null,null,null,null,null,null,null,null,null,"65999 Servicios de financiación y actividades financieras n.c.p."]
[null,null,null,null,null,null,null,null,null,null,"66111 Servicios de seguros de salud"]
[null,null,null,null,null,null,null,null,null,null,"66112 Servicios de seguros de vida"]
[null,null,null,null,null,null,null,null,null,null,"66113 Servicio de seguros a las personas excepto los de salud y de vida"]
[null,null,null,null,null,null,null,null,null,null,"66121 Servicios de aseguradoras de riesgo de trabajo (ART)"]
[null,null,null,null,null,null,null,null,null,null,"66122 Servicios de seguros patrimoniales excepto los de las aseguradoras de riesgo de trabajo"]
[null,null,null,null,null,null,null,null,null,null,"66130 Reaseguros"]
[null,null,null,null,null,null,null,null,null,null,"66200 Administración de fondos de jubilaciones y pensiones (AFJP)"]
[null,null,null,null,null,null,null,null,null,null,"67111 Servicios de mercados y cajas de valores"]
[null,null,null,null,null,null,null,null,null,null,"67112 Servicios de mercados a término"]
[null,null,null,null,null,null,null,null,null,null,"67113 Servicios de bolsas de Comercio"]
[null,null,null,null,null,null,null,null,null,null,"67120 Servicios bursátiles de mediación o por cuenta de terceros"]
[null,null,null,null,null,null,null,null,null,null,"67191 Servicios de casas y agencias de cambio"]
[null,null,null,null,null,null,null,null,null,null,"67192 Servicios de sociedades calificadoras de riesgos"]
[null,null,null,null,null,null,null,null,null,null,"67199 Servicios auxiliares a la intermediación financiera n.c.p., excepto a los servicios de seguros y de administración de fondos de jubilaciones y pensiones"]
[null,null,null,null,null,null,null,null,null,null,"67211 Servicios de productores y asesores de seguros"]
[null,null,null,null,null,null,null,null,null,null,"67219 Servicios auxiliares a los servicios de seguros n.c.p"]
[null,null,null,null,null,null,null,null,null,null,"67220 Servicios auxiliares a la administración de fondos de jubilaciones y pensiones"]
[null,null,null,null,null,null,null,null,null,null,"70101 Servicios de alquiler y explotación de inmuebles para fiestas, convenciones y otros eventos similares"]
[null,null,null,null,null,null,null,null,null,null,"70109 Servicios inmobiliarios realizados por cuenta propia, con bienes propios o arrendados n.c.p."]
[null,null,null,null,null,null,null,null,null,null,"70200 Servicios inmobiliarios realizados a cambio de una retribución o por contrata"]
[null,null,null,null,null,null,null,null,null,null,"71110 Alquiler de equipo de transporte para vía terrestre, sin operarios"]
[null,null,null,null,null,null,null,null,null,null,"71120 Alquiler de equipo de transporte para vía acuática, sin operarios ni tripulación"]
[null,null,null,null,null,null,null,null,null,null,"71130 Alquiler de equipo de transporte para vía aérea, sin operarios ni tripulación"]
[null,null,null,null,null,null,null,null,null,null,"71210 Alquiler de maquinaria y equipo agropecuario, sin operarios"]
[null,null,null,null,null,null,null,null,null,null,"71220 Alquiler de maquinaria y equipo de construcción e ingeniería civil, sin operarios"]
[null,null,null,null,null,null,null,null,null,null,"71230 Alquiler de maquinaria y equipo de oficina, incluso computadoras"]
[null,null,null,null,null,null,null,null,null,null,"71290 Alquiler de maquinaria y equipo n.c.p., sin personal"]
[null,null,null,null,null,null,null,null,null,null,"71300 Alquiler de efectos personales y enseres domésticos n.c.p."]
[null,null,null,null,null,null,null,null,null,null,"72100 Servicios de consultores en equipo de informática"]
[null,null,null,null,null,null,null,null,null,null,"72200 Servicios de consultores en informática y suministros de programas de informática"]
[null,null,null,null,null,null,null,null,null,null,"72300 Procesamiento de datos"]
[null,null,null,null,null,null,null,null,null,null,"72400 Servicios relacionados con bases de datos"]
[null,null,null,null,null,null,null,null,null,null,"72500 Mantenimiento y reparación de maquinaria de oficina, contabilidad e informática"]
[null,null,null,null,null,null,null,null,null,null,"72900 Actividades de informática n.c.p."]
[null,null,null,null,null,null,null,null,null,null,"73110 Investigación y desarrollo experimental en el campo de la ingeniería y la tecnología"]
[null,null,null,null,null,null,null,null,null,null,"73120 Investigación y desarrollo experimental en el campo de las ciencias médicas"]
[null,null,null,null,null,null,null,null,null,null,"73130 Investigación y desarrollo experimental en el campo de las ciencias agropecuarias"]
[null,null,null,null,null,null,null,null,null,null,"73190 Investigación y desarrollo experimental en el campo de las ciencias exactas y naturales n.c.p."]
[null,null,null,null,null,null,null,null,null,null,"73210 Investigación y desarrollo experimental en el campo de las ciencias sociales"]
[null,null,null,null,null,null,null,null,null,null,"73220 Investigación y desarrollo experimental en el campo de las ciencias humanas"]
[null,null,null,null,null,null,null,null,null,null,"74110 Servicios jurídicos"]
[null,null,null,null,null,null,null,null,null,null,"74120 Servicios de contabilidad y teneduría de libros, auditoría y asesoría fiscal"]
[null,null,null,null,null,null,null,null,null,null,"74130 Estudio de mercado, realización de encuestas de opinión pública"]
[null,null,null,null,null,null,null,null,null,null,"74140 Servicios de asesoramiento, dirección y gestión empresarial"]
[null,null,null,null,null,null,null,null,null,null,"74210 Servicios de arquitectura e ingeniería y servicios conexos de asesoramiento técnico"]
[null,null,null,null,null,null,null,null,null,null,"74220 Ensayos y análisis técnicos"]
[null,null,null,null,null,null,null,null,null,null,"74300 Servicios de publicidad"]
[null,null,null,null,null,null,null,null,null,null,"74910 Obtención y dotación de personal"]
[null,null,null,null,null,null,null,null,null,null,"74921 Servicios de transporte de caudales y objetos de valor"]
[null,null,null,null,null,null,null,null,null,null,"74929 Servicios de investigación y seguridad n.c.p."]
[null,null,null,null,null,null,null,null,null,null,"74930 Servicios de limpieza de edificios"]
[null,null,null,null,null,null,null,null,null,null,"74940 Servicios de fotografía"]
[null,null,null,null,null,null,null,null,null,null,"74950 Servicios de envase y empaque"]
[null,null,null,null,null,null,null,null,null,null,"74960 Servicios de impresión heliográfica, fotocopia y otras formas de reproducciones"]
[null,null,null,null,null,null,null,null,null,null,"74990 Servicios empresariales n.c.p."]
[null,null,null,null,null,null,null,null,null,null,"75110 Servicios generales de la Administración Pública"]
[null,null,null,null,null,null,null,null,null,null,"75120 Servicios para la regulación de las actividades sanitarias, educativas, culturales, y restantes servicios sociales, excepto seguridad social obligatoria"]
[null,null,null,null,null,null,null,null,null,null,"75130 Servicios para la regulación de la actividad económica"]
[null,null,null,null,null,null,null,null,null,null,"75190 Servicios auxiliares para los servicios generales de la Administración Pública"]
[null,null,null,null,null,null,null,null,null,null,"75210 Servicios de Asuntos exteriores"]
[null,null,null,null,null,null,null,null,null,null,"75220 Servicios de Defensa"]
[null,null,null,null,null,null,null,null,null,null,"75230 Servicios de Justicia"]
[null,null,null,null,null,null,null,null,null,null,"75240 Servicios para el orden público y la seguridad"]
[null,null,null,null,null,null,null,null,null,null,"75250 Servicios de protección civil"]
[null,null,null,null,null,null,null,null,null,null,"75300 Servicios de la seguridad social obligatoria"]
[null,null,null,null,null,null,null,null,null,null,"80100 Enseñanza inicial y primaria"]
[null,null,null,null,null,null,null,null,null,null,"80210 Enseñanza secundaria de formación general"]
[null,null,null,null,null,null,null,null,null,null,"80220 Enseñanza secundaria de formación técnica y profesional"]
[null,null,null,null,null,null,null,null,null,null,"80310 Enseñanza terciaria"]
[null,null,null,null,null,null,null,null,null,null,"80320 Enseñanza universitaria excepto formación de postgrados"]
[null,null,null,null,null,null,null,null,null,null,"80330 Formación de posgrado"]
[null,null,null,null,null,null,null,null,null,null,"80900 Enseñanza para adultos y servicios de enseñanza n.c.p."]
[null,null,null,null,null,null,null,null,null,null,"85111 Servicios de internación"]
[null,null,null,null,null,null,null,null,null,null,"85112 Servicios de hospital de día"]
[null,null,null,null,null,null,null,null,null,null,"85119 Servicios hospitalarios n.c.p."]
[null,null,null,null,null,null,null,null,null,null,"85121 Servicios de atención ambulatoria"]
[null,null,null,null,null,null,null,null,null,null,"85122 Servicios de atención domiciliaria programada"]
[null,null,null,null,null,null,null,null,null,null,"85130 Servicios odontológicos"]
[null,null,null,null,null,null,null,null,null,null,"85140 Servicios de diagnóstico"]
[null,null,null,null,null,null,null,null,null,null,"85150 Servicios de tratamiento"]
[null,null,null,null,null,null,null,null,null,null,"85160 Servicios de emergencias y traslados"]
[null,null,null,null,null,null,null,null,null,null,"85190 Servicios relacionados con la salud humana n.c.p."]
[null,null,null,null,null,null,null,null,null,null,"85200 Servicios veterinarios"]
[null,null,null,null,null,null,null,null,null,null,"85311 Servicios de atención a ancianos con alojamiento"]
[null,null,null,null,null,null,null,null,null,null,"85312 Servicios de atención a personas minusválidas con alojamiento"]
[null,null,null,null,null,null,null,null,null,null,"85313 Servicios de atención a menores con alojamiento"]
[null,null,null,null,null,null,null,null,null,null,"85314 Servicios de atención a mujeres con alojamiento"]
[null,null,null,null,null,null,null,null,null,null,"85319 Servicios sociales con alojamiento n.c.p."]
[null,null,null,null,null,null,null,null,null,null,"85320 Servicios sociales sin alojamiento"]
[null,null,null,null,null,null,null,null,null,null,"90001 Recolección, reducción y eliminación de desperdicios"]
[null,null,null,null,null,null,null,null,null,null,"90002 Servicios de depuración de aguas residuales, alcantarillado y cloacas"]
[null,null,null,null,null,null,null,null,null,null,"90009 Servicios de saneamiento público n.c.p."]
[null,null,null,null,null,null,null,null,null,null,"91110 Servicios de federaciones de asociaciones, cámaras, gremios y organizaciones similares"]
[null,null,null,null,null,null,null,null,null,null,"91120 Servicios de asociaciones de especialistas en disciplinas científicas, prácticas profesionales y esferas técnicas"]
[null,null,null,null,null,null,null,null,null,null,"91200 Servicios de sindicatos"]
[null,null,null,null,null,null,null,null,null,null,"91910 Servicios de organizaciones religiosas"]
[null,null,null,null,null,null,null,null,null,null,"91920 Servicios de organizaciones políticas"]
[null,null,null,null,null,null,null,null,null,null,"91990 Servicios de asociaciones n.c.p."]
[null,null,null,null,null,null,null,null,null,null,"92111 Producción de filmes y videocintas"]
[null,null,null,null,null,null,null,null,null,null,"92112 Distribución de filmes y videocintas"]
[null,null,null,null,null,null,null,null,null,null,"92120 Exhibición de filmes y videocintas"]
[null,null,null,null,null,null,null,null,null,null,"92130 Servicios de radio y televisión"]
[null,null,null,null,null,null,null,null,null,null,"92141 Producción de espectáculos teatrales y musicales"]
[null,null,null,null,null,null,null,null,null,null,"92142 Composición y representación de obras teatrales, musicales y artísticas"]
[null,null,null,null,null,null,null,null,null,null,"92143 Servicios conexos a la producción de espectáculos teatrales y musicales"]
[null,null,null,null,null,null,null,null,null,null,"92191 Servicios de salones de baile, discotecas y similares"]
[null,null,null,null,null,null,null,null,null,null,"92199 Servicios de espectáculos artísticos y de diversión n.c.p."]
[null,null,null,null,null,null,null,null,null,null,"92200 Servicios de agencias de noticias y servicios de información"]
[null,null,null,null,null,null,null,null,null,null,"92310 Servicios de bibliotecas y archivos"]
[null,null,null,null,null,null,null,null,null,null,"92320 Servicios de museos y preservación de lugares y edificios históricos"]
[null,null,null,null,null,null,null,null,null,null,"92330 Servicios de jardines botánicos, zoológicos y de parques nacionales"]
[null,null,null,null,null,null,null,null,null,null,"92411 Servicios de organización , dirección y gestión de prácticas deportivas y explotación de las instalaciones"]
[null,null,null,null,null,null,null,null,null,null,"92412 Promoción y producción de espectáculos deportivos"]
[null,null,null,null,null,null,null,null,null,null,"92413 Servicios prestados por profesionales y técnicos, para la realización de prácticas deportivas"]
[null,null,null,null,null,null,null,null,null,null,"92491 Servicios de esparcimiento relacionadas con juegos de azar y apuestas"]
[null,null,null,null,null,null,null,null,null,null,"92492 Servicios de salones de juegos"]
[null,null,null,null,null,null,null,null,null,null,"92499 Servicios de entretenimiento n.c.p."]
[null,null,null,null,null,null,null,null,null,null,"93010 Lavado y limpieza de artículos de tela, cuero y/o de piel, incluso la limpieza en seco"]
[null,null,null,null,null,null,null,null,null,null,"93020 Servicios de peluquería y tratamientos de belleza"]
[null,null,null,null,null,null,null,null,null,null,"93030 Pompas fúnebres y servicios conexos"]
[null,null,null,null,null,null,null,null,null,null,"93091 Servicios para el mantenimiento físico-corporal"]
[null,null,null,null,null,null,null,null,null,null,"93099 Servicios n.c.p."]
[null,null,null,null,null,null,null,null,null,null,"95000 Servicios de hogares privados que contratan servicio doméstico"]
[null,null,null,null,null,null,null,null,null,null,"99000 Servicios de organizaciones y órganos extraterritoriales"]

{"sheet":"2-Datos Gestor y Diagnóstico","index":3,"n_rows":24,"n_cols":9,"rows_kept":24,"cut":false,"hidden":false,"merged":[[0,1,0,4],[4,0,21,0],[4,1,4,4],[6,2,6,4],[20,2,20,4],[21,2,21,4],[13,2,13,4],[9,2,9,4],[16,2,16,4],[2,1,2,4],[3,1,3,4],[7,2,7,4],[19,2,19,4],[10,2,10,4],[4,7,5,7],[5,1,5,3],[23,1,23,4],[24,1,24,4],[18,2,18,4],[15,2,15,4],[11,2,11,4],[14,2,14,4],[17,1,17,4],[12,2,12,4],[8,2,8,4]]}
[null,"OBLIGATORIO COMPLETAR FORMULARIO"]
[]
[null,"PROGRAMA DE EFICIENCIA ENERGÉTICA v2020"]
[null,"Empresa a diagnosticar "]
[null,{"$f":"IF('1-Datos Empresa'!D5=\"\",\"\",'1-Datos Empresa'!D5)","v":""},null,null,null,null,null,"Verifica-ción"]
[null,"Gestor Energético",null,null,{"$f":"SUM(H7:H19)","v":0}]
[null,"Nombre",null,null,null,null,null,{"$f":"IF(C7=\"\",0,1)","v":0}]
[null,"Apellido",null,null,null,null,null,{"$f":"IF(C8=\"\",0,1)","v":0}]
[null,"CUIT (solo números sin espacios)",null,null,null,null,null,0]
[null,"Provincia (desplegable)",null,null,null,null,null,0,{"$f":"VLOOKUP(C10,Datos!C2:D25,2,FALSE)","v":{"$error":"#N/A"}}]
[null,"Departamento / Municipio (desplegable)",null,null,null,null,null,0]
[null,"Ciudad",null,null,null,null,null,0]
[null,"Domicilio",null,null,null,null,null,0]
[null,"Código Postal (Formato Numérico)",null,null,null,null,null,0]
[null,"Correo electrónico",null,null,null,null,null,0]
[null,"Teléfono de contacto",null,null,null,null,null,0]
[null,"Página Web"]
[null,"Datos del Diagnóstico"]
[null,"Valor del Diagnóstico [$]",null,null,null,null,null,0]
[null,"Fecha de asignación de la empresa al gestor"]
[null,"Fecha de inicio de tareas"]
[null,"Fecha de entrega del diagnóstico (*)"]
[null,"(*) Lo completará el organismo receptor del Diagnóstico"]
[null,"Observaciones del Diagnóstico. Escriba aquí cualquier nota aclaratoria sobre el trabajo realizado."]

{"sheet":"3-Datos de Proceso y Producción","index":4,"n_rows":42,"n_cols":8,"rows_kept":42,"cut":false,"hidden":false,"merged":[[0,1,0,5],[39,4,39,5],[40,4,40,5],[14,1,14,2],[15,1,15,2],[14,4,14,5],[15,4,15,5],[16,1,16,5],[17,1,18,1],[30,2,30,3],[38,2,38,3],[40,2,40,3],[29,1,29,5],[17,2,18,2],[17,5,18,5],[39,2,39,3],[30,4,30,5],[7,1,7,2],[8,1,8,2],[7,4,7,5],[8,4,8,5],[17,3,18,3],[9,4,9,5],[10,4,10,5],[11,4,11,5],[12,4,12,5],[10,1,10,2],[11,1,11,2],[12,1,12,2],[13,1,13,2],[9,1,9,2],[13,4,13,5],[2,1,2,5],[4,1,5,2],[6,1,6,2],[4,4,5,5],[6,4,6,5],[3,1,3,4],[38,4,38,5],[37,2,37,3],[36,4,36,5],[31,2,31,3],[32,2,32,3],[33,2,33,3],[34,2,34,3],[35,2,35,3],[36,2,36,3],[31,4,31,5],[32,4,32,5],[33,4,33,5],[34,4,34,5],[35,4,35,5]]}
[null,"OBLIGATORIO COMPLETAR FORMULARIO"]
[]
[null,"PROGRAMA DE EFICIENCIA ENERGÉTICA v2020"]
[null,"Principales materias primas o insumos (*)",null,null,null,{"$f":"H4","v":0},null,{"$f":"SUM(H7:H32)","v":0}]
[null,"Detalle",null,"Unidad ","Consumo en el último año (unidades)"]
[null,null,null,"[t/año], [m2/año], etc."]
[null,null,null,null,null,null,null,{"$f":"IF(B7=\"\",0,1)+IF(D7=\"\",0,1)+IF(E7=\"\",0,1)","v":0}]
[]
[]
[]
[]
[]
[]
[]
[]
[]
[null,"Principales Productos / Ventas (*)"]
[null,"Productos/Servicios Principales","Breve Descripción","Capacidad Instalada","Unidad ","Cantidad Producida o Servicios Prestados en el último año"]
[null,null,null,null,"[t/año], [m2/año], [habitac], etc."]
[null,null,null,null,null,null,null,{"$f":"IF(B20=\"\",0,1)+IF(C20=\"\",0,1)+IF(D20=\"\",0,1)+IF(E20=\"\",0,1)+IF(F20=\"\",0,1)","v":0}]
[]
[]
[]
[]
[]
[]
[]
[]
[]
[null,"Descripción de los Procesos que consumen una cantidad significativa de energía (*)"]
[null,"Proceso","Descripción",null,"Principales variables que afectan el consumo de energía"]
[null,null,null,null,null,null,null,{"$f":"IF(B32=\"\",0,1)+IF(C32=\"\",0,1)+IF(E32=\"\",0,1)","v":0}]
[]
[]
[]
[]
[]
[]
[]
[]
[]
[null,"(*) Se pueden insertar filas en caso de ser necesario. Se debe completar al menos una línea de cada de los 3 items."]

{"sheet":"4-Consumos energéticos","index":5,"n_rows":15,"n_cols":17,"rows_kept":15,"cut":false,"hidden":false,"merged":[[14,1,14,8],[0,1,0,8],[13,3,13,4],[5,3,5,4],[5,2,6,2],[5,1,6,1],[2,1,2,9],[4,1,4,8],[5,5,5,9]]}
[null,"OBLIGATORIO COMPLETAR FORMULARIO"]
[]
[null,"    PROGRAMA DE EFICIENCIA ENERGÉTICA v2020"]
[]
[null,"DATOS ACTUALES DE LA EMPRESA \nInformación relevada por el Gestor y provista por la Empresa (*)",null,null,null,null,null,null,null,{"$f":"SUM(Q8:Q13)","v":0}]
[null,"Fuente Energética","Tipo de usuario y categoría tarifaria","Consumos Energéticos",null,"Costo (incl. Impuestos)"]
[null,null,null,"Cantidad","Unidad","Total Anual ($)","Costo Unitario Equivalente","Unidad","% Fuente sobre Costos Totales","Consumo $/m2 cubierto",null,null,null,"Energía eléctrica"]
[null,"Energía eléctrica",null,null,"kWh",null,{"$f":"IF(OR(D8=0,D8=\"\"),0,F8/D8)","v":0},{"$f":"IF(E8=\"\",\"\",\"$/\"&E8)","v":"$/kWh"},{"$f":"+IFERROR(F8/$F$14,0)","v":0},{"$f":"IF(ISERROR(F8/'1-Datos Empresa'!$D$17),\"-\",F8/'1-Datos Empresa'!$D$17)","v":"-"},null,"kW",null,"Gas Natural",null,null,{"$f":"IF(AND(D8>1,F8>1,G8>0,NOT(C8=\"\")),1,0)","v":0}]
[null,"Gas Natural",null,null,"m3",null,{"$f":"IF(OR(D9=0,D9=\"\"),0,F9/D9)","v":0},{"$f":"IF(E9=\"\",\"\",\"$/\"&E9)","v":"$/m3"},0,{"$f":"IF(ISERROR(F9/'1-Datos Empresa'!$D$17),\"-\",F9/'1-Datos Empresa'!$D$17)","v":"-"},null,"Nm3/h",null,"Gas Oil",null,null,{"$f":"IF(AND(D9>1,F9>1,G9>0,NOT(C9=\"\")),1,0)","v":0}]
[null,"Gas Oil",null,null,"Litros",null,0,"$/Litros",0,{"$f":"IF(ISERROR(F10/'1-Datos Empresa'!$D$17),\"-\",F10/'1-Datos Empresa'!$D$17)","v":"-"},null,"Litros/h",null,"Gas licuado de petróleo (GLP)",null,null,{"$f":"IF(AND(D10>1,F10>1,G10>0,NOT(C10=\"\")),1,0)","v":0}]
[null,"Gas licuado de petróleo (GLP)",null,null,"Kilos",null,0,"$/Kilos",0,{"$f":"IF(ISERROR(F11/'1-Datos Empresa'!$D$17),\"-\",F11/'1-Datos Empresa'!$D$17)","v":"-"},null,"Kilos/h",null,"Leña",null,null,0]
[null,"Leña",null,null,"Kilos",null,0,"$/Kilos",0,{"$f":"IF(ISERROR(F12/'1-Datos Empresa'!$D$17),\"-\",F12/'1-Datos Empresa'!$D$17)","v":"-"},null,"Kilos/h",null,"Solar Fotvoltáico",null,null,0]
[null,"Otras Fuentes Energéticas",null,null,null,null,0,"",0,{"$f":"IF(ISERROR(F13/'1-Datos Empresa'!$D$17),\"-\",F13/'1-Datos Empresa'!$D$17)","v":"-"},null,{"$f":"E13&\"/h\"","v":"/h"},null,"Solar Térmico",null,null,0]
[null,null,null,"TOTAL DE COSTOS",null,{"$f":"+SUM(F8:F13)","v":0},null,null,{"$f":"+SUM(I8:I13)","v":0},{"$f":"IF(ISERROR(F14/'1-Datos Empresa'!$D$17),\"-\",F14/'1-Datos Empresa'!$D$17)","v":"-"},null,null,null,"Otras Fuentes Energéticas"]
[null,"(*) Se deben incluir todas las fuentes energéticas. Al menos dos fuentes energéticas deberán cargarse, aún cuando la segunda sea menos relevante."]

{"sheet":"5-Inventario general","index":6,"n_rows":59,"n_cols":17,"rows_kept":59,"cut":false,"hidden":false,"merged":[[4,1,4,7],[0,1,0,12],[14,1,14,12],[2,1,2,12],[15,1,15,12],[8,5,8,6],[9,5,9,6],[10,5,10,6],[58,1,58,12],[7,1,7,2],[8,1,8,2],[9,1,9,2],[10,1,10,2],[11,1,11,2],[4,10,12,12],[12,1,12,2],[5,3,5,4],[5,8,6,8],[5,1,6,2],[11,5,11,6],[12,5,12,6],[5,5,5,7],[6,5,6,6],[7,5,7,6]]}
[null,"OBLIGATORIO COMPLETAR FORMULARIO"]
[]
[null,"PROGRAMA DE EFICIENCIA ENERGÉTICA v2020"]
[]
[null,"Resumen Relevamiento",null,null,null,null,null,null,{"$f":"SUM(P8:P13)","v":0},null,"Finalizada la carga del inventario, presione el botón debajo para generar la hoja siguiente."]
[null,"Fuente Energética",null,"Consumos Energéticos Reales",null,"Sumatoria Relevamiento",null,null,"Porcentaje"]
[null,null,null,"Cantidad","Unidad","Cantidad",null,"Unidad"]
[null,"Energía eléctrica",null,{"$f":"'4-Consumos energéticos'!D8","v":0},{"$f":"'4-Consumos energéticos'!E8","v":"kWh"},{"$f":"SUMIF($B$18:$K$57,B8,$K$18:$K$57)","v":0},null,{"$f":"E8","v":"kWh"},{"$f":"IF(AND(D8=0,F8>0),\"-\",IF(OR(D8=\"\",D8=0),0,F8/D8))","v":0},null,null,null,null,null,{"$f":"\"Error en las siguientes Fuentes: \"&IF(I8>1,B8,\"\")","v":"Error en las siguientes Fuentes: "},{"$f":"IF(AND(I8>0,I8<=1,NOT(I8=\"-\")),1,0)","v":0}]
[null,"Gas Natural",null,{"$f":"'4-Consumos energéticos'!D9","v":0},{"$f":"'4-Consumos energéticos'!E9","v":"m3"},0,null,{"$f":"E9","v":"m3"},{"$f":"IF(AND(D9=0,F9>0),\"-\",IF(OR(D9=\"\",D9=0),0,F9/D9))","v":0},null,null,null,null,null,null,0]
[null,"Gas Oil",null,{"$f":"'4-Consumos energéticos'!D10","v":0},{"$f":"'4-Consumos energéticos'!E10","v":"Litros"},0,null,"Litros",0,null,null,null,null,null,null,0]
[null,"Gas licuado de petróleo (GLP)",null,{"$f":"'4-Consumos energéticos'!D11","v":0},{"$f":"'4-Consumos energéticos'!E11","v":"Kilos"},0,null,"Kilos",0,null,null,null,null,null,null,0]
[null,"Leña",null,{"$f":"'4-Consumos energéticos'!D12","v":0},{"$f":"'4-Consumos energéticos'!E12","v":"Kilos"},0,null,"Kilos",0,null,null,null,null,null,null,0]
[null,"Otras Fuentes Energéticas",null,{"$f":"'4-Consumos energéticos'!D13","v":0},{"$f":"IF(OR('4-Consumos energéticos'!E13=\"\",'4-Consumos energéticos'!E13=0),\"\",'4-Consumos energéticos'!E13)","v":""},0,null,"",0,null,null,null,null,null,null,0]
[]
[null,"Inventario General Relevado (*1). Presionar el botón a la derecha en caso de requerir mas filas ---->"]
[null,"De acuerdo a si la potencia relevada refiere al consumo del equipo o a la entrega de éste, deberán ajustarse las fórmulas."]
[null,"Fuente Energética","Equipos principales","Uso (*2) (Fuerza Motriz, Iluminación, Lavado y Secado, etc.)","Consumo nominal Equipo","Unidad de medida","Cantidad de equipos","Factor de carga [%]\n(*3)","Rendimiento [%]/ NA \n(*4)","Horas de uso [h/año]","Energía Secundaria Consumida","Energía Útil Consumida","Unidad"]
[null,null,null,null,null,{"$f":"IF(B18=\"\",\"\",VLOOKUP(B18,'4-Consumos energéticos'!$B$8:$L$13,11,FALSE))","v":""},null,null,null,null,{"$f":"IF(G18=\"\",\"-\",IF(I18>0,IF(I18=\"NA\",J18*H18*G18*E18,J18*H18*G18*E18/I18),0))","v":"-"},{"$f":"IF(G18=\"\",\"-\",IF(I18>0,IF(I18=\"NA\",J18*H18*G18*E18,J18*H18*G18*E18),0))","v":"-"},{"$f":"IF(B18=\"\",\"\",VLOOKUP(B18,'4-Consumos energéticos'!$B$8:$E$13,4,FALSE)&\"/año\")","v":""},null,{"$f":"B18&D18","v":""},{"$f":"F18","v":""}]
[null,null,null,null,null,{"$f":"IF(B19=\"\",\"\",VLOOKUP(B19,'4-Consumos energéticos'!$B$8:$L$13,11,FALSE))","v":""},null,null,null,null,"-","-",{"$f":"IF(B19=\"\",\"\",VLOOKUP(B19,'4-Consumos energéticos'!$B$8:$E$13,4,FALSE)&\"/año\")","v":""},null,{"$f":"B19&D19","v":""},{"$f":"F19","v":""}]
[null,null,null,null,null,{"$f":"IF(B20=\"\",\"\",VLOOKUP(B20,'4-Consumos energéticos'!$B$8:$L$13,11,FALSE))","v":""},null,null,null,null,"-","-",{"$f":"IF(B20=\"\",\"\",VLOOKUP(B20,'4-Consumos energéticos'!$B$8:$E$13,4,FALSE)&\"/año\")","v":""},null,"",""]
[null,null,null,null,null,{"$f":"IF(B21=\"\",\"\",VLOOKUP(B21,'4-Consumos energéticos'!$B$8:$L$13,11,FALSE))","v":""},null,null,null,null,"-","-",{"$f":"IF(B21=\"\",\"\",VLOOKUP(B21,'4-Consumos energéticos'!$B$8:$E$13,4,FALSE)&\"/año\")","v":""},null,"",""]
[null,null,null,null,null,{"$f":"IF(B22=\"\",\"\",VLOOKUP(B22,'4-Consumos energéticos'!$B$8:$L$13,11,FALSE))","v":""},null,null,null,null,"-","-",{"$f":"IF(B22=\"\",\"\",VLOOKUP(B22,'4-Consumos energéticos'!$B$8:$E$13,4,FALSE)&\"/año\")","v":""},null,"",""]
[null,null,null,null,null,{"$f":"IF(B23=\"\",\"\",VLOOKUP(B23,'4-Consumos energéticos'!$B$8:$L$13,11,FALSE))","v":""},null,null,null,null,"-","-",{"$f":"IF(B23=\"\",\"\",VLOOKUP(B23,'4-Consumos energéticos'!$B$8:$E$13,4,FALSE)&\"/año\")","v":""},null,"",""]
[null,null,null,null,null,{"$f":"IF(B24=\"\",\"\",VLOOKUP(B24,'4-Consumos energéticos'!$B$8:$L$13,11,FALSE))","v":""},null,null,null,null,"-","-",{"$f":"IF(B24=\"\",\"\",VLOOKUP(B24,'4-Consumos energéticos'!$B$8:$E$13,4,FALSE)&\"/año\")","v":""},null,"",""]
[null,null,null,null,null,{"$f":"IF(B25=\"\",\"\",VLOOKUP(B25,'4-Consumos energéticos'!$B$8:$L$13,11,FALSE))","v":""},null,null,null,null,"-","-",{"$f":"IF(B25=\"\",\"\",VLOOKUP(B25,'4-Consumos energéticos'!$B$8:$E$13,4,FALSE)&\"/año\")","v":""},null,"",""]
[null,null,null,null,null,{"$f":"IF(B26=\"\",\"\",VLOOKUP(B26,'4-Consumos energéticos'!$B$8:$L$13,11,FALSE))","v":""},null,null,null,null,{"$f":"IF(G26=\"\",\"-\",IF(I26>0,IF(I26=\"NA\",J26*H26*G26*E26,J26*H26*G26*E26/I26),0))","v":"-"},{"$f":"IF(G26=\"\",\"-\",IF(I26>0,IF(I26=\"NA\",J26*H26*G26*E26,J26*H26*G26*E26),0))","v":"-"},{"$f":"IF(B26=\"\",\"\",VLOOKUP(B26,'4-Consumos energéticos'!$B$8:$E$13,4,FALSE)&\"/año\")","v":""},null,"",""]
[null,null,null,null,null,{"$f":"IF(B27=\"\",\"\",VLOOKUP(B27,'4-Consumos energéticos'!$B$8:$L$13,11,FALSE))","v":""},null,null,null,null,{"$f":"IF(G27=\"\",\"-\",IF(I27>0,IF(I27=\"NA\",J27*H27*G27*E27,J27*H27*G27*E27/I27),0))","v":"-"},{"$f":"IF(G27=\"\",\"-\",IF(I27>0,IF(I27=\"NA\",J27*H27*G27*E27,J27*H27*G27*E27),0))","v":"-"},{"$f":"IF(B27=\"\",\"\",VLOOKUP(B27,'4-Consumos energéticos'!$B$8:$E$13,4,FALSE)&\"/año\")","v":""},null,"",""]
[null,null,null,null,null,{"$f":"IF(B28=\"\",\"\",VLOOKUP(B28,'4-Consumos energéticos'!$B$8:$L$13,11,FALSE))","v":""},null,null,null,null,"-","-",{"$f":"IF(B28=\"\",\"\",VLOOKUP(B28,'4-Consumos energéticos'!$B$8:$E$13,4,FALSE)&\"/año\")","v":""},null,"",""]
[null,null,null,null,null,{"$f":"IF(B29=\"\",\"\",VLOOKUP(B29,'4-Consumos energéticos'!$B$8:$L$13,11,FALSE))","v":""},null,null,null,null,"-","-",{"$f":"IF(B29=\"\",\"\",VLOOKUP(B29,'4-Consumos energéticos'!$B$8:$E$13,4,FALSE)&\"/año\")","v":""},null,"",""]
[null,null,null,null,null,{"$f":"IF(B30=\"\",\"\",VLOOKUP(B30,'4-Consumos energéticos'!$B$8:$L$13,11,FALSE))","v":""},null,null,null,null,"-","-",{"$f":"IF(B30=\"\",\"\",VLOOKUP(B30,'4-Consumos energéticos'!$B$8:$E$13,4,FALSE)&\"/año\")","v":""},null,"",""]
[null,null,null,null,null,{"$f":"IF(B31=\"\",\"\",VLOOKUP(B31,'4-Consumos energéticos'!$B$8:$L$13,11,FALSE))","v":""},null,null,null,null,{"$f":"IF(G31=\"\",\"-\",IF(I31>0,IF(I31=\"NA\",J31*H31*G31*E31,J31*H31*G31*E31/I31),0))","v":"-"},{"$f":"IF(G31=\"\",\"-\",IF(I31>0,IF(I31=\"NA\",J31*H31*G31*E31,J31*H31*G31*E31),0))","v":"-"},{"$f":"IF(B31=\"\",\"\",VLOOKUP(B31,'4-Consumos energéticos'!$B$8:$E$13,4,FALSE)&\"/año\")","v":""},null,"",""]
[null,null,null,null,null,{"$f":"IF(B32=\"\",\"\",VLOOKUP(B32,'4-Consumos energéticos'!$B$8:$L$13,11,FALSE))","v":""},null,null,null,null,"-","-",{"$f":"IF(B32=\"\",\"\",VLOOKUP(B32,'4-Consumos energéticos'!$B$8:$E$13,4,FALSE)&\"/año\")","v":""},null,"",""]
[null,null,null,null,null,{"$f":"IF(B33=\"\",\"\",VLOOKUP(B33,'4-Consumos energéticos'!$B$8:$L$13,11,FALSE))","v":""},null,null,null,null,"-","-",{"$f":"IF(B33=\"\",\"\",VLOOKUP(B33,'4-Consumos energéticos'!$B$8:$E$13,4,FALSE)&\"/año\")","v":""},null,"",""]
[null,null,null,null,null,{"$f":"IF(B34=\"\",\"\",VLOOKUP(B34,'4-Consumos energéticos'!$B$8:$L$13,11,FALSE))","v":""},null,null,null,null,"-","-",{"$f":"IF(B34=\"\",\"\",VLOOKUP(B34,'4-Consumos energéticos'!$B$8:$E$13,4,FALSE)&\"/año\")","v":""},null,"",""]
[null,null,null,null,null,{"$f":"IF(B35=\"\",\"\",VLOOKUP(B35,'4-Consumos energéticos'!$B$8:$L$13,11,FALSE))","v":""},null,null,null,null,"-","-",{"$f":"IF(B35=\"\",\"\",VLOOKUP(B35,'4-Consumos energéticos'!$B$8:$E$13,4,FALSE)&\"/año\")","v":""},null,"",""]
[null,null,null,null,null,{"$f":"IF(B36=\"\",\"\",VLOOKUP(B36,'4-Consumos energéticos'!$B$8:$L$13,11,FALSE))","v":""},null,null,null,null,"-","-",{"$f":"IF(B36=\"\",\"\",VLOOKUP(B36,'4-Consumos energéticos'!$B$8:$E$13,4,FALSE)&\"/año\")","v":""},null,"",""]
[null,null,null,null,null,{"$f":"IF(B37=\"\",\"\",VLOOKUP(B37,'4-Consumos energéticos'!$B$8:$L$13,11,FALSE))","v":""},null,null,null,null,"-","-",{"$f":"IF(B37=\"\",\"\",VLOOKUP(B37,'4-Consumos energéticos'!$B$8:$E$13,4,FALSE)&\"/año\")","v":""},null,"",""]
[null,null,null,null,null,{"$f":"IF(B38=\"\",\"\",VLOOKUP(B38,'4-Consumos energéticos'!$B$8:$L$13,11,FALSE))","v":""},null,null,null,null,"-","-",{"$f":"IF(B38=\"\",\"\",VLOOKUP(B38,'4-Consumos energéticos'!$B$8:$E$13,4,FALSE)&\"/año\")","v":""},null,"",""]
[null,null,null,null,null,{"$f":"IF(B39=\"\",\"\",VLOOKUP(B39,'4-Consumos energéticos'!$B$8:$L$13,11,FALSE))","v":""},null,null,null,null,"-","-",{"$f":"IF(B39=\"\",\"\",VLOOKUP(B39,'4-Consumos energéticos'!$B$8:$E$13,4,FALSE)&\"/año\")","v":""},null,"",""]
[null,null,null,null,null,{"$f":"IF(B40=\"\",\"\",VLOOKUP(B40,'4-Consumos energéticos'!$B$8:$L$13,11,FALSE))","v":""},null,null,null,null,"-","-",{"$f":"IF(B40=\"\",\"\",VLOOKUP(B40,'4-Consumos energéticos'!$B$8:$E$13,4,FALSE)&\"/año\")","v":""},null,"",""]
[null,null,null,null,null,{"$f":"IF(B41=\"\",\"\",VLOOKUP(B41,'4-Consumos energéticos'!$B$8:$L$13,11,FALSE))","v":""},null,null,null,null,"-","-",{"$f":"IF(B41=\"\",\"\",VLOOKUP(B41,'4-Consumos energéticos'!$B$8:$E$13,4,FALSE)&\"/año\")","v":""},null,"",""]
[null,null,null,null,null,{"$f":"IF(B42=\"\",\"\",VLOOKUP(B42,'4-Consumos energéticos'!$B$8:$L$13,11,FALSE))","v":""},null,null,null,null,"-","-",{"$f":"IF(B42=\"\",\"\",VLOOKUP(B42,'4-Consumos energéticos'!$B$8:$E$13,4,FALSE)&\"/año\")","v":""},null,"",""]
[null,null,null,null,null,{"$f":"IF(B43=\"\",\"\",VLOOKUP(B43,'4-Consumos energéticos'!$B$8:$L$13,11,FALSE))","v":""},null,null,null,null,"-","-",{"$f":"IF(B43=\"\",\"\",VLOOKUP(B43,'4-Consumos energéticos'!$B$8:$E$13,4,FALSE)&\"/año\")","v":""},null,"",""]
[null,null,null,null,null,{"$f":"IF(B44=\"\",\"\",VLOOKUP(B44,'4-Consumos energéticos'!$B$8:$L$13,11,FALSE))","v":""},null,null,null,null,"-","-",{"$f":"IF(B44=\"\",\"\",VLOOKUP(B44,'4-Consumos energéticos'!$B$8:$E$13,4,FALSE)&\"/año\")","v":""},null,"",""]
[null,null,null,null,null,{"$f":"IF(B45=\"\",\"\",VLOOKUP(B45,'4-Consumos energéticos'!$B$8:$L$13,11,FALSE))","v":""},null,null,null,null,"-","-",{"$f":"IF(B45=\"\",\"\",VLOOKUP(B45,'4-Consumos energéticos'!$B$8:$E$13,4,FALSE)&\"/año\")","v":""},null,"",""]
[null,null,null,null,null,{"$f":"IF(B46=\"\",\"\",VLOOKUP(B46,'4-Consumos energéticos'!$B$8:$L$13,11,FALSE))","v":""},null,null,null,null,"-","-",{"$f":"IF(B46=\"\",\"\",VLOOKUP(B46,'4-Consumos energéticos'!$B$8:$E$13,4,FALSE)&\"/año\")","v":""},null,"",""]
[null,null,null,null,null,{"$f":"IF(B47=\"\",\"\",VLOOKUP(B47,'4-Consumos energéticos'!$B$8:$L$13,11,FALSE))","v":""},null,null,null,null,"-","-",{"$f":"IF(B47=\"\",\"\",VLOOKUP(B47,'4-Consumos energéticos'!$B$8:$E$13,4,FALSE)&\"/año\")","v":""},null,"",""]
[null,null,null,null,null,{"$f":"IF(B48=\"\",\"\",VLOOKUP(B48,'4-Consumos energéticos'!$B$8:$L$13,11,FALSE))","v":""},null,null,null,null,"-","-",{"$f":"IF(B48=\"\",\"\",VLOOKUP(B48,'4-Consumos energéticos'!$B$8:$E$13,4,FALSE)&\"/año\")","v":""},null,"",""]
[null,null,null,null,null,{"$f":"IF(B49=\"\",\"\",VLOOKUP(B49,'4-Consumos energéticos'!$B$8:$L$13,11,FALSE))","v":""},null,null,null,null,"-","-",{"$f":"IF(B49=\"\",\"\",VLOOKUP(B49,'4-Consumos energéticos'!$B$8:$E$13,4,FALSE)&\"/año\")","v":""},null,"",""]
[null,null,null,null,null,{"$f":"IF(B50=\"\",\"\",VLOOKUP(B50,'4-Consumos energéticos'!$B$8:$L$13,11,FALSE))","v":""},null,null,null,null,"-","-",{"$f":"IF(B50=\"\",\"\",VLOOKUP(B50,'4-Consumos energéticos'!$B$8:$E$13,4,FALSE)&\"/año\")","v":""},null,"",""]
[null,null,null,null,null,{"$f":"IF(B51=\"\",\"\",VLOOKUP(B51,'4-Consumos energéticos'!$B$8:$L$13,11,FALSE))","v":""},null,null,null,null,"-","-",{"$f":"IF(B51=\"\",\"\",VLOOKUP(B51,'4-Consumos energéticos'!$B$8:$E$13,4,FALSE)&\"/año\")","v":""},null,"",""]
[null,null,null,null,null,{"$f":"IF(B52=\"\",\"\",VLOOKUP(B52,'4-Consumos energéticos'!$B$8:$L$13,11,FALSE))","v":""},null,null,null,null,"-","-",{"$f":"IF(B52=\"\",\"\",VLOOKUP(B52,'4-Consumos energéticos'!$B$8:$E$13,4,FALSE)&\"/año\")","v":""},null,"",""]
[null,null,null,null,null,{"$f":"IF(B53=\"\",\"\",VLOOKUP(B53,'4-Consumos energéticos'!$B$8:$L$13,11,FALSE))","v":""},null,null,null,null,"-","-",{"$f":"IF(B53=\"\",\"\",VLOOKUP(B53,'4-Consumos energéticos'!$B$8:$E$13,4,FALSE)&\"/año\")","v":""},null,"",""]
[null,null,null,null,null,{"$f":"IF(B54=\"\",\"\",VLOOKUP(B54,'4-Consumos energéticos'!$B$8:$L$13,11,FALSE))","v":""},null,null,null,null,"-","-",{"$f":"IF(B54=\"\",\"\",VLOOKUP(B54,'4-Consumos energéticos'!$B$8:$E$13,4,FALSE)&\"/año\")","v":""},null,"",""]
[null,null,null,null,null,{"$f":"IF(B55=\"\",\"\",VLOOKUP(B55,'4-Consumos energéticos'!$B$8:$L$13,11,FALSE))","v":""},null,null,null,null,{"$f":"IF(G55=\"\",\"-\",IF(I55>0,IF(I55=\"NA\",J55*H55*G55*E55,J55*H55*G55*E55/I55),0))","v":"-"},{"$f":"IF(G55=\"\",\"-\",IF(I55>0,IF(I55=\"NA\",J55*H55*G55*E55,J55*H55*G55*E55),0))","v":"-"},{"$f":"IF(B55=\"\",\"\",VLOOKUP(B55,'4-Consumos energéticos'!$B$8:$E$13,4,FALSE)&\"/año\")","v":""},null,"",""]
[null,null,null,null,null,{"$f":"IF(B56=\"\",\"\",VLOOKUP(B56,'4-Consumos energéticos'!$B$8:$L$13,11,FALSE))","v":""},null,null,null,null,"-","-",{"$f":"IF(B56=\"\",\"\",VLOOKUP(B56,'4-Consumos energéticos'!$B$8:$E$13,4,FALSE)&\"/año\")","v":""},null,"",""]
[null,null,null,null,null,{"$f":"IF(B57=\"\",\"\",VLOOKUP(B57,'4-Consumos energéticos'!$B$8:$L$13,11,FALSE))","v":""},null,null,null,null,"-","-",{"$f":"IF(B57=\"\",\"\",VLOOKUP(B57,'4-Consumos energéticos'!$B$8:$E$13,4,FALSE)&\"/año\")","v":""},null,"","","UL"]
[]
[null,"(*1) Se pueden insertar filas en caso de ser necesario. En caso de requerirlo utilice el botón correspondiente.\n(*2) Intente unificar los conceptos utilizados para los usos a los fines de facilitar la consolidación de conceptos en la página siguiente.\n(*3) Se define al factor de carga como (Carga Promedio / Carga Máxima).\n(*4) En caso de corresponder, asociar un rendimiento al factor de carga."]

{"sheet":"6-DdC","index":7,"n_rows":49,"n_cols":12,"rows_kept":49,"cut":false,"hidden":true,"merged":[[6,5,6,7],[12,5,12,7],[13,5,13,7],[0,1,0,8],[2,1,2,8],[3,1,3,8],[5,5,5,7],[40,5,40,7],[41,5,41,7],[47,1,47,8],[48,1,48,8],[4,1,4,8],[11,1,11,8],[18,1,18,8],[25,1,25,8],[32,1,32,8],[39,1,39,8],[33,5,33,7],[34,5,34,7],[19,5,19,7],[20,5,20,7],[26,5,26,7],[27,5,27,7]]}
[null,"PLANILLA AUTOMÁTICA"]
[]
[null,"PROGRAMA DE EFICIENCIA ENERGÉTICA v2020",null,null,null,null,null,null,null,null,null,1]
[null,"Relevamiento de Consumos Energéticos - Usos por Fuente (*)"]
[null,"Energía Eléctrica"]
[null,"Consumo del año base",{"$f":"VLOOKUP(B5,'4-Consumos energéticos'!$B$8:$F$13,5,FALSE)","v":0},{"$f":"VLOOKUP(B5,'4-Consumos energéticos'!$B$8:$D$13,3,FALSE)","v":0},{"$f":"VLOOKUP(B5,'4-Consumos energéticos'!$B$8:$E$13,4,FALSE)","v":"kWh"},{"$f":"\"% cargado del consumo Facturado a la empresa en \"&E6&\" (*2)\"","v":"% cargado del consumo Facturado a la empresa en kWh (*2)"},null,null,{"$f":"IF(OR(D6=0,D6=\"\"),0,SUM(C9:C11)/D6)","v":0}]
[null,"Total Relevado",{"$f":"IF(AND('4-Consumos energéticos'!$G$8=0,D7>0),\"VER HOJA 4\",D7*'4-Consumos energéticos'!$G$8)","v":0},{"$f":"SUMIF('5-Inventario general'!$B$18:$K$58,'6-DdC'!B5,'5-Inventario general'!$K$18:$K$58)","v":0},{"$f":"VLOOKUP(B5,'4-Consumos energéticos'!$B$8:$E$13,4,FALSE)","v":"kWh"},{"$f":"\"% Cargado de lo relevado en Hoja 5 (*2)\"","v":"% Cargado de lo relevado en Hoja 5 (*2)"},null,null,{"$f":"IF(C7=0,1,SUM(C9:C11)/D7)","v":1}]
[null,"Distribución por Usos","Consumos Año Base ","Unidad","% del total de la fuente","Costo unitario ($)","Costo ($)","% respecto del costo relevado","% del costo energético total de la empresa ($)"]
[null,null,{"$f":"IF(B9=\"\",\"\",SUMIFS('5-Inventario general'!$K$18:$K$58,'5-Inventario general'!$B$18:$B$58,$B$5,'5-Inventario general'!$D$18:$D$58,'6-DdC'!B9))","v":""},{"$f":"IF(B9=\"\",\"\",IF(VLOOKUP($B$5&B9,'5-Inventario general'!$O$18:$P$58,2,FALSE)=0,\"CARGAR\",VLOOKUP($B$5&B9,'5-Inventario general'!$O$18:$P$58,2,FALSE)))","v":""},{"$f":"IF(C9=\"\",\"\",IF(AND(C9=0,$D$6=0),0,C9/$D$6))","v":""},{"$f":"IF(C9=\"\",\"\",'4-Consumos energéticos'!$G$8)","v":""},{"$f":"IF(C9=\"\",\"\",C9*F9)","v":""},{"$f":"IFERROR(IF(C9=\"\",\"\",G9/SUM($G$9:$G$11)),\"\")","v":""},{"$f":"IFERROR(IF(C9=\"\",\"\",G9/$C$6),\"\")","v":""},null,null,"EE1"]
[null,null,{"$f":"IF(B10=\"\",\"\",SUMIFS('5-Inventario general'!$K$18:$K$58,'5-Inventario general'!$B$18:$B$58,$B$5,'5-Inventario general'!$D$18:$D$58,'6-DdC'!B10))","v":""},{"$f":"IF(B10=\"\",\"\",IF(VLOOKUP($B$5&B10,'5-Inventario general'!$O$18:$P$58,2,FALSE)=0,\"CARGAR\",VLOOKUP($B$5&B10,'5-Inventario general'!$O$18:$P$58,2,FALSE)))","v":""},{"$f":"IF(C10=\"\",\"\",IF(AND(C10=0,$D$6=0),0,C10/$D$6))","v":""},{"$f":"IF(C10=\"\",\"\",'4-Consumos energéticos'!$G$8)","v":""},{"$f":"IF(C10=\"\",\"\",C10*F10)","v":""},{"$f":"IFERROR(IF(C10=\"\",\"\",G10/SUM($G$9:$G$11)),\"\")","v":""},{"$f":"IFERROR(IF(C10=\"\",\"\",G10/$C$6),\"\")","v":""}]
[null,null,{"$f":"IF(B11=\"\",\"\",SUMIFS('5-Inventario general'!$K$18:$K$58,'5-Inventario general'!$B$18:$B$58,$B$5,'5-Inventario general'!$D$18:$D$58,'6-DdC'!B11))","v":""},{"$f":"IF(B11=\"\",\"\",IF(VLOOKUP($B$5&B11,'5-Inventario general'!$O$18:$P$58,2,FALSE)=0,\"CARGAR\",VLOOKUP($B$5&B11,'5-Inventario general'!$O$18:$P$58,2,FALSE)))","v":""},"",{"$f":"IF(C11=\"\",\"\",'4-Consumos energéticos'!$G$8)","v":""},{"$f":"IF(C11=\"\",\"\",C11*F11)","v":""},{"$f":"IFERROR(IF(C11=\"\",\"\",G11/SUM($G$9:$G$11)),\"\")","v":""},{"$f":"IFERROR(IF(C11=\"\",\"\",G11/$C$6),\"\")","v":""},null,null,"EE"]
[null,"Gas Natural"]
[null,"Consumo del año base",{"$f":"VLOOKUP(B12,'4-Consumos energéticos'!$B$8:$F$13,5,FALSE)","v":0},{"$f":"VLOOKUP(B12,'4-Consumos energéticos'!$B$8:$D$13,3,FALSE)","v":0},{"$f":"VLOOKUP(B12,'4-Consumos energéticos'!$B$8:$E$13,4,FALSE)","v":"m3"},{"$f":"\"% cargado del consumo Facturado a la empresa en \"&E13&\" (*2)\"","v":"% cargado del consumo Facturado a la empresa en m3 (*2)"},null,null,{"$f":"IF(OR(D13=0,D13=\"\"),0,SUM(C16:C18)/D13)","v":0}]
[null,"Total Relevado",{"$f":"IF(AND('4-Consumos energéticos'!$G$9=0,D14>0),\"VER HOJA 4\",D14*'4-Consumos energéticos'!$G$9)","v":0},{"$f":"SUMIF('5-Inventario general'!$B$18:$K$58,'6-DdC'!B12,'5-Inventario general'!$K$18:$K$58)","v":0},{"$f":"VLOOKUP(B12,'4-Consumos energéticos'!$B$8:$E$13,4,FALSE)","v":"m3"},{"$f":"\"% Cargado de lo relevado en Hoja 5 (*2)\"","v":"% Cargado de lo relevado en Hoja 5 (*2)"},null,null,{"$f":"IF(C14=0,1,SUM(C16:C18)/D14)","v":1}]
[null,"Distribución por Usos","Consumos Año Base ","Unidad","% del total de la fuente","Costo unitario ($)","Costo ($)","% respecto del costo relevado","% del costo energético total de la empresa ($)"]
[null,null,{"$f":"IF(B16=\"\",\"\",SUMIFS('5-Inventario general'!$K$18:$K$58,'5-Inventario general'!$B$18:$B$58,$B$12,'5-Inventario general'!$D$18:$D$58,'6-DdC'!B16))","v":""},{"$f":"IF(B16=\"\",\"\",IF(VLOOKUP($B$12&B16,'5-Inventario general'!$O$18:$P$58,2,FALSE)=0,\"CARGAR\",VLOOKUP($B$12&B16,'5-Inventario general'!$O$18:$P$58,2,FALSE)))","v":""},{"$f":"IF(C16=\"\",\"\",IF(AND(C16=0,$D$13=0),0,C16/$D$13))","v":""},{"$f":"IF(C16=\"\",\"\",'4-Consumos energéticos'!$G$9)","v":""},{"$f":"IF(C16=\"\",\"\",C16*F16)","v":""},{"$f":"IFERROR(IF(C16=\"\",\"\",G16/SUM($G$16:$G$18)),\"\")","v":""},{"$f":"IFERROR(IF(C16=\"\",\"\",G16/$C$13),\"\")","v":""},null,null,"GN1"]
[null,null,{"$f":"IF(B17=\"\",\"\",SUMIFS('5-Inventario general'!$K$18:$K$58,'5-Inventario general'!$B$18:$B$58,$B$12,'5-Inventario general'!$D$18:$D$58,'6-DdC'!B17))","v":""},{"$f":"IF(B17=\"\",\"\",IF(VLOOKUP($B$12&B17,'5-Inventario general'!$O$18:$P$58,2,FALSE)=0,\"CARGAR\",VLOOKUP($B$12&B17,'5-Inventario general'!$O$18:$P$58,2,FALSE)))","v":""},{"$f":"IF(C17=\"\",\"\",IF(AND(C17=0,$D$13=0),0,C17/$D$13))","v":""},{"$f":"IF(C17=\"\",\"\",'4-Consumos energéticos'!$G$9)","v":""},{"$f":"IF(C17=\"\",\"\",C17*F17)","v":""},{"$f":"IFERROR(IF(C17=\"\",\"\",G17/SUM($G$16:$G$18)),\"\")","v":""},{"$f":"IFERROR(IF(C17=\"\",\"\",G17/$C$13),\"\")","v":""}]
[null,null,{"$f":"IF(B18=\"\",\"\",SUMIFS('5-Inventario general'!$K$18:$K$58,'5-Inventario general'!$B$18:$B$58,$B$12,'5-Inventario general'!$D$18:$D$58,'6-DdC'!B18))","v":""},{"$f":"IF(B18=\"\",\"\",IF(VLOOKUP($B$12&B18,'5-Inventario general'!$O$18:$P$58,2,FALSE)=0,\"CARGAR\",VLOOKUP($B$12&B18,'5-Inventario general'!$O$18:$P$58,2,FALSE)))","v":""},"",{"$f":"IF(C18=\"\",\"\",'4-Consumos energéticos'!$G$9)","v":""},{"$f":"IF(C18=\"\",\"\",C18*F18)","v":""},{"$f":"IFERROR(IF(C18=\"\",\"\",G18/SUM($G$16:$G$18)),\"\")","v":""},{"$f":"IFERROR(IF(C18=\"\",\"\",G18/$C$13),\"\")","v":""},null,null,"GN"]
[null,"Gas Oil"]
[null,"Consumo del año base",{"$f":"VLOOKUP(B19,'4-Consumos energéticos'!$B$8:$F$13,5,FALSE)","v":0},{"$f":"VLOOKUP(B19,'4-Consumos energéticos'!$B$8:$D$13,3,FALSE)","v":0},{"$f":"VLOOKUP(B19,'4-Consumos energéticos'!$B$8:$E$13,4,FALSE)","v":"Litros"},{"$f":"\"% cargado del consumo Facturado a la empresa en \"&E20&\" (*2)\"","v":"% cargado del consumo Facturado a la empresa en Litros (*2)"},null,null,{"$f":"IF(OR(D20=0,D20=\"\"),0,SUM(C23:C25)/D20)","v":0}]
[null,"Total Relevado",{"$f":"IF(AND('4-Consumos energéticos'!$G$10=0,D21>0),\"VER HOJA 4\",D21*'4-Consumos energéticos'!$G$10)","v":0},{"$f":"SUMIF('5-Inventario general'!$B$18:$K$58,'6-DdC'!B19,'5-Inventario general'!$K$18:$K$58)","v":0},{"$f":"VLOOKUP(B19,'4-Consumos energéticos'!$B$8:$E$13,4,FALSE)","v":"Litros"},{"$f":"\"% Cargado de lo relevado en Hoja 5 (*2)\"","v":"% Cargado de lo relevado en Hoja 5 (*2)"},null,null,{"$f":"IF(C21=0,1,SUM(C23:C25)/D21)","v":1}]
[null,"Distribución por Usos","Consumos Año Base ","Unidad","% del total de la fuente","Costo unitario ($)","Costo ($)","% respecto del costo relevado","% del costo energético total de la empresa ($)"]
[null,null,{"$f":"IF(B23=\"\",\"\",SUMIFS('5-Inventario general'!$K$18:$K$58,'5-Inventario general'!$B$18:$B$58,$B$19,'5-Inventario general'!$D$18:$D$58,'6-DdC'!B23))","v":""},{"$f":"IF(B23=\"\",\"\",IF(VLOOKUP($B$19&B23,'5-Inventario general'!$O$18:$P$58,2,FALSE)=0,\"CARGAR\",VLOOKUP($B$19&B23,'5-Inventario general'!$O$18:$P$58,2,FALSE)))","v":""},{"$f":"IF(C23=\"\",\"\",IF(AND(C23=0,$D$20=0),0,C23/$D$20))","v":""},{"$f":"IF(C23=\"\",\"\",'4-Consumos energéticos'!$G$10)","v":""},{"$f":"IF(C23=\"\",\"\",C23*F23)","v":""},{"$f":"IFERROR(IF(C23=\"\",\"\",G23/SUM($G$23:$G$25)),\"\")","v":""},{"$f":"IFERROR(IF(C23=\"\",\"\",G23/$C$20),\"\")","v":""},null,null,"GO1"]
[null,null,{"$f":"IF(B24=\"\",\"\",SUMIFS('5-Inventario general'!$K$18:$K$58,'5-Inventario general'!$B$18:$B$58,$B$19,'5-Inventario general'!$D$18:$D$58,'6-DdC'!B24))","v":""},{"$f":"IF(B24=\"\",\"\",IF(VLOOKUP($B$19&B24,'5-Inventario general'!$O$18:$P$58,2,FALSE)=0,\"CARGAR\",VLOOKUP($B$19&B24,'5-Inventario general'!$O$18:$P$58,2,FALSE)))","v":""},{"$f":"IF(C24=\"\",\"\",IF(AND(C24=0,$D$20=0),0,C24/$D$20))","v":""},{"$f":"IF(C24=\"\",\"\",'4-Consumos energéticos'!$G$10)","v":""},{"$f":"IF(C24=\"\",\"\",C24*F24)","v":""},{"$f":"IFERROR(IF(C24=\"\",\"\",G24/SUM($G$23:$G$25)),\"\")","v":""},{"$f":"IFERROR(IF(C24=\"\",\"\",G24/$C$20),\"\")","v":""}]
[null,null,{"$f":"IF(B25=\"\",\"\",SUMIFS('5-Inventario general'!$K$18:$K$58,'5-Inventario general'!$B$18:$B$58,$B$19,'5-Inventario general'!$D$18:$D$58,'6-DdC'!B25))","v":""},{"$f":"IF(B25=\"\",\"\",IF(VLOOKUP($B$19&B25,'5-Inventario general'!$O$18:$P$58,2,FALSE)=0,\"CARGAR\",VLOOKUP($B$19&B25,'5-Inventario general'!$O$18:$P$58,2,FALSE)))","v":""},"",{"$f":"IF(C25=\"\",\"\",'4-Consumos energéticos'!$G$10)","v":""},{"$f":"IF(C25=\"\",\"\",C25*F25)","v":""},{"$f":"IFERROR(IF(C25=\"\",\"\",G25/SUM($G$23:$G$25)),\"\")","v":""},{"$f":"IFERROR(IF(C25=\"\",\"\",G25/$C$20),\"\")","v":""},null,null,"GO"]
[null,"Gas licuado de petróleo (GLP)"]
[null,"Consumo del año base",{"$f":"VLOOKUP(B26,'4-Consumos energéticos'!$B$8:$F$13,5,FALSE)","v":0},{"$f":"VLOOKUP(B26,'4-Consumos energéticos'!$B$8:$D$13,3,FALSE)","v":0},{"$f":"VLOOKUP(B26,'4-Consumos energéticos'!$B$8:$E$13,4,FALSE)","v":"Kilos"},{"$f":"\"% cargado del consumo Facturado a la empresa en \"&E27&\" (*2)\"","v":"% cargado del consumo Facturado a la empresa en Kilos (*2)"},null,null,{"$f":"IF(OR(D27=0,D27=\"\"),0,SUM(C30:C32)/D27)","v":0}]
[null,"Total Relevado",{"$f":"IF(AND('4-Consumos energéticos'!$G$11=0,D28>0),\"VER HOJA 4\",D28*'4-Consumos energéticos'!$G$11)","v":0},{"$f":"SUMIF('5-Inventario general'!$B$18:$K$58,'6-DdC'!B26,'5-Inventario general'!$K$18:$K$58)","v":0},{"$f":"VLOOKUP(B26,'4-Consumos energéticos'!$B$8:$E$13,4,FALSE)","v":"Kilos"},{"$f":"\"% Cargado de lo relevado en Hoja 5 (*2)\"","v":"% Cargado de lo relevado en Hoja 5 (*2)"},null,null,{"$f":"IF(C28=0,1,SUM(C30:C32)/D28)","v":1}]
[null,"Distribución por Usos","Consumos Año Base ","Unidad","% del total de la fuente","Costo unitario ($)","Costo ($)","% respecto del costo relevado","% del costo energético total de la empresa ($)"]
[null,null,{"$f":"IF(B30=\"\",\"\",SUMIFS('5-Inventario general'!$K$18:$K$58,'5-Inventario general'!$B$18:$B$58,$B$26,'5-Inventario general'!$D$18:$D$58,'6-DdC'!B30))","v":""},{"$f":"IF(B30=\"\",\"\",IF(VLOOKUP($B$26&B30,'5-Inventario general'!$O$18:$P$58,2,FALSE)=0,\"CARGAR\",VLOOKUP($B$26&B30,'5-Inventario general'!$O$18:$P$58,2,FALSE)))","v":""},{"$f":"IF(C30=\"\",\"\",IF(AND(C30=0,$D$27=0),0,C30/$D$27))","v":""},{"$f":"IF(C30=\"\",\"\",'4-Consumos energéticos'!$G$11)","v":""},{"$f":"IF(C30=\"\",\"\",C30*F30)","v":""},{"$f":"IFERROR(IF(C30=\"\",\"\",G30/SUM($G$30:$G$32)),\"\")","v":""},{"$f":"IFERROR(IF(C30=\"\",\"\",G30/$C$27),\"\")","v":""},null,null,"GLP1"]
[null,null,{"$f":"IF(B31=\"\",\"\",SUMIFS('5-Inventario general'!$K$18:$K$58,'5-Inventario general'!$B$18:$B$58,$B$26,'5-Inventario general'!$D$18:$D$58,'6-DdC'!B31))","v":""},{"$f":"IF(B31=\"\",\"\",IF(VLOOKUP($B$26&B31,'5-Inventario general'!$O$18:$P$58,2,FALSE)=0,\"CARGAR\",VLOOKUP($B$26&B31,'5-Inventario general'!$O$18:$P$58,2,FALSE)))","v":""},{"$f":"IF(C31=\"\",\"\",C31/$D$27)","v":""},{"$f":"IF(C31=\"\",\"\",'4-Consumos energéticos'!$G$11)","v":""},{"$f":"IF(C31=\"\",\"\",C31*F31)","v":""},{"$f":"IFERROR(IF(C31=\"\",\"\",G31/SUM($G$30:$G$32)),\"\")","v":""},{"$f":"IFERROR(IF(C31=\"\",\"\",G31/$C$27),\"\")","v":""}]
[null,null,{"$f":"IF(B32=\"\",\"\",SUMIFS('5-Inventario general'!$K$18:$K$58,'5-Inventario general'!$B$18:$B$58,$B$26,'5-Inventario general'!$D$18:$D$58,'6-DdC'!B32))","v":""},{"$f":"IF(B32=\"\",\"\",IF(VLOOKUP($B$26&B32,'5-Inventario general'!$O$18:$P$58,2,FALSE)=0,\"CARGAR\",VLOOKUP($B$26&B32,'5-Inventario general'!$O$18:$P$58,2,FALSE)))","v":""},{"$f":"IF(C32=\"\",\"\",C32/$D$27)","v":""},{"$f":"IF(C32=\"\",\"\",'4-Consumos energéticos'!$G$11)","v":""},"",{"$f":"IFERROR(IF(C32=\"\",\"\",G32/SUM($G$30:$G$32)),\"\")","v":""},{"$f":"IFERROR(IF(C32=\"\",\"\",G32/$C$27),\"\")","v":""},null,null,"GLP"]
[null,"Leña"]
[null,"Consumo del año base",{"$f":"VLOOKUP(B33,'4-Consumos energéticos'!$B$8:$F$13,5,FALSE)","v":0},{"$f":"VLOOKUP(B33,'4-Consumos energéticos'!$B$8:$D$13,3,FALSE)","v":0},{"$f":"VLOOKUP(B33,'4-Consumos energéticos'!$B$8:$E$13,4,FALSE)","v":"Kilos"},{"$f":"\"% cargado del consumo Facturado a la empresa en \"&E34&\" (*2)\"","v":"% cargado del consumo Facturado a la empresa en Kilos (*2)"},null,null,{"$f":"IF(OR(D34=0,D34=\"\"),0,SUM(C37:C39)/D34)","v":0}]
[null,"Total Relevado",{"$f":"IF(AND('4-Consumos energéticos'!$G$12=0,D35>0),\"VER HOJA 4\",D35*'4-Consumos energéticos'!$G$12)","v":0},{"$f":"SUMIF('5-Inventario general'!$B$18:$K$58,'6-DdC'!B33,'5-Inventario general'!$K$18:$K$58)","v":0},{"$f":"VLOOKUP(B33,'4-Consumos energéticos'!$B$8:$E$13,4,FALSE)","v":"Kilos"},{"$f":"\"% Cargado de lo relevado en Hoja 5 (*2)\"","v":"% Cargado de lo relevado en Hoja 5 (*2)"},null,null,{"$f":"IF(C35=0,1,SUM(C37:C39)/D35)","v":1}]
[null,"Distribución por Usos","Consumos Año Base ","Unidad","% del total de la fuente","Costo unitario ($)","Costo ($)","% respecto del costo relevado","% del costo energético total de la empresa ($)"]
[null,null,{"$f":"IF(B37=\"\",\"\",SUMIFS('5-Inventario general'!$K$18:$K$58,'5-Inventario general'!$B$18:$B$58,$B$33,'5-Inventario general'!$D$18:$D$58,'6-DdC'!B37))","v":""},{"$f":"IF(B37=\"\",\"\",IF(VLOOKUP($B$33&B37,'5-Inventario general'!$O$18:$P$58,2,FALSE)=0,\"CARGAR\",VLOOKUP($B$33&B37,'5-Inventario general'!$O$18:$P$58,2,FALSE)))","v":""},{"$f":"IF(C37=\"\",\"\",IF(AND(C37=0,$D$34=0),0,C37/$D$34))","v":""},{"$f":"IF(C37=\"\",\"\",'4-Consumos energéticos'!$G$12)","v":""},{"$f":"IF(C37=\"\",\"\",C37*F37)","v":""},{"$f":"IFERROR(IF(C37=\"\",\"\",G37/SUM($G$37:$G$39)),\"\")","v":""},{"$f":"IFERROR(IF(C37=\"\",\"\",G37/$C$34),\"\")","v":""},null,null,"LE1"]
[null,null,{"$f":"IF(B38=\"\",\"\",SUMIFS('5-Inventario general'!$K$18:$K$58,'5-Inventario general'!$B$18:$B$58,$B$33,'5-Inventario general'!$D$18:$D$58,'6-DdC'!B38))","v":""},{"$f":"IF(B38=\"\",\"\",IF(VLOOKUP($B$33&B38,'5-Inventario general'!$O$18:$P$58,2,FALSE)=0,\"CARGAR\",VLOOKUP($B$33&B38,'5-Inventario general'!$O$18:$P$58,2,FALSE)))","v":""},{"$f":"IF(C38=\"\",\"\",IF(AND(C38=0,$D$34=0),0,C38/$D$34))","v":""},{"$f":"IF(C38=\"\",\"\",'4-Consumos energéticos'!$G$12)","v":""},{"$f":"IF(C38=\"\",\"\",C38*F38)","v":""},{"$f":"IFERROR(IF(C38=\"\",\"\",G38/SUM($G$37:$G$39)),\"\")","v":""},{"$f":"IFERROR(IF(C38=\"\",\"\",G38/$C$34),\"\")","v":""}]
[null,null,{"$f":"IF(B39=\"\",\"\",SUMIFS('5-Inventario general'!$K$18:$K$58,'5-Inventario general'!$B$18:$B$58,$B$33,'5-Inventario general'!$D$18:$D$58,'6-DdC'!B39))","v":""},{"$f":"IF(B39=\"\",\"\",IF(VLOOKUP($B$33&B39,'5-Inventario general'!$O$18:$P$58,2,FALSE)=0,\"CARGAR\",VLOOKUP($B$33&B39,'5-Inventario general'!$O$18:$P$58,2,FALSE)))","v":""},"",{"$f":"IF(C39=\"\",\"\",'4-Consumos energéticos'!$G$12)","v":""},"",{"$f":"IFERROR(IF(C39=\"\",\"\",G39/SUM($G$37:$G$39)),\"\")","v":""},{"$f":"IFERROR(IF(C39=\"\",\"\",G39/$C$34),\"\")","v":""},null,null,"LE"]
[null,{"$f":"'4-Consumos energéticos'!$B$13","v":"Otras Fuentes Energéticas"}]
[null,"Consumo del año base",{"$f":"VLOOKUP(B40,'4-Consumos energéticos'!$B$8:$F$13,5,FALSE)","v":0},{"$f":"VLOOKUP(B40,'4-Consumos energéticos'!$B$8:$D$13,3,FALSE)","v":0},{"$f":"VLOOKUP(B40,'4-Consumos energéticos'!$B$8:$E$13,4,FALSE)","v":0},{"$f":"\"% cargado del consumo Facturado a la empresa en \"&E41&\" (*2)\"","v":"% cargado del consumo Facturado a la empresa en 0 (*2)"},null,null,{"$f":"IF(OR(D41=0,D41=\"\"),0,SUM(C44:C46)/D41)","v":0}]
[null,"Total Relevado",{"$f":"IF(AND('4-Consumos energéticos'!$G$13=0,D42>0),\"VER HOJA 4\",D42*'4-Consumos energéticos'!$G$13)","v":0},{"$f":"SUMIF('5-Inventario general'!$B$18:$K$58,'6-DdC'!B40,'5-Inventario general'!$K$18:$K$58)","v":0},{"$f":"VLOOKUP(B40,'4-Consumos energéticos'!$B$8:$E$13,4,FALSE)","v":0},{"$f":"\"% Cargado de lo relevado en Hoja 5 (*2)\"","v":"% Cargado de lo relevado en Hoja 5 (*2)"},null,null,{"$f":"IF(C42=0,1,SUM(C44:C46)/D42)","v":1}]
[null,"Distribución por Usos","Consumos Año Base ","Unidad","% del total de la fuente","Costo unitario ($)","Costo ($)","% respecto del costo relevado","% del costo energético total de la empresa ($)"]
[null,null,{"$f":"IF(B44=\"\",\"\",SUMIFS('5-Inventario general'!$K$18:$K$58,'5-Inventario general'!$B$18:$B$58,$B$40,'5-Inventario general'!$D$18:$D$58,'6-DdC'!B44))","v":""},{"$f":"IF(B44=\"\",\"\",IF(VLOOKUP($B$40&B44,'5-Inventario general'!$O$18:$P$58,2,FALSE)=0,\"CARGAR\",VLOOKUP($B$40&B44,'5-Inventario general'!$O$18:$P$58,2,FALSE)))","v":""},{"$f":"IF(C44=\"\",\"\",IF(AND(C44=0,$D$41=0),0,C44/$D$41))","v":""},{"$f":"IF(C44=\"\",\"\",'4-Consumos energéticos'!$G$13)","v":""},{"$f":"IF(C44=\"\",\"\",C44*F44)","v":""},{"$f":"IFERROR(IF(C44=\"\",\"\",G44/SUM($G$44:$G$46)),\"\")","v":""},{"$f":"IFERROR(IF(C44=\"\",\"\",G44/$C$41),\"\")","v":""},null,null,"OF1"]
[null,null,{"$f":"IF(B45=\"\",\"\",SUMIFS('5-Inventario general'!$K$18:$K$58,'5-Inventario general'!$B$18:$B$58,$B$40,'5-Inventario general'!$D$18:$D$58,'6-DdC'!B45))","v":""},{"$f":"IF(B45=\"\",\"\",IF(VLOOKUP($B$40&B45,'5-Inventario general'!$O$18:$P$58,2,FALSE)=0,\"CARGAR\",VLOOKUP($B$40&B45,'5-Inventario general'!$O$18:$P$58,2,FALSE)))","v":""},{"$f":"IF(C45=\"\",\"\",IF(AND(C45=0,$D$41=0),0,C45/$D$41))","v":""},{"$f":"IF(C45=\"\",\"\",'4-Consumos energéticos'!$G$13)","v":""},{"$f":"IF(C45=\"\",\"\",C45*F45)","v":""},{"$f":"IFERROR(IF(C45=\"\",\"\",G45/SUM($G$44:$G$46)),\"\")","v":""},{"$f":"IFERROR(IF(C45=\"\",\"\",G45/$C$41),\"\")","v":""}]
[null,null,{"$f":"IF(B46=\"\",\"\",SUMIFS('5-Inventario general'!$K$18:$K$58,'5-Inventario general'!$B$18:$B$58,$B$40,'5-Inventario general'!$D$18:$D$58,'6-DdC'!B46))","v":""},{"$f":"IF(B46=\"\",\"\",IF(VLOOKUP($B$40&B46,'5-Inventario general'!$O$18:$P$58,2,FALSE)=0,\"CARGAR\",VLOOKUP($B$40&B46,'5-Inventario general'!$O$18:$P$58,2,FALSE)))","v":""},"",{"$f":"IF(C46=\"\",\"\",'4-Consumos energéticos'!$G$13)","v":""},"",{"$f":"IFERROR(IF(C46=\"\",\"\",G46/SUM($G$44:$G$46)),\"\")","v":""},{"$f":"IFERROR(IF(C46=\"\",\"\",G46/$C$41),\"\")","v":""},null,null,"OF"]
[]
[null,"(*) Esta hoja no puede ser modificada, si realiza cambios en la Hoja 5, vuelva a generar la hoja con el botón utilizado anteriormente. "]
[null,"(*2) Si las celdas que indican el \"% cargado del consumo de la empresa\" se encuentran pintadas indica que se esta consumiendo mas energía que lo informado por la empresa. El \"% Cargado de lo relevado\" indica que % de lo que se encuentra cagado en la hoja 5 fue incluido en esta hoja."]

{"sheet":"7-Mejoras de EE","index":8,"n_rows":58,"n_cols":16,"rows_kept":58,"cut":false,"hidden":false,"merged":[[48,1,48,2],[48,3,48,4],[48,5,48,6],[49,1,49,2],[42,4,42,7],[53,1,57,1],[53,2,53,3],[53,5,53,7],[54,2,54,3],[54,5,54,7],[55,2,55,3],[55,5,55,7],[56,2,56,3],[56,5,56,7],[57,2,57,3],[57,5,57,7],[50,1,50,7],[51,1,52,1],[51,2,51,3],[51,5,51,6],[52,2,52,3],[52,5,52,6],[49,3,49,4],[49,5,49,6],[41,1,41,7],[43,1,43,2],[43,3,43,5],[44,2,44,7],[45,1,45,7],[46,1,46,2],[46,3,46,4],[46,5,46,6],[47,1,47,7],[23,1,23,7],[25,1,25,2],[25,3,25,5],[26,2,26,7],[27,1,27,7],[28,1,28,2],[28,3,28,4],[28,5,28,6],[31,1,31,2],[24,4,24,7],[3,1,3,7],[21,1,21,7],[0,1,0,7],[14,2,14,3],[15,2,15,3],[14,5,14,6],[15,5,15,6],[2,1,2,7],[4,1,4,7],[6,1,6,2],[5,4,5,7],[13,1,13,7],[16,5,16,7],[7,2,7,7],[14,1,15,1],[16,2,16,3],[6,3,6,5],[16,1,20,1],[19,2,19,3],[19,5,19,7],[20,2,20,3],[20,5,20,7],[8,1,8,7],[9,1,9,2],[9,3,9,4],[9,5,9,6],[10,1,10,7],[11,1,11,2],[17,2,17,3],[17,5,17,7],[18,2,18,3],[18,5,18,7],[11,3,11,4],[11,5,11,6],[12,1,12,2],[12,3,12,4],[12,5,12,6],[40,1,40,7],[35,2,35,3],[36,2,36,3],[34,2,34,3],[34,5,34,6],[33,5,33,6],[29,1,29,7],[30,1,30,2],[30,3,30,4],[30,5,30,6],[32,1,32,7],[33,1,34,1],[33,2,33,3],[37,2,37,3],[37,5,37,7],[38,2,38,3],[38,5,38,7],[39,2,39,3],[39,5,39,7],[35,1,39,1],[35,5,35,7],[36,5,36,7],[31,3,31,4],[31,5,31,6]]}
[null,"OBLIGATORIO COMPLETAR FORMULARIO"]
[]
[null," Presionar para adicionar una nueva Mejora de Eficiencia Energética --------------->\n En el caso que inserte una mejora y no la vaya a utlizar, déjela en blanco, no la elimine. "]
[null,"PROGRAMA DE EFICIENCIA ENERGÉTICA v2020"]
[null,"Propuesta de Mejora en Eficiencia Energética",null,null,null,null,null,null,null,null,null,null,"horizonte [años]","Ahorro [USD/año]","Año ","Flujos"]
[null,"MEE Nº",1,"Nombre MEE:",null,null,null,null,null,null,null,null,null,null,0,{"$f":"-D13","v":0}]
[null,"Nombre del proceso / equipo afectado",null,null,null,null,"Unidad de consumo actual",{"$f":"IF(D10=\"\",\"\",VLOOKUP(D10,'4-Consumos energéticos'!$B$8:$E$13,4,FALSE))","v":""},null,null,null,null,{"$f":"+F17","v":10},{"$f":"+E15","v":0},1,{"$f":"+IF(O7<=M7,N7,0)","v":0}]
[null,"Breve Descripción de la mejora",null,null,null,null,null,null,null,null,null,null,{"$f":"+M7","v":10},{"$f":"+N7","v":0},{"$f":"+O7+1","v":2},{"$f":"+IF(O8<=M8,N8,0)","v":0}]
[null,"Análisis del estado actual del proceso / equipo afectado",null,null,null,null,null,null,null,null,null,null,{"$f":"+M8","v":10},{"$f":"+N8","v":0},{"$f":"+O8+1","v":3},0]
[null,"Fuente Energética Utilizada",null,null,null,"Consumo Anual (del proceso/equipo analizado) $",null,0,null,null,null,null,10,0,4,0]
[null,"Análisis de la Mejora Propuesta",null,null,null,null,null,null,null,null,null,null,10,0,5,0]
[null,"Fuente Energética Propuesta",null,null,null,"Consumo Anual (del proceso/equipo analizado) $ (*1)",null,0,null,null,null,null,10,0,6,0]
[null,"Inversión a realizar ($)",null,0,null,"Tipifique la mejora propuesta (Desplegable)",null,null,null,null,null,null,10,0,7,0]
[null,"Análisis de la mejora Propuesta",null,null,null,null,null,null,null,null,null,null,{"$f":"+M13","v":10},{"$f":"+N13","v":0},{"$f":"+O13+1","v":8},0]
[null,"Ahorro Energético Anual Proyectado","$ / año de ahorro",null,{"$f":"+H10-H12","v":0},"[%] ahorrado del total de la fuente",null,{"$f":"IF(D10=\"\",0,IF(OR(VLOOKUP(D10,'4-Consumos energéticos'!$B$8:$F$13,5,FALSE)=\"\",VLOOKUP(D10,'4-Consumos energéticos'!$B$8:$F$13,5,FALSE)=\"\"),0,E15/VLOOKUP(D10,'4-Consumos energéticos'!$B$8:$F$13,5,FALSE)))","v":0},null,null,null,null,10,0,9,0]
[null,null,"[%] ahorrado con la propuesta",null,{"$f":"IF(IFERROR(1-H12/H10,0)=0,0,1-H12/H10)","v":0},"[%] ahorrado del total de la energía consumida",null,{"$f":"IF(OR('4-Consumos energéticos'!$F$14=0,'4-Consumos energéticos'!$F$14=\"\"),0,E15/'4-Consumos energéticos'!$F$14)","v":0},null,null,null,null,10,0,10,0]
[null,"Datos económicos y financieros","Período de análisis de la Inversión",null,"[Años]",10,null,null,null,null,null,null,null,null,"TIR",{"$f":"IRR(P6:P16)","v":{"$error":"#NUM!"}}]
[null,null,"Tasa de descuento @",null,"[%]",0.15]
[null,null,"Período Simple de Recupero",null,"[Años]",{"$f":"IF(OR(E15=0,E15=\"\"),0,D13/E15)","v":0}]
[null,null,"VAN (flujos constantes)",null,"[$]",{"$f":"-D13+PV(F18,F17,-E15)","v":0}]
[null,null,"TIR",null,"[%]",{"$f":"IF(ISERR(P17),0,P17)","v":0}]
[null,"(*1) El consumo a considerar para los procesos/equipos debe ser cumpliendo la misma funcionalidad. En caso de proponer un nuevo equipo que no reemplaza totalmente al equipo actual en su funcionalidad, considerar el consumo del equipo propuesto mas el % de consumo del antiguo equipo utilizado. Ej. Una caldera solar térmica que no reemplaza el 100% del consumo de una caldera a gas pero disminuye su consumo considerablemente."]
[]
[null,"Propuesta de Mejora en Eficiencia Energética",null,null,null,null,null,null,null,null,null,null,"horizonte [años]","Ahorro [USD/año]","Año ","Flujos"]
[null,"MEE Nº",{"$f":"C6+1","v":2},"Nombre MEE:",null,null,null,null,null,null,null,null,null,null,0,{"$f":"-D32","v":0}]
[null,"Nombre del proceso / equipo afectado",null,null,null,null,"Unidad de consumo actual",{"$f":"IF(D29=\"\",\"\",VLOOKUP(D29,'4-Consumos energéticos'!$B$8:$E$13,4,FALSE))","v":""},null,null,null,null,{"$f":"+F36","v":10},{"$f":"+E34","v":0},1,{"$f":"+IF(O26<=M26,N26,0)","v":0}]
[null,"Breve Descripción de la mejora",null,null,null,null,null,null,null,null,null,null,{"$f":"+M26","v":10},{"$f":"+N26","v":0},{"$f":"+O26+1","v":2},{"$f":"+IF(O27<=M27,N27,0)","v":0}]
[null,"Análisis del estado actual del proceso / equipo afectado",null,null,null,null,null,null,null,null,null,null,{"$f":"+M27","v":10},0,{"$f":"+O27+1","v":3},0]
[null,"Fuente Energética Utilizada",null,null,null,"Consumo Anual (del proceso/equipo analizado) $",null,0,null,null,null,null,10,0,4,0]
[null,"Análisis de la Mejora Propuesta",null,null,null,null,null,null,null,null,null,null,10,0,5,0]
[null,"Fuente Energética Propuesta",null,null,null,"Consumo Anual (del proceso/equipo analizado) $ (*1)",null,0,null,null,null,null,10,0,6,0]
[null,"Inversión a realizar ($)",null,0,null,"Tipifique la mejora propuesta (Desplegable)",null,null,null,null,null,null,10,0,7,0]
[null,"Análisis de la mejora Propuesta",null,null,null,null,null,null,null,null,null,null,10,0,8,0]
[null,"Ahorro Energético Anual Proyectado","$ / año de ahorro",null,{"$f":"H29-H31","v":0},"[%] ahorrado del total de la fuente",null,{"$f":"IF(D29=\"\",0,IF(OR(VLOOKUP(D29,'4-Consumos energéticos'!$B$8:$F$13,5,FALSE)=\"\",VLOOKUP(D29,'4-Consumos energéticos'!$B$8:$F$13,5,FALSE)=\"\"),0,E34/VLOOKUP(D29,'4-Consumos energéticos'!$B$8:$F$13,5,FALSE)))","v":0},null,null,null,null,10,0,9,0]
[null,null,"[%] ahorrado con la propuesta",null,{"$f":"IF(IFERROR(1-H31/H29,0)=0,0,1-H31/H29)","v":0},"[%] ahorrado del total de la energía consumida",null,{"$f":"IF(OR('4-Consumos energéticos'!$F$14=0,'4-Consumos energéticos'!$F$14=\"\"),0,E34/'4-Consumos energéticos'!$F$14)","v":0},null,null,null,null,10,0,10,0]
[null,"Datos económicos y financieros","Período de análisis de la Inversión",null,"[Años]",10,null,null,null,null,null,null,null,null,"TIR",{"$f":"IRR(P25:P35)","v":{"$error":"#NUM!"}}]
[null,null,"Tasa de descuento @",null,"[%]",0.15]
[null,null,"Período Simple de Recupero",null,"[Años]",{"$f":"IF(OR(E34=0,E34=\"\"),0,D32/E34)","v":0}]
[null,null,"VAN (flujos constantes)",null,"[$]",{"$f":"-D32+PV(F37,F36,-E34)","v":0}]
[null,null,"TIR",null,"[%]",{"$f":"IF(ISERR(P36),0,P36)","v":0}]
[]
[null,"Propuesta de Mejora en Eficiencia Energética",null,null,null,null,null,null,null,null,null,null,"horizonte [años]","Ahorro [USD/año]","Año ","Flujos"]
[null,"MEE Nº",{"$f":"C25+1","v":3},"Nombre MEE:",null,null,null,null,null,null,null,null,null,null,0,{"$f":"-D50","v":0}]
[null,"Nombre del proceso / equipo afectado",null,null,null,null,"Unidad de consumo actual",{"$f":"IF(D47=\"\",\"\",VLOOKUP(D47,'4-Consumos energéticos'!$B$8:$E$13,4,FALSE))","v":""},null,null,null,null,{"$f":"+F54","v":10},{"$f":"+E52","v":0},1,{"$f":"+IF(O44<=M44,N44,0)","v":0}]
[null,"Breve Descripción de la mejora",null,null,null,null,null,null,null,null,null,null,{"$f":"+M44","v":10},{"$f":"+N44","v":0},{"$f":"+O44+1","v":2},{"$f":"+IF(O45<=M45,N45,0)","v":0}]
[null,"Análisis del estado actual del proceso / equipo afectado",null,null,null,null,null,null,null,null,null,null,{"$f":"+M45","v":10},0,{"$f":"+O45+1","v":3},0]
[null,"Fuente Energética Utilizada",null,null,null,"Consumo Anual (del proceso/equipo analizado) $",null,0,null,null,null,null,{"$f":"+M46","v":10},0,4,0]
[null,"Análisis de la Mejora Propuesta",null,null,null,null,null,null,null,null,null,null,{"$f":"+M47","v":10},0,5,0]
[null,"Fuente Energética Propuesta",null,null,null,"Consumo Anual (del proceso/equipo analizado) $ (*1)",null,0,null,null,null,null,{"$f":"+M48","v":10},0,6,0]
[null,"Inversión a realizar ($)",null,0,null,"Tipifique la mejora propuesta (Desplegable)",null,null,null,null,null,null,{"$f":"+M49","v":10},0,7,0]
[null,"Análisis de la mejora Propuesta",null,null,null,null,null,null,null,null,null,null,{"$f":"+M50","v":10},0,8,0]
[null,"Ahorro Energético Anual Proyectado","$ / año de ahorro",null,{"$f":"+H47-H49","v":0},"[%] ahorrado del total de la fuente",null,{"$f":"IF(D47=\"\",0,IF(OR(VLOOKUP(D47,'4-Consumos energéticos'!$B$8:$F$13,5,FALSE)=\"\",VLOOKUP(D47,'4-Consumos energéticos'!$B$8:$F$13,5,FALSE)=\"\"),0,E52/VLOOKUP(D47,'4-Consumos energéticos'!$B$8:$F$13,5,FALSE)))","v":0},null,null,null,null,{"$f":"+M51","v":10},0,9,0]
[null,null,"[%] ahorrado con la propuesta",null,{"$f":"IF(IFERROR(1-H49/H47,0)=0,0,1-H49/H47)","v":0},"[%] ahorrado del total de la energía consumida",null,{"$f":"IF(OR('4-Consumos energéticos'!$F$14=0,'4-Consumos energéticos'!$F$14=\"\"),0,E52/'4-Consumos energéticos'!$F$14)","v":0},null,null,null,null,{"$f":"+M52","v":10},0,10,0]
[null,"Datos económicos y financieros","Período de análisis de la Inversión",null,"[Años]",10,null,null,null,null,null,null,null,null,"TIR",{"$f":"IRR(P43:P53)","v":{"$error":"#NUM!"}}]
[null,null,"Tasa de descuento @",null,"[%]",0.15]
[null,null,"Período Simple de Recupero",null,"[Años]",{"$f":"IF(OR(E52=0,E52=\"\"),0,D50/E52)","v":0}]
[null,null,"VAN (flujos constantes)",null,"[$]",{"$f":"-D50+PV(F55,F54,-E52)","v":0}]
[null,null,"TIR",null,"[%]",{"$f":"IF(ISERR(P54),0,P54)","v":0}]

{"sheet":"7B-Sugerencias de EE","index":9,"n_rows":28,"n_cols":8,"rows_kept":28,"cut":false,"hidden":false,"merged":[[0,1,0,7],[6,3,6,7],[10,1,10,5],[10,6,10,7],[5,3,5,4],[5,5,5,7],[7,1,7,2],[7,3,7,4],[7,5,7,6],[2,1,2,7],[3,1,3,7],[11,1,11,7],[9,1,9,4],[4,1,4,7],[6,1,6,2],[8,2,8,7],[16,3,16,4],[16,5,16,6],[17,2,17,7],[18,1,18,4],[13,1,13,7],[14,3,14,4],[14,5,14,7],[15,1,15,2],[15,3,15,7],[16,1,16,2],[25,2,25,7],[26,1,26,4],[27,1,27,5],[27,6,27,7],[23,1,23,2],[23,3,23,7],[24,1,24,2],[24,3,24,4],[24,5,24,6],[19,1,19,5],[19,6,19,7],[21,1,21,7],[22,3,22,4],[22,5,22,7]]}
[null,"OBLIGATORIO COMPLETAR FORMULARIO"]
[]
[null,"Presionar para adicionar una nueva Sugerencia de Eficiencia Energética --------------->\nEn el caso que inserte una sugerencia y no la vaya a utlizar, déjela en blanco, no la elimine. "]
[null,"PROGRAMA DE EFICIENCIA ENERGÉTICA v2020"]
[null,"Sugerencia de Mejora para incrementar la Eficiencia Energética (*)"]
[null,"Sugerencia Nº",{"$f":"1","v":1},"Nombre de la sugerencia:"]
[null,"Nombre del proceso / equipo afectado"]
[null,"Fuente Energética Utilizada Actualmente",null,null,null,"Consumo Anual de actual del proceso/equipo ($)",null,0]
[null,"Breve Descripción de Sugerencia"]
[null,"Que % del consumo actual estima que se puede ahorrar?",null,null,null,0,"Ahorro previsto ($)",{"$f":"H8*(1-F10)","v":0}]
[null,"Califique la complejidad de la implementación de 1 a 9. 1 más simple a 9 más complejo"]
[null,"(*) Deben ser consideradas sugerencias aquellas propuestas que no se adecúan al concepto de Mejora en Eficiencia Energética. Puede haber sugerencias que impliquen inversión y otras que no. El objetivo de las sugerencias es asesorar al empresario sobre cuestiones que puedan aportar propuestas e ideas que mejoren el desempeño o la funcionalidad del emprendimiento. Ej: Revisión de la categoría de usuario de Energía Eléctrica, reducción de la temperatura del agua caliente sanitaria, revisión de la potencia contratada, modificación de los turnos de trabajo, etc."]
[]
[null,"Sugerencia de Mejora para incrementar la Eficiencia Energética (*)"]
[null,"Sugerencia Nº",{"$f":"C6+1","v":2},"Nombre de la sugerencia:"]
[null,"Nombre del proceso / equipo afectado"]
[null,"Fuente Energética Utilizada Actualmente",null,null,null,"Consumo Anual de actual del proceso/equipo ($)",null,0]
[null,"Breve Descripción de Sugerencia"]
[null,"Que % del consumo actual estima que se puede ahorrar?",null,null,null,0,"Ahorro previsto ($)",{"$f":"H17*(1-F19)","v":0}]
[null,"Califique la complejidad de la implementación de 1 a 9. 1 más simple a 9 más complejo"]
[]
[null,"Sugerencia de Mejora para incrementar la Eficiencia Energética (*)"]
[null,"Sugerencia Nº",{"$f":"C15+1","v":3},"Nombre de la sugerencia:"]
[null,"Nombre del proceso / equipo afectado"]
[null,"Fuente Energética Utilizada Actualmente",null,null,null,"Consumo Anual de actual del proceso/equipo ($)",null,0]
[null,"Breve Descripción de Sugerencia"]
[null,"Que % del consumo actual estima que se puede ahorrar?",null,null,null,0,"Ahorro previsto ($)",{"$f":"H25*(1-F27)","v":0}]
[null,"Califique la complejidad de la implementación de 1 a 9. 1 más simple a 9 más complejo"]

{"sheet":"8-Resumen Ejecutivo","index":10,"n_rows":36,"n_cols":15,"rows_kept":36,"cut":false,"hidden":false,"merged":[[2,1,2,12],[29,1,29,2],[8,7,9,7],[8,8,9,8],[8,2,9,2],[8,1,9,1],[8,3,9,3],[21,3,22,3],[28,3,28,4],[8,12,9,12],[4,10,4,12],[5,10,5,12],[4,6,4,8],[5,6,5,8],[28,1,28,2],[28,10,28,11],[29,10,29,11],[30,10,30,11],[31,10,31,11],[3,1,3,12],[8,5,8,6],[7,1,7,12],[8,4,9,4],[21,4,21,5],[20,1,20,8],[21,2,22,2],[21,8,22,8],[21,6,21,7],[0,1,0,12],[32,10,32,11],[33,10,33,11],[34,10,34,11],[35,10,35,11],[35,1,35,4],[32,1,32,2],[34,1,34,2],[33,1,33,2],[8,9,9,9],[8,10,9,10],[8,11,9,11],[30,1,30,2],[31,1,31,2],[4,1,4,2],[5,1,5,2]]}
[null,"PLANILLA AUTOMÁTICA"]
[]
[null,"    PROGRAMA DE EFICIENCIA ENERGÉTICA v2020"]
[null,"Resumen Ejecutivo de Mejoras de Eficiencia Energética y Sugerencias"]
[null,"Nombre de la empresa",null,"Provincia","Departamento","Categoría o tamaño","Rubro",null,null,"Código de Actividad","Gestor Energético"]
[null,{"$f":"'1-Datos Empresa'!$D$5","v":0},null,{"$f":"'1-Datos Empresa'!$D$12","v":0},{"$f":"'1-Datos Empresa'!$D$13","v":0},{"$f":"'1-Datos Empresa'!$D$6","v":0},{"$f":"'1-Datos Empresa'!$D$9","v":0},null,null,{"$f":"'1-Datos Empresa'!$D$10","v":""},{"$f":"'2-Datos Gestor y Diagnóstico'!$C$8&\", \"&'2-Datos Gestor y Diagnóstico'!$C$7","v":", "}]
[]
[null,"Mejoras de Eficiencia Energética"]
[null,"MEE N°","Nombre de la MEE ","Proceso Afectado","Tipo de Mejora","Fuente Energética",null,"Consumo Actual ($)","Ahorro Propuesto ($)","Inversión estimada ($)","PSR [años]","VAN @ [$]","TIR [%]"]
[null,null,null,null,null,"Actual Utilizada","Propuesta"]
[null,{"$f":"'7-Mejoras de EE'!C6","v":1},{"$f":"'7-Mejoras de EE'!E6","v":0},{"$f":"'7-Mejoras de EE'!D7","v":0},{"$f":"'7-Mejoras de EE'!H13","v":0},{"$f":"'7-Mejoras de EE'!D10","v":0},{"$f":"'7-Mejoras de EE'!D12","v":0},{"$f":"'7-Mejoras de EE'!H10","v":0},{"$f":"'7-Mejoras de EE'!E15","v":0},{"$f":"'7-Mejoras de EE'!D13","v":0},{"$f":"'7-Mejoras de EE'!F19","v":0},{"$f":"'7-Mejoras de EE'!F20","v":0},{"$f":"'7-Mejoras de EE'!F21","v":0}]
[null,{"$f":"'7-Mejoras de EE'!C25","v":2},{"$f":"'7-Mejoras de EE'!E25","v":0},{"$f":"'7-Mejoras de EE'!D26","v":0},{"$f":"'7-Mejoras de EE'!H32","v":0},{"$f":"'7-Mejoras de EE'!D29","v":0},{"$f":"'7-Mejoras de EE'!D31","v":0},{"$f":"'7-Mejoras de EE'!H29","v":0},{"$f":"'7-Mejoras de EE'!E34","v":0},{"$f":"'7-Mejoras de EE'!D32","v":0},{"$f":"'7-Mejoras de EE'!F38","v":0},{"$f":"'7-Mejoras de EE'!F39","v":0},{"$f":"'7-Mejoras de EE'!F40","v":0}]
[null,{"$f":"'7-Mejoras de EE'!C43","v":3},{"$f":"'7-Mejoras de EE'!E43","v":0},{"$f":"'7-Mejoras de EE'!D44","v":0},{"$f":"'7-Mejoras de EE'!H50","v":0},{"$f":"'7-Mejoras de EE'!D47","v":0},{"$f":"'7-Mejoras de EE'!D49","v":0},{"$f":"'7-Mejoras de EE'!H47","v":0},{"$f":"'7-Mejoras de EE'!E52","v":0},{"$f":"'7-Mejoras de EE'!D50","v":0},{"$f":"'7-Mejoras de EE'!F56","v":0},{"$f":"'7-Mejoras de EE'!F57","v":0},{"$f":"'7-Mejoras de EE'!F58","v":0}]
[]
[]
[]
[]
[]
[]
[]
[null,"Sugerencias de Eficiencia Energética"]
[null,"Sug.","Nombre de la Sugerencia","Proceso Afectado","Fuente Energética",null,"Ahorro Estimado",null,"Complejidad Implementación"]
[null,"Nº",null,null,"Actual Utilizada","Consumo Actual","$","%"]
[null,{"$f":"'7B-Sugerencias de EE'!C6","v":1},{"$f":"'7B-Sugerencias de EE'!F6","v":0},{"$f":"'7B-Sugerencias de EE'!D7","v":0},{"$f":"'7B-Sugerencias de EE'!D8","v":0},{"$f":"'7B-Sugerencias de EE'!H8","v":0},{"$f":"'7B-Sugerencias de EE'!H10","v":0},{"$f":"'7B-Sugerencias de EE'!F10","v":0},{"$f":"'7B-Sugerencias de EE'!G11","v":0}]
[null,{"$f":"'7B-Sugerencias de EE'!C15","v":2},{"$f":"'7B-Sugerencias de EE'!F15","v":0},{"$f":"'7B-Sugerencias de EE'!D16","v":0},{"$f":"'7B-Sugerencias de EE'!D17","v":0},{"$f":"'7B-Sugerencias de EE'!H17","v":0},{"$f":"'7B-Sugerencias de EE'!H19","v":0},{"$f":"'7B-Sugerencias de EE'!F19","v":0},{"$f":"'7B-Sugerencias de EE'!G20","v":0}]
[null,{"$f":"'7B-Sugerencias de EE'!C23","v":3},{"$f":"'7B-Sugerencias de EE'!F23","v":0},{"$f":"'7B-Sugerencias de EE'!D24","v":0},{"$f":"'7B-Sugerencias de EE'!D25","v":0},{"$f":"'7B-Sugerencias de EE'!H25","v":0},{"$f":"'7B-Sugerencias de EE'!H27","v":0},{"$f":"'7B-Sugerencias de EE'!F27","v":0},{"$f":"'7B-Sugerencias de EE'!G28","v":0}]
[null,null,null,null,null,null,null,null,null,null,null,null,null,null,"SU"]
[]
[null,"Consumo total Empresa",null,"Consumo Actual Empresa (unidades)",null,"Consumo Actual Empresa ($)","Emisión Actual kgCO2 eq. (est.)","Suma Ahorros propuestos","Ahorro % en $","Ahorro kgCO2 eq. (est.)","Consumo Esperado $/m2 cubierto"]
[null,{"$f":"'4-Consumos energéticos'!B8","v":"Energía eléctrica"},null,{"$f":"VLOOKUP($B30,'4-Consumos energéticos'!$B$8:$D$13,3,FALSE)","v":0},{"$f":"VLOOKUP($B30,'4-Consumos energéticos'!$B$8:$E$13,4,FALSE)","v":"kWh"},{"$f":"VLOOKUP($B30,'4-Consumos energéticos'!$B$8:$F$13,5,FALSE)","v":0},{"$f":"0.46*D30","v":0},{"$f":"SUMIF($F$11:$I$19,$B30,$I$11:$I$19)","v":0},{"$f":"IF(OR(F30=0,F30=\"\"),0,H30/F30)","v":0},{"$f":"IF(OR(D30=0,D30=\"\"),0,H30*G30/D30)","v":0},{"$f":"IF(OR('1-Datos Empresa'!$D$17=\"\",'1-Datos Empresa'!$D$17=0),\"-\",(F30-H30)/'1-Datos Empresa'!$D$17)","v":"-"}]
[null,{"$f":"'4-Consumos energéticos'!B9","v":"Gas Natural"},null,{"$f":"VLOOKUP($B31,'4-Consumos energéticos'!$B$8:$D$13,3,FALSE)","v":0},{"$f":"VLOOKUP($B31,'4-Consumos energéticos'!$B$8:$E$13,4,FALSE)","v":"m3"},{"$f":"VLOOKUP($B31,'4-Consumos energéticos'!$B$8:$F$13,5,FALSE)","v":0},{"$f":"1.95*D31","v":0},0,0,0,{"$f":"IF(OR('1-Datos Empresa'!$D$17=\"\",'1-Datos Empresa'!$D$17=0),\"-\",(F31-H31)/'1-Datos Empresa'!$D$17)","v":"-"}]
[null,{"$f":"'4-Consumos energéticos'!B10","v":"Gas Oil"},null,{"$f":"VLOOKUP($B32,'4-Consumos energéticos'!$B$8:$D$13,3,FALSE)","v":0},{"$f":"VLOOKUP($B32,'4-Consumos energéticos'!$B$8:$E$13,4,FALSE)","v":"Litros"},{"$f":"VLOOKUP($B32,'4-Consumos energéticos'!$B$8:$F$13,5,FALSE)","v":0},{"$f":"2.7*D32","v":0},0,0,0,{"$f":"IF(OR('1-Datos Empresa'!$D$17=\"\",'1-Datos Empresa'!$D$17=0),\"-\",(F32-H32)/'1-Datos Empresa'!$D$17)","v":"-"}]
[null,{"$f":"'4-Consumos energéticos'!B11","v":"Gas licuado de petróleo (GLP)"},null,{"$f":"VLOOKUP($B33,'4-Consumos energéticos'!$B$8:$D$13,3,FALSE)","v":0},{"$f":"VLOOKUP($B33,'4-Consumos energéticos'!$B$8:$E$13,4,FALSE)","v":"Kilos"},{"$f":"VLOOKUP($B33,'4-Consumos energéticos'!$B$8:$F$13,5,FALSE)","v":0},{"$f":"2.96*D33","v":0},0,0,0,{"$f":"IF(OR('1-Datos Empresa'!$D$17=\"\",'1-Datos Empresa'!$D$17=0),\"-\",(F33-H33)/'1-Datos Empresa'!$D$17)","v":"-"}]
[null,{"$f":"'4-Consumos energéticos'!B12","v":"Leña"},null,{"$f":"VLOOKUP($B34,'4-Consumos energéticos'!$B$8:$D$13,3,FALSE)","v":0},{"$f":"VLOOKUP($B34,'4-Consumos energéticos'!$B$8:$E$13,4,FALSE)","v":"Kilos"},{"$f":"VLOOKUP($B34,'4-Consumos energéticos'!$B$8:$F$13,5,FALSE)","v":0},{"$f":"1.63*D34","v":0},0,0,0,{"$f":"IF(OR('1-Datos Empresa'!$D$17=\"\",'1-Datos Empresa'!$D$17=0),\"-\",(F34-H34)/'1-Datos Empresa'!$D$17)","v":"-"}]
[null,{"$f":"'4-Consumos energéticos'!B13","v":"Otras Fuentes Energéticas"},null,{"$f":"VLOOKUP($B35,'4-Consumos energéticos'!$B$8:$D$13,3,FALSE)","v":0},{"$f":"VLOOKUP($B35,'4-Consumos energéticos'!$B$8:$E$13,4,FALSE)","v":0},{"$f":"VLOOKUP($B35,'4-Consumos energéticos'!$B$8:$F$13,5,FALSE)","v":0},null,0,0,0,{"$f":"IF(OR('1-Datos Empresa'!$D$17=\"\",'1-Datos Empresa'!$D$17=0),\"-\",(F35-H35)/'1-Datos Empresa'!$D$17)","v":"-"}]
[null,"TOTAL",null,null,null,{"$f":"SUM(F30:F35)","v":0},{"$f":"SUM(G30:G35)","v":0},{"$f":"SUM(H30:H35)","v":0},0,{"$f":"SUM(J30:J35)","v":0},{"$f":"IF(OR('1-Datos Empresa'!$D$17=\"\",'1-Datos Empresa'!$D$17=0),\"-\",(F36-H36)/'1-Datos Empresa'!$D$17)","v":"-"}]

{"sheet":">> Planillas de Relevamiento ->","index":11,"n_rows":2,"n_cols":2,"rows_kept":2,"cut":false,"hidden":false,"merged":[]}
[]
[null,"PROGRAMA DE EFICIENCIA ENERGÉTICA v2020"]

{"sheet":"A-Fact Elec","index":12,"n_rows":19,"n_cols":12,"rows_kept":19,"cut":false,"hidden":false,"merged":[[1,1,1,11],[2,1,2,11],[3,2,3,11],[4,2,4,11],[5,1,6,1]]}
[]
[null,"   PROGRAMA DE EFICIENCIA ENERGÉTICA"]
[null,"Facturas de Energía Eléctrica"]
[null,"Distribuidora"]
[null,"Categoría Tarifaria"]
[null,"Periodo (últimos 12 meses)","Potencia Demandada Punta","Potencia Demandada Fuera de Punta","Potencia Contratada Punta","Potencia Contratada Fuera de Punta","Energía Pico","Energía Resto","Energía Valle","Energía Total Demandada","Costo Total","Factor de Potencia"]
[null,null,"[kW]","[kW]","[kW]","[kW]","[kWh]","[kWh]","[kWh]","[kWh]","[$]","[°/1]"]
[null,"mes 1"]
[null,"mes 2"]
[null,"mes 3"]
[null,"mes 4"]
[null,"mes 5"]
[null,"mes 6"]
[null,"mes 7"]
[null,"mes 8"]
[null,"mes 9"]
[null,"mes 10"]
[null,"mes 11"]
[null,"mes 12"]

{"sheet":"A-Fact Gas","index":13,"n_rows":19,"n_cols":4,"rows_kept":19,"cut":false,"hidden":false,"merged":[[1,1,1,3],[2,1,2,3],[3,2,3,3],[4,2,4,3],[5,1,6,1]]}
[]
[null,"   PROGRAMA DE EFICIENCIA ENERGÉTICA"]
[null,"Factura de Gas Narural"]
[null,"Distribuidora"]
[null,"Categoría Tarifaria"]
[null,"Periodo (últimos 12 meses)","Consumo","Costo Total"]
[null,null,"[m3]","[$]"]
[null,"mes 1"]
[null,"mes 2"]
[null,"mes 3"]
[null,"mes 4"]
[null,"mes 5"]
[null,"mes 6"]
[null,"mes 7"]
[null,"mes 8"]
[null,"mes 9"]
[null,"mes 10"]
[null,"mes 11"]
[null,"mes 12"]

{"sheet":"A-Fact Otros Comb","index":14,"n_rows":19,"n_cols":8,"rows_kept":19,"cut":false,"hidden":false,"merged":[[1,1,1,7],[2,1,2,7],[3,2,3,7],[4,2,4,7],[5,1,6,1],[5,2,5,3],[5,4,5,5],[5,6,5,7]]}
[]
[null,"   PROGRAMA DE EFICIENCIA ENERGÉTICA"]
[null,"Factura de Otros Combustibles"]
[null,"Distribuidora"]
[null,"Categoría Tarifaria"]
[null,"Periodo (últimos 12 meses)","Comubustible 1",null,"Comubustible 2",null,"Comubustible 3"]
[null,null,"[kg]","[$]","[kg]","[$]","[L]","[$]"]
[null,"mes 1"]
[null,"mes 2"]
[null,"mes 3"]
[null,"mes 4"]
[null,"mes 5"]
[null,"mes 6"]
[null,"mes 7"]
[null,"mes 8"]
[null,"mes 9"]
[null,"mes 10"]
[null,"mes 11"]
[null,"mes 12"]

{"sheet":"B-Invent Motores","index":15,"n_rows":24,"n_cols":13,"rows_kept":24,"cut":false,"hidden":false,"merged":[[1,1,1,10],[2,1,2,10],[3,2,4,2],[3,3,4,3],[3,8,4,8]]}
[]
[null,"   PROGRAMA DE EFICIENCIA ENERGÉTICA"]
[null,"Motores"]
[null,"Potencia Nominal (*)","Antigüedad","Rebobinado [cantidad de veces]","Rendimiento ","Factor de carga","Horas de uso","Variador de velocidad ","Uso","Cantidad","Consumo de Energía"]
[null,"[kW]",null,null,"[%]","[%]","[h/año]","[Si/no]",null,"[Unidades]","[kWh]"]
[null,null,null,null,null,null,null,null,null,null,null,null,"Feyera"]
[]
[]
[]
[]
[]
[]
[]
[]
[]
[]
[]
[]
[]
[]
[]
[]
[]
[null,"(*) Detallar los principales motores"]

{"sheet":"B-Invent Bbas y ventiladores","index":16,"n_rows":25,"n_cols":15,"rows_kept":25,"cut":false,"hidden":false,"merged":[[1,1,1,12],[2,1,2,12],[3,2,4,2],[3,3,4,3],[3,4,4,4],[3,8,3,9],[3,10,4,10]]}
[]
[null,"   PROGRAMA DE EFICIENCIA ENERGÉTICA"]
[null,"Bombas /Ventiladores"]
[null,"Potencia Nominal (*)","Antigüedad","Caudal [m3/h]","Altura de Presíón [mca]","Rendimiento ","Factor de carga","Horas de uso","Sistema de Regulación",null,"Uso","Cantidad","Consumo de Energía"]
[null,"[kW]",null,null,null,"[%]","[%]","[h/año]","Válvula o Damper","Variador de velocidad ",null,"[Unidades]","[kWh]"]
[null,null,null,null,null,null,null,null,null,null,null,null,null,null,"Feyera"]
[]
[]
[]
[]
[]
[]
[]
[]
[]
[]
[null,null,null,null,null,null,null,null,null,null,null,null,null,null,"z"]
[]
[]
[]
[]
[]
[]
[]
[null,"(*) Detallar los principales equipos"]

{"sheet":"B-Invent Iluminación","index":17,"n_rows":11,"n_cols":8,"rows_kept":11,"cut":false,"hidden":false,"merged":[[1,1,1,7],[2,1,2,7]]}
[]
[null,"   PROGRAMA DE EFICIENCIA ENERGÉTICA"]
[null,"Iluminación"]
[null,"Tipo de lámpara","Potencia [W]","Cantidad [unidades]","Horas de uso [h/año]","Sistemas de control","Area de ubicación","Uso de Luz natural [SI/NO/Oportunidad]"]
[null,"Incandescente",null,null,null,"Interruptor"]
[null,"Halógena",null,null,null,"Temporizador"]
[null,"Tubo Fluorescente",null,null,null,"Sensor de prescencia "]
[null,"Fluorescente compacta",null,null,null,"Etc"]
[null,"LED"]
[null,"Vapor de Sodio"]
[null,"Vapor de Mercurio"]

{"sheet":"B-Equipos de Oficina","index":18,"n_rows":6,"n_cols":9,"rows_kept":6,"cut":false,"hidden":false,"merged":[[1,1,1,6],[2,1,2,6],[3,1,4,1],[3,2,4,2],[3,3,4,3]]}
[]
[null,"   PROGRAMA DE EFICIENCIA ENERGÉTICA"]
[null,"Equipos de oficina"]
[null,"Area","Equipo ","Potencia [kW]","Horas de uso","Cantidad","Consumo de Energía"]
[null,null,null,null,"[h/año]","[Unidades]","[kWh]"]
[null,null,null,null,null,null,null,null,"Feyera"]

{"sheet":"B-Aire acondicionado","index":19,"n_rows":5,"n_cols":13,"rows_kept":5,"cut":false,"hidden":false,"merged":[[3,11,3,12],[1,1,1,12],[2,1,2,12],[3,1,4,1],[3,2,4,2],[3,3,4,3],[3,4,4,4],[3,5,4,5],[3,6,4,6],[3,7,4,7],[3,8,4,8],[3,9,4,9],[3,10,4,10]]}
[]
[null,"   PROGRAMA DE EFICIENCIA ENERGÉTICA"]
[null,"Aire acondicionado"]
[null,"Marca","Modelo","Antigüedad","Tipo","Potencia de refrigeración [kW]","Potencia de Calefacción [kW]","Potencia [kW]","COP [°/1]","Horas de uso [h/año]","Sistema de control [manual/auto]","Temperarutra de Seteo [°C]"]
[null,null,null,null,null,null,null,null,null,null,null,"Invierno ","Verano"]

{"sheet":"B-Invent Aire Comprimido","index":20,"n_rows":7,"n_cols":11,"rows_kept":7,"cut":false,"hidden":false,"merged":[[1,1,1,10],[2,1,2,10]]}
[]
[null,"   PROGRAMA DE EFICIENCIA ENERGÉTICA"]
[null,"Aire comprimido"]
[null,"Marca","Modelo","Antigüedad","Tipo","Capacidad [m3/min]","Presión de trabajo [kg/cm2]","Potencia [kW]","Horas de uso [h/año]","Tipo de operación","Uso (proceso, servicios, instrumentos)"]
[null,null,null,null,"Centrífugo",null,null,null,null,"Variador de velocidad"]
[null,null,null,null,"Tornillo",null,null,null,null,"Modulante"]
[null,null,null,null,"Pistón",null,null,null,null,"On /Off"]

{"sheet":"B-Invent Calderas","index":21,"n_rows":23,"n_cols":8,"rows_kept":23,"cut":false,"hidden":false,"merged":[[1,1,1,7],[2,1,2,7],[3,1,4,2],[3,3,4,3],[3,4,4,4],[3,5,4,5],[3,6,4,6],[3,7,4,7],[5,1,5,2],[19,1,19,2],[20,1,20,2],[21,1,21,2],[22,1,22,2],[12,1,12,2],[13,1,13,2],[14,1,14,2],[15,1,15,2],[16,1,17,1],[18,1,18,2],[6,1,6,2],[7,1,7,2],[8,1,8,2],[9,1,9,2],[10,1,11,2]]}
[]
[null,"   PROGRAMA DE EFICIENCIA ENERGÉTICA"]
[null,"Calderas"]
[null,"Caldera N°",null,"Unidades",1,2,3,4]
[]
[null,"Tipo "]
[null,"Marca"]
[null,"Modelo"]
[null,"Combustible",null,"[Gas natural, GLP, otro]"]
[null,"Antigüedad",null,"[años]"]
[null,"Capacidad ",null,"Vapor [kg/h]"]
[null,null,null,"[kcal/h]"]
[null,"Presión",null,"[kg/cm2]"]
[null,"Factor de Carga",null,"[%]"]
[null,"Funcionamiento ",null,"[h/año]"]
[null,"Economizador / Precalentador",null,"[Si/No]"]
[null,"Usos Principales","Uso"]
[null,null,"Presión de trabajo","[kg/cm2]"]
[null,"Recup. de condendado ",null,"[kg/h] "]
[null,"Medición de Gases de chimenea",null,"Frecuencia [mes] , [año]"]
[null,"Temp de gases de escape",null,"[°C]"]
[null,"Exceso de Aire en la combustión",null,"[%]"]
[null,"Eficiencia estimada",null,"[%]"]

{"sheet":"B-Invent Hornos","index":22,"n_rows":19,"n_cols":8,"rows_kept":19,"cut":false,"hidden":false,"merged":[[1,1,1,7],[2,1,2,7],[3,1,4,2],[3,3,4,3],[3,4,4,4],[3,5,4,5],[3,6,4,6],[3,7,4,7],[5,1,5,2],[17,1,17,2],[18,1,18,2],[11,1,11,2],[12,1,12,2],[13,1,13,2],[14,1,14,2],[15,1,15,2],[16,1,16,2],[6,1,6,2],[7,1,7,2],[8,1,8,2],[9,1,9,2],[10,1,10,2]]}
[]
[null,"   PROGRAMA DE EFICIENCIA ENERGÉTICA"]
[null,"Hornos"]
[null,"Horno N°",null,"Unidades",1,2,3,4]
[]
[null,"Tipo "]
[null,"Marca"]
[null,"Modelo"]
[null,"Combustible",null,"[Gas natural, GLP, otro]"]
[null,"Antigüedad",null,"[años]"]
[null,"Capacidad",null,"[kcal/h]"]
[null,"Factor de Carga",null,"[%]"]
[null,"Funcionamiento ",null,"[h/año]"]
[null,"Economizador / Precalentador",null,"[Si/No]"]
[null,"Uso "]
[null,"Recup. de gases de chimenena",null,"[Si/No]"]
[null,"Medición de Gases de chimenea",null,"Frecuencia [mes] , [año]"]
[null,"Temp de gases de escape",null,"[°C]"]
[null,"Exceso de Aire en la combustión",null,"[%]"]

{"sheet":"C-Invent C. Const. Mat","index":23,"n_rows":40,"n_cols":12,"rows_kept":40,"cut":false,"hidden":false,"merged":[[5,1,5,11],[1,1,1,11],[2,2,2,3],[2,7,2,11],[3,1,3,11],[4,1,4,11],[6,1,8,1],[6,2,8,2],[6,3,6,10],[6,11,8,11],[7,3,7,4],[7,5,7,6],[7,7,7,8],[7,9,7,10],[13,1,13,11],[14,1,16,1],[14,2,16,2],[14,3,14,10],[14,11,16,11],[15,3,15,4],[15,5,15,6],[15,7,15,8],[15,9,15,10],[22,1,22,11],[23,1,23,11],[24,1,25,1],[24,2,25,2],[24,3,24,4],[24,11,25,11],[29,1,29,11],[30,1,31,1],[30,2,31,2],[30,3,30,4],[30,5,30,6],[30,11,31,11],[36,1,36,11],[37,1,39,1],[37,2,39,2],[37,3,37,10],[37,11,39,11],[38,3,38,4],[38,5,38,6],[38,7,38,8],[38,9,38,10]]}
[]
[null,"   PROGRAMA DE EFICIENCIA ENERGÉTICA"]
[null,"Localización",null,null,"Zona Bioclimática IRAM 11.603"]
[null,"Características Constructivas de la Envolvente Edilicia"]
[null,"Cubierta*"]
[null,"* Realizar una por cada tipo de cubierta"]
[null,"Tipo","Superficie [m2]","Capa (en caso de requerir más capas agregar columnas)",null,null,null,null,null,null,null,"Transmitancia térmica total [W/m2°C]"]
[null,null,null,1,null,2,null,3,null,4]
[null,null,null,"Material","Esp [mm]","Material","Esp [mm]","Material","Esp [mm]","Material","Esp [mm]"]
[]
[]
[]
[]
[null,"Paredes Laterales"]
[null,"Orientación","Superficie [m2]","Capa (en caso de requerir más capas agregar columnas)",null,null,null,null,null,null,null,"Transmitancia térmica total [W/m2°C]"]
[null,null,null,1,null,2,null,3,null,4]
[null,null,null,"Material","Esp [mm]","Material","Esp [mm]","Material","Esp [mm]","Material","Esp [mm]"]
[]
[]
[]
[]
[]
[null,"Aberturas"]
[null,"Cenitales o Inclinadas"]
[null,"Tipo (Claraboya Horizontal o Inclinada -indicar ángulo de inclinación)","Superficie [m2]","Tipo",null,null,null,null,null,null,null,"Transmitancia térmica total [W/m2°C]"]
[null,null,null,"Material","Esp [mm]"]
[null,null,null,"Vidrio"]
[null,null,null,"Policarbonato"]
[null,null,null,"Otro"]
[null,"Aberturas en Paredes Laterales"]
[null,"Orientación","Superficie total de aberturas en esa orientación [m2]","Tipo Abertura",null,"Perfil",null,null,null,null,null,"Transmitancia térmica total [W/m2°C]"]
[null,null,null,"Material","Esp [mm]","Material","Esp [mm]"]
[null,null,null,"Vidrio"]
[null,null,null,"Policarbonato"]
[null,null,null,"Otro"]
[]
[null,"Pisos"]
[null,"Tipo","Superficie [m2]","Capa (en caso de requerir más capas agregar columnas)",null,null,null,null,null,null,null,"Transmitancia térmica total [W/m2°C]"]
[null,null,null,1,null,2,null,3,null,4]
[null,null,null,"Material","Esp [mm]","Material","Esp [mm]","Material","Esp [mm]","Material","Esp [mm]"]

{"sheet":"C-Invent C. Const. Est. Pasiv","index":24,"n_rows":49,"n_cols":5,"rows_kept":49,"cut":false,"hidden":false,"merged":[[1,1,1,4],[3,1,3,4],[4,1,4,4],[5,1,5,4],[6,1,7,1],[6,2,7,3],[6,4,7,4],[8,1,13,1],[8,2,8,3],[9,2,9,3],[10,2,10,3],[11,2,11,3],[12,2,12,3],[13,2,13,3],[43,1,48,1],[14,1,19,1],[14,2,14,3],[15,2,15,3],[16,2,16,3],[17,2,17,3],[18,2,18,3],[19,2,19,3],[20,1,20,4],[21,1,21,4],[22,1,23,1],[22,2,23,3],[22,4,23,4]]}
[]
[null,"   PROGRAMA DE EFICIENCIA ENERGÉTICA"]
[null,"Localización",null,"Zona Bioclimática IRAM 11.603"]
[null,"Estrategias de acondicionamiento pasivo"]
[null,"Cubierta*"]
[null,"* Realizar una por cada tipo de cubierta"]
[null,"Tipo cubierta","Estrategias pasivas ",null,"Aplica estrategia        (SI / NO)"]
[]
[null,null,"Aislamiento térmico"]
[null,null,"Inercia térmica"]
[null,null,"Techo verde, cubierta vegetal o ajardinada"]
[null,null,"Cubierta ventilada"]
[null,null,"Terminación  reflejante o color"]
[null,null,"Sombreado (total o parcial)"]
[null,null,"Aislamiento térmico"]
[null,null,"Inercia térmica"]
[null,null,"Techo verde, cubierta vegetal o ajardinada"]
[null,null,"Cubierta ventilada"]
[null,null,"Terminación  reflejante o color"]
[null,null,"Sombreado (total o parcial)"]
[null,"Envolvente edilicia*"]
[null,"*  Estrategias aplicadas en todo el edificio. Si hay más de un tipo de envolvente por sectores, con distintas estrategias, repetir tabla"]
[null,"Tipo envolvente lateral","Estrategias pasivas ",null,"Aplica estrategia        (SI / NO)"]
[]
[null,null,"Aislamiento térmico"]
[null,null,"Inercia térmica"]
[null,null,"Aislación nocturna en aberturas"]
[null,null,"Fachada vegetal o ajardinada"]
[null,null,"Fachada ventilada"]
[null,null,"Terminaciones superficiales: tipo, color, índice de reflexión"]
[null,null,"Protección Solar","Orientación:"]
[null,null,"Aleros","Orientación:"]
[null,null,"Pérgolas","Orientación:"]
[null,null,"Parasoles","Orientación:"]
[null,null,"Vegetación","Orientación:"]
[null,null,"Vidrios de control solar","Orientación:"]
[null,null,"Protección Solar interior (cortinas, persianas)","Orientación:"]
[null,null,"Captación de radiación solar (asoleamiento directo)","Orientación:"]
[null,null,"Ganancia directa (aberturas)","Orientación:"]
[null,null,"Ganancia indirecta (muro captador / acumulador)","Orientación:"]
[null,null,"Invernaderos o galerías vidriadas","Orientación:"]
[null,null,"Ventilación Natural"]
[null,null,"Ventilación cruzada","Orientación:"]
[null,null,"Ventilación selectiva para refrescamiento nocturno"]
[null,null,"Ventilación por efecto chimenea (tiraje térmico)"]
[null,null,"Enfriamiento evaporativo (patios con agua o vegetación)"]
[null,null,"Refrescamiento por geotermia"]
[null,null,"Iluminación natural confortable"]
[null,null,"Otra (consignar)"]

{"sheet":"C-Características del entorno ","index":25,"n_rows":15,"n_cols":5,"rows_kept":15,"cut":false,"hidden":false,"merged":[[8,1,12,2],[13,1,14,2],[1,1,1,4],[3,1,3,4],[4,1,5,2],[4,3,5,3],[4,4,5,4],[6,1,7,2]]}
[]
[null," PROGRAMA DE EFICIENCIA ENERGÉTICA"]
[null,"Localización",null,"Zona Bioclimática IRAM 11.603"]
[null,"Características del entorno del edificio"]
[null,"Tipo de obstáculos",null,"Efecto","Afectan (SI / NO)"]
[]
[null,"Construcciones circundantes",null,"Disminuyen asoleamiento por proyección de sombra"]
[null,null,null,"Reflejan sol directo en algún momento del día"]
[null,"Vegetación ",null,"Vegetación de hoja caduca (permite paso del sol en invierno)"]
[null,null,null,"Disminuyen asoleamiento por proyección de sombra"]
[null,null,null,"Proporcionan protección solar en verano"]
[null,null,null,"Afectan el movimiento de aire en verano"]
[null,null,null,"Proporcionan protección de vientos fríos o que arrastren polvo"]
[null,"Presencia de espejos de agua próximos (piscinas, espejos de agua naturales o artificiales)",null,"Reflejan sol directo en algún momento del día (deslumbramiento)"]
[null,null,null,"Proporcionan humedad por evaporación"]

{"sheet":"D-Caract Hoteles","index":26,"n_rows":13,"n_cols":5,"rows_kept":13,"cut":false,"hidden":false,"merged":[[1,1,1,4],[2,1,2,4],[3,2,3,4],[11,1,11,2]]}
[]
[null," PROGRAMA DE EFICIENCIA ENERGÉTICA"]
[null,"Características Hotel"]
[null,"Superficie tot [m2]"]
[null,"Tipo","N° Habitaciones","Superficie media [m2]","Servicios"]
[null,null,null,null,"Calefacción"]
[null,null,null,null,"Refrigeración"]
[]
[null,null,null,null,"TV"]
[null,null,null,null,"Minibar"]
[]
[null,"Factor de ocupación"]
[null,"Mes","[%]"]